Workbook

Sheet 1. Information Sheet
U1: a | AA1: =IF(OR(F16="", F16="(if applicable)"), F14, F14 & " - " & F16) -> Enersource Hydro Mississauga - Mississauga
M12: Version | N12: 1
E14: Utility Name | F14: Enersource Hydro Mississauga
E16: Service Territory | F16: Mississauga
E18: Assigned EB Number | F18: EB-2014-0068
E20: Name of Contact and Title | F20: John Bonadie, Director Revenue
E22: Phone Number | F22: 905-283-4260
E24: Email Address | F24: jbonadie@enersource.com
E26: We are applying for rates effective | F26: 2015-01-01
E28: Rate-Setting Method | F28: Price Cap IR
A30: Please indicate in which Rate Year the Group 1 accounts were last cleared1 | F30: 2014
A32: Please indicate the last Cost of Service Re-Basing Year | F32: 2013
B35: Notes
C37: Pale green cells represent input cells.
C39: Pale blue cells represent drop-down lists. The applicant should select the appropriate item from the drop-down list.
C41: White cells contain fixed values, automatically generated values or formulae.
A44: Note: 1. Rate year of application

Sheet 2. Related Links
A13: ● | B13: Ontario Energy Board's 2015 Electricity Distribution Rates Webpage
A15: ● | B15: An updated version of Chapter 3 of the Filing Requirements for Electricity Distribution Rate Applications for 2015 rates.

Sheet 3. Rate Class Selection
A12: Select the appropriate rate classes as they appear on your most recent Board-Approved Tariff of Rates and Charges, including the MicroFit Class.
A14: How many classes are on your most recent Board-Approved Tariff of Rates and Charges? | J14: 9
A16: Select Your Rate Classes from the Blue Cells below. Please ensure that a rate class is assigned to each shaded cell.
B18: Rate Class Classification | Q18: # of duplicates
A19: 1 | B19: RESIDENTIAL | P19: =COUNTIF($B$19:$J$40, B19) -> 1 | Q19: =COUNTIF(P19:P40, 2)/2 -> 0
A20: 2 | B20: GENERAL SERVICE LESS THAN 50 KW | P20: =COUNTIF($B$19:$J$40, B20) -> 1
A21: 3 | B21: UNMETERED SCATTERED LOAD | P21: 1
A22: 4 | B22: GENERAL SERVICE 50 TO 499 KW | P22: 1
A23: 5 | B23: GENERAL SERVICE 500 TO 4,999 KW | P23: 1
A24: 6 | B24: LARGE USE > 5000 KW | P24: 1
A25: 7 | B25: STREET LIGHTING | P25: 1
A26: 8 | B26: STANDBY DISTRIBUTION SERVICE | P26: 1
A27: 9 | B27: microFIT | P27: 1
P28: 0
P29: 0
P30: 0
P31: 0
P32: 0
P33: 0

Sheet 4. Current Tariff Schedule
Z1: 3 | AA1: January | AB1: ≥
AA2: February
AA3: March
AA4: April
AA5: May
AA6: June
AA7: July
AA8: August
AA9: September
AA10: October
AA11: November
B12: For each class, Applicants are required to copy and paste the class descriptions (located directly under the class name) and the description of the applicability of those rates (description is found under the class name and directly under the word "APPLICATION"). By using the drop-down lists located under the column labeled "Rate Description", please select the descriptions of the rates and charges that BEST MATCHES the descriptions on your most recent Board-Approved Tariff of Rates and Charges. If the description is not found in the drop-down list, please enter the description in the green cells under the correct class exactly as it appears on the tariff. Please do not enter more than one "Service Charge" for each class for which a base monthly fixed charge applies. | AA12: December
B21: =IF(ISBLANK('1. Information Sheet'!F14), "Please Choose Distributor Name on Sheet 1", '1. Information Sheet'!F14) -> Enersource Hydro Mississauga
B22: TARIFF OF RATES AND CHARGES
A24: RESIDENTIAL | B24: RESIDENTIAL Service Classification
A25: RESIDENTIAL
A26: RESIDENTIAL | B26: This classification refers to all residential services including, without limitation, single family or single unit dwellings, multi-family dwellings, row-type dwellings and subdivision developments. Energy is supplied in single phase, 3-wire, or three phase, 4-wire, having a nominal voltage of 120/240 Volts. There shall be only one delivery point to a dwelling. Further servicing details are available in the distributor’s Conditions of Service.
A27: RESIDENTIAL
A28: RESIDENTIAL
A29: RESIDENTIAL
A30: RESIDENTIAL
A31: RESIDENTIAL
A32: RESIDENTIAL | B32: APPLICATION
A33: RESIDENTIAL
A34: RESIDENTIAL | B34: The application of these rates and charges shall be in accordance with the Licence of the Distributor and any Code or Order of the Board, and amendments thereto as approved by the Board, which may be applicable to the administration of this schedule.
A35: RESIDENTIAL
A36: RESIDENTIAL
A37: RESIDENTIAL | B37: No rates and charges for the distribution of electricity and charges to meet the costs of any work or service done or furnished for the purpose of the distribution of electricity shall be made except as permitted by this schedule, unless required by the Distributor’s Licence or a Code or Order of the Board, and amendments thereto as approved by the Board, or as specified herein.
A38: RESIDENTIAL
A39: RESIDENTIAL
A40: RESIDENTIAL
A41: RESIDENTIAL | B41: Unless specifically noted, this schedule does not contain any charges for the electricity commodity, be it under the Regulated Price Plan, a contract with a retailer or the wholesale market price, as applicable. In addition, the charges in the MONTHLY RATES AND CHARGES – Regulatory Component of this schedule do not apply to a customer that is an embedded wholesale market participant.
A42: RESIDENTIAL
A43: RESIDENTIAL
A44: RESIDENTIAL | B44: It should be noted that this schedule does not list any charges, assessments or credits that are required by law to be invoiced by a distributor and that are not subject to Board approval, such as the Debt Retirement Charge, the Global Adjustment, the Ontario Clean Energy Benefit and the HST.
A45: RESIDENTIAL
A46: RESIDENTIAL
A47: RESIDENTIAL
A48: RESIDENTIAL | B48: MONTHLY RATES AND CHARGES - Delivery Component (If applicable, Effective Date MUST be included in rate description)
A49: RESIDENTIAL | B49: Service Charge | H49: $ | I49: 13.03 | K49: 1_C_MSC
A50: RESIDENTIAL | B50: Rate Rider for Smart Metering Entity Charge - effective until October 31, 2018 | H50: $ | I50: 0.79 | K50: 1_C_SMEC | L50: 2018-10-31
A51: RESIDENTIAL | B51: Distribution Volumetric Rate | H51: $/kWh | I51: 0.0131 | K51: 1_C_VC_1
A52: RESIDENTIAL | B52: Low Voltage Service Rate | H52: $/kWh | I52: 0.0002 | K52: 1_C_LVrate
A53: RESIDENTIAL | B53: Rate Rider for Disposition of Deferral/Variance Accounts (2012) - effective until January 31, 2014 | H53: $/kWh | I53: -0.0011 | K53: 1_C_VC_DEFVAR_kWh_1 | L53: 2014-01-31
A54: RESIDENTIAL | B54: Rate Rider for Deferral/Variance Account Disposition (2014) - effective until December 31, 2014 | H54: $/kWh | I54: -0.0011 | K54: 1_C_VC_DEFVAR_kWh_2 | L54: 2014-12-31
A55: RESIDENTIAL | B55: Rate Rider for Recovery of Lost Revenue Adjustment Mechanism (2013) - effective until December 31, 2014 | H55: $/kWh | I55: 0.0005 | K55: 1_C_VC_Rate_Rider_kWh_3 | L55: 2014-12-31
A56: RESIDENTIAL | B56: Rate Rider for Disposition of Global Adjustment Sub-Account (2012) - effective until January 31, 2014. Applicable only for Non-RPP Customers | H56: $/kWh | I56: -0.0022 | K56: 1_C_VC_GA_Rate_Rider_kWh_1 | L56: 2014-01-31
A57: RESIDENTIAL | B57: Rate Rider for Disposition of Global Adjustment Sub-Account (2014) - effective until December 31, 2014. Applicable only for Non-RPP Customers | H57: $/kWh | I57: -0.002 | K57: 1_C_VC_GA_Rate_Rider_kWh_2 | L57: 2014-12-31
A58: RESIDENTIAL | B58: Retail Transmission Rate - Network Service Rate | H58: $/kWh | I58: 0.0076 | K58: 1_C_RTSR_Network
A59: RESIDENTIAL | B59: Retail Transmission Rate - Line and Transformation Connection Service Rate | H59: $/kWh | I59: 0.0058 | K59: 1_C_RTSR_Connection
A60: RESIDENTIAL
A61: RESIDENTIAL
A62: RESIDENTIAL
A63: RESIDENTIAL
A64: RESIDENTIAL
A65: RESIDENTIAL
A66: RESIDENTIAL
A67: RESIDENTIAL
A68: RESIDENTIAL
A69: RESIDENTIAL
A70: RESIDENTIAL
A71: RESIDENTIAL
A72: RESIDENTIAL
A73: RESIDENTIAL
A74: RESIDENTIAL
A75: RESIDENTIAL
A76: RESIDENTIAL
A77: RESIDENTIAL
A78: RESIDENTIAL
A79: RESIDENTIAL | B79: MONTHLY RATES AND CHARGES - Regulatory Component
A80: RESIDENTIAL
A81: RESIDENTIAL | B81: Wholesale Market Service Rate | H81: $/kWh | I81: 0.0044 | K81: 1_C_WMSR
A82: RESIDENTIAL | B82: Rural or Remote Electricity Rate Protection Charge (RRRP) | H82: $/kWh | I82: 0.0013 | K82: 1_C_RRPC
A83: RESIDENTIAL | B83: Standard Supply Service - Administrative Charge (if applicable) | H83: $ | I83: 0.25 | K83: 1_C_SSS
A84: RESIDENTIAL
A87: GENERAL SERVICE LESS THAN 50 KW | B87: GENERAL SERVICE LESS THAN 50 KW Service Classification
A88: GENERAL SERVICE LESS THAN 50 KW
A89: GENERAL SERVICE LESS THAN 50 KW | B89: This classification refers to a non-residential account whose monthly average peak demand is less than, or is forecast to be less than, 50 kW. Further servicing details are available in the distributor’s Conditions of Service.
A90: GENERAL SERVICE LESS THAN 50 KW
A91: GENERAL SERVICE LESS THAN 50 KW
A92: GENERAL SERVICE LESS THAN 50 KW
A93: GENERAL SERVICE LESS THAN 50 KW
A94: GENERAL SERVICE LESS THAN 50 KW
A95: GENERAL SERVICE LESS THAN 50 KW | B95: APPLICATION
A96: GENERAL SERVICE LESS THAN 50 KW
A97: GENERAL SERVICE LESS THAN 50 KW | B97: The application of these rates and charges shall be in accordance with the Licence of the Distributor and any Code or Order of the Board, and amendments thereto as approved by the Board, which may be applicable to the administration of this schedule.
A98: GENERAL SERVICE LESS THAN 50 KW
A99: GENERAL SERVICE LESS THAN 50 KW
A100: GENERAL SERVICE LESS THAN 50 KW | B100: No rates and charges for the distribution of electricity and charges to meet the costs of any work or service done or furnished for the purpose of the distribution of electricity shall be made except as permitted by this schedule, unless required by the Distributor’s Licence or a Code or Order of the Board, and amendments thereto as approved by the Board, or as specified herein.
A101: GENERAL SERVICE LESS THAN 50 KW
A102: GENERAL SERVICE LESS THAN 50 KW
A103: GENERAL SERVICE LESS THAN 50 KW
A104: GENERAL SERVICE LESS THAN 50 KW | B104: Unless specifically noted, this schedule does not contain any charges for the electricity commodity, be it under the Regulated Price Plan, a contract with a retailer or the wholesale market price, as applicable. In addition, the charges in the MONTHLY RATES AND CHARGES – Regulatory Component of this schedule do not apply to a customer that is an embedded wholesale market participant.
A105: GENERAL SERVICE LESS THAN 50 KW
A106: GENERAL SERVICE LESS THAN 50 KW
A107: GENERAL SERVICE LESS THAN 50 KW | B107: It should be noted that this schedule does not list any charges, assessments or credits that are required by law to be invoiced by a distributor and that are not subject to Board approval, such as the Debt Retirement Charge, the Global Adjustment, the Ontario Clean Energy Benefit and the HST.
A108: GENERAL SERVICE LESS THAN 50 KW
A109: GENERAL SERVICE LESS THAN 50 KW
A110: GENERAL SERVICE LESS THAN 50 KW
A111: GENERAL SERVICE LESS THAN 50 KW | B111: MONTHLY RATES AND CHARGES - Delivery Component (If applicable, Effective Date MUST be included in rate description)
A112: GENERAL SERVICE LESS THAN 50 KW | B112: Service Charge | H112: $ | I112: 40.1 | K112: 2_C_MSC
A113: GENERAL SERVICE LESS THAN 50 KW | B113: Rate Rider for Smart Metering Entity Charge - effective until October 31, 2018 | H113: $ | I113: 0.79 | K113: 2_C_SMEC | L113: 2018-10-31
A114: GENERAL SERVICE LESS THAN 50 KW | B114: Distribution Volumetric Rate | H114: $/kWh | I114: 0.0117 | K114: 2_C_VC_1
A115: GENERAL SERVICE LESS THAN 50 KW | B115: Low Voltage Service Rate | H115: $/kWh | I115: 0.0002 | K115: 2_C_LVrate
A116: GENERAL SERVICE LESS THAN 50 KW | B116: Rate Rider for Disposition of Deferral/Variance Accounts (2012) - effective until January 31, 2014 | H116: $/kWh | I116: -0.0011 | K116: 2_C_VC_DEFVAR_kWh_1 | L116: 2014-01-31
A117: GENERAL SERVICE LESS THAN 50 KW | B117: Rate Rider for Deferral/Variance Account Disposition (2014) - effective until December 31, 2014 | H117: $/kWh | I117: -0.0012 | K117: 2_C_VC_DEFVAR_kWh_2 | L117: 2014-12-31
A118: GENERAL SERVICE LESS THAN 50 KW | B118: Rate Rider for Recovery of Lost Revenue Adjustment Mechanism (2013) - effective until December 31, 2014 | H118: $/kWh | I118: 0.0003 | K118: 2_C_VC_Rate_Rider_kWh_3 | L118: 2014-12-31
A119: GENERAL SERVICE LESS THAN 50 KW | B119: Rate Rider for Disposition of Global Adjustment Sub-Account (2012) - effective until January 31, 2014. Applicable only for Non-RPP Customers | H119: $/kWh | I119: -0.0022 | K119: 2_C_VC_GA_Rate_Rider_kWh_1 | L119: 2014-01-31
A120: GENERAL SERVICE LESS THAN 50 KW | B120: Rate Rider for Disposition of Global Adjustment Sub-Account (2014) - effective until December 31, 2014. Applicable only for Non-RPP Customers | H120: $/kWh | I120: -0.0021 | K120: 2_C_VC_GA_Rate_Rider_kWh_2 | L120: 2014-12-31
A121: GENERAL SERVICE LESS THAN 50 KW | B121: Retail Transmission Rate - Network Service Rate | H121: $/kWh | I121: 0.0071 | K121: 2_C_RTSR_Network
A122: GENERAL SERVICE LESS THAN 50 KW | B122: Retail Transmission Rate - Line and Transformation Connection Service Rate | H122: $/kWh | I122: 0.0052 | K122: 2_C_RTSR_Connection
A123: GENERAL SERVICE LESS THAN 50 KW
A124: GENERAL SERVICE LESS THAN 50 KW
A125: GENERAL SERVICE LESS THAN 50 KW
A126: GENERAL SERVICE LESS THAN 50 KW
A127: GENERAL SERVICE LESS THAN 50 KW
A128: GENERAL SERVICE LESS THAN 50 KW
A129: GENERAL SERVICE LESS THAN 50 KW
A130: GENERAL SERVICE LESS THAN 50 KW
A131: GENERAL SERVICE LESS THAN 50 KW
A132: GENERAL SERVICE LESS THAN 50 KW
A133: GENERAL SERVICE LESS THAN 50 KW
A134: GENERAL SERVICE LESS THAN 50 KW
A135: GENERAL SERVICE LESS THAN 50 KW
A136: GENERAL SERVICE LESS THAN 50 KW
A137: GENERAL SERVICE LESS THAN 50 KW
A138: GENERAL SERVICE LESS THAN 50 KW
A139: GENERAL SERVICE LESS THAN 50 KW
A140: GENERAL SERVICE LESS THAN 50 KW
A141: GENERAL SERVICE LESS THAN 50 KW
A142: GENERAL SERVICE LESS THAN 50 KW | B142: MONTHLY RATES AND CHARGES - Regulatory Component
A143: GENERAL SERVICE LESS THAN 50 KW
A144: GENERAL SERVICE LESS THAN 50 KW | B144: Wholesale Market Service Rate | H144: $/kWh | I144: 0.0044 | K144: 2_C_WMSR
A145: GENERAL SERVICE LESS THAN 50 KW | B145: Rural or Remote Electricity Rate Protection Charge (RRRP) | H145: $/kWh | I145: 0.0013 | K145: 2_C_RRPC
A146: GENERAL SERVICE LESS THAN 50 KW | B146: Standard Supply Service - Administrative Charge (if applicable) | H146: $ | I146: 0.25 | K146: 2_C_SSS
A147: GENERAL SERVICE LESS THAN 50 KW
A150: UNMETERED SCATTERED LOAD | B150: UNMETERED SCATTERED LOAD Service Classification
A151: UNMETERED SCATTERED LOAD
A152: UNMETERED SCATTERED LOAD | B152: This classification applies to an account taking electricity at 750 volts or less whose average monthly maximum demand is less than, or is forecast to be less than, 50 kW and the consumption is unmetered. The amount of electricity consumed by unmetered connections will be based on detailed information/documentation provided by the device’s manufacturer and will be agreed to by Enersource Hydro Mississauga Inc. and the customer and may be subject to periodic monitoring of actual consumption. Eligible unmetered loads include cable TV power packs, bus shelters, telephone booths, traffic lights, railway crossings. Further servicing details are available in the distributor’s Conditions of Service.
A153: UNMETERED SCATTERED LOAD
A154: UNMETERED SCATTERED LOAD
A155: UNMETERED SCATTERED LOAD
A156: UNMETERED SCATTERED LOAD
A157: UNMETERED SCATTERED LOAD
A158: UNMETERED SCATTERED LOAD | B158: APPLICATION
A159: UNMETERED SCATTERED LOAD
A160: UNMETERED SCATTERED LOAD | B160: The application of these rates and charges shall be in accordance with the Licence of the Distributor and any Code or Order of the Board, and amendments thereto as approved by the Board, which may be applicable to the administration of this schedule.
A161: UNMETERED SCATTERED LOAD
A162: UNMETERED SCATTERED LOAD
A163: UNMETERED SCATTERED LOAD | B163: No rates and charges for the distribution of electricity and charges to meet the costs of any work or service done or furnished for the purpose of the distribution of electricity shall be made except as permitted by this schedule, unless required by the Distributor’s Licence or a Code or Order of the Board, and amendments thereto as approved by the Board, or as specified herein.
A164: UNMETERED SCATTERED LOAD
A165: UNMETERED SCATTERED LOAD
A166: UNMETERED SCATTERED LOAD
A167: UNMETERED SCATTERED LOAD | B167: Unless specifically noted, this schedule does not contain any charges for the electricity commodity, be it under the Regulated Price Plan, a contract with a retailer or the wholesale market price, as applicable. In addition, the charges in the MONTHLY RATES AND CHARGES – Regulatory Component of this schedule do not apply to a customer that is an embedded wholesale market participant.
A168: UNMETERED SCATTERED LOAD
A169: UNMETERED SCATTERED LOAD
A170: UNMETERED SCATTERED LOAD | B170: It should be noted that this schedule does not list any charges, assessments or credits that are required by law to be invoiced by a distributor and that are not subject to Board approval, such as the Debt Retirement Charge, the Global Adjustment, the Ontario Clean Energy Benefit and the HST.
A171: UNMETERED SCATTERED LOAD
A172: UNMETERED SCATTERED LOAD
A173: UNMETERED SCATTERED LOAD
A174: UNMETERED SCATTERED LOAD | B174: MONTHLY RATES AND CHARGES - Delivery Component (If applicable, Effective Date MUST be included in rate description)
A175: UNMETERED SCATTERED LOAD | B175: Service Charge (per connection) | H175: $ | I175: 8.28 | K175: 3_C_MSC
A176: UNMETERED SCATTERED LOAD | B176: Distribution Volumetric Rate | H176: $/kWh | I176: 0.0151 | K176: 3_C_VC_1
A177: UNMETERED SCATTERED LOAD | B177: Low Voltage Service Rate | H177: $/kWh | I177: 0.0002 | K177: 3_C_LVrate
A178: UNMETERED SCATTERED LOAD | B178: Rate Rider for Disposition of Deferral/Variance Accounts (2012) - effective until January 31, 2014 | H178: $/kWh | I178: -0.0012 | K178: 3_C_VC_DEFVAR_kWh_1 | L178: 2014-01-31
A179: UNMETERED SCATTERED LOAD | B179: Rate Rider for Deferral/Variance Account Disposition (2014) - effective until December 31, 2014 | H179: $/kWh | I179: -0.0012 | K179: 3_C_VC_DEFVAR_kWh_2 | L179: 2014-12-31
A180: UNMETERED SCATTERED LOAD | B180: Rate Rider for Disposition of Global Adjustment Sub-Account (2012) - effective until January 31, 2014. Applicable only for Non-RPP Customers | H180: $/kWh | I180: -0.0022 | K180: 3_C_VC_GA_Rate_Rider_kWh_1 | L180: 2014-01-31
A181: UNMETERED SCATTERED LOAD | B181: Rate Rider for Global Adjustment Sub-Account Disposition (2014) - effective until December 31, 2014 Applicable only for Non-RPP Customers | H181: $/kWh | I181: -0.0012 | K181: 3_C_VC_GA_Rate_Rider_kWh_2 | L181: 2014-12-31
A182: UNMETERED SCATTERED LOAD | B182: Retail Transmission Rate - Network Service Rate | H182: $/kWh | I182: 0.0071 | K182: 3_C_RTSR_Network
A183: UNMETERED SCATTERED LOAD | B183: Retail Transmission Rate - Line and Transformation Connection Service Rate | H183: $/kWh | I183: 0.0052 | K183: 3_C_RTSR_Connection
A184: UNMETERED SCATTERED LOAD
A185: UNMETERED SCATTERED LOAD
A186: UNMETERED SCATTERED LOAD
A187: UNMETERED SCATTERED LOAD
A188: UNMETERED SCATTERED LOAD
A189: UNMETERED SCATTERED LOAD
A190: UNMETERED SCATTERED LOAD
A191: UNMETERED SCATTERED LOAD
A192: UNMETERED SCATTERED LOAD
A193: UNMETERED SCATTERED LOAD
A194: UNMETERED SCATTERED LOAD
A195: UNMETERED SCATTERED LOAD
A196: UNMETERED SCATTERED LOAD
A197: UNMETERED SCATTERED LOAD
A198: UNMETERED SCATTERED LOAD
A199: UNMETERED SCATTERED LOAD
A200: UNMETERED SCATTERED LOAD
A201: UNMETERED SCATTERED LOAD
A202: UNMETERED SCATTERED LOAD
A203: UNMETERED SCATTERED LOAD
A204: UNMETERED SCATTERED LOAD
A205: UNMETERED SCATTERED LOAD | B205: MONTHLY RATES AND CHARGES - Regulatory Component
A206: UNMETERED SCATTERED LOAD
A207: UNMETERED SCATTERED LOAD | B207: Wholesale Market Service Rate | H207: $/kWh | I207: 0.0044 | K207: 3_C_WMSR
A208: UNMETERED SCATTERED LOAD | B208: Rural or Remote Electricity Rate Protection Charge (RRRP) | H208: $/kWh | I208: 0.0013 | K208: 3_C_RRPC
A209: UNMETERED SCATTERED LOAD | B209: Standard Supply Service - Administrative Charge (if applicable) | H209: $ | I209: 0.25 | K209: 3_C_SSS
A210: UNMETERED SCATTERED LOAD
A213: GENERAL SERVICE 50 TO 499 KW | B213: GENERAL SERVICE 50 TO 499 KW Service Classification
A214: GENERAL SERVICE 50 TO 499 KW
A215: GENERAL SERVICE 50 TO 499 KW | B215: This classification refers to a non-residential account whose monthly average peak demand is equal to or greater than, or is forecast to be equal to or greater than, 50 kW but less than 500 kW. Further servicing details are available in the distributor’s Conditions of Service.
... 357 more rows

Sheet 4. Hidden (hidden)
M1: Current Rate Classes | N1: Changed to Rate Classes | O1: Values in A that are NOT in B | P1: Values in B that are Not in A | Q1: Count of A | R1: Count of B
M2: RESIDENTIAL | N2: RESIDENTIAL | Q2: 9 | R2: 9
M3: GENERAL SERVICE LESS THAN 50 KW | N3: GENERAL SERVICE LESS THAN 50 KW
M4: UNMETERED SCATTERED LOAD | N4: UNMETERED SCATTERED LOAD
M5: GENERAL SERVICE 50 TO 499 KW | N5: GENERAL SERVICE 50 TO 499 KW
M6: GENERAL SERVICE 500 TO 4,999 KW | N6: GENERAL SERVICE 500 TO 4,999 KW
M7: LARGE USE > 5000 KW | N7: LARGE USE > 5000 KW
M8: STREET LIGHTING | N8: STREET LIGHTING
M9: STANDBY DISTRIBUTION SERVICE | N9: STANDBY DISTRIBUTION SERVICE
M10: microFIT | N10: microFIT
A24: RESIDENTIAL | B24: RESIDENTIAL Service Classification
A25: RESIDENTIAL
A26: RESIDENTIAL | B26: This classification refers to all residential services including, without limitation, single family or single unit dwellings, multi-family dwellings, row-type dwellings and subdivision developments. Energy is supplied in single phase, 3-wire, or three phase, 4-wire, having a nominal voltage of 120/240 Volts. There shall be only one delivery point to a dwelling. Further servicing details are available in the distributor’s Conditions of Service.
A27: RESIDENTIAL
A28: RESIDENTIAL
A29: RESIDENTIAL
A30: RESIDENTIAL
A31: RESIDENTIAL
A32: RESIDENTIAL | B32: APPLICATION
A33: RESIDENTIAL
A34: RESIDENTIAL | B34: The application of these rates and charges shall be in accordance with the Licence of the Distributor and any Code or Order of the Board, and amendments thereto as approved by the Board, which may be applicable to the administration of this schedule.
A35: RESIDENTIAL
A36: RESIDENTIAL
A37: RESIDENTIAL | B37: No rates and charges for the distribution of electricity and charges to meet the costs of any work or service done or furnished for the purpose of the distribution of electricity shall be made except as permitted by this schedule, unless required by the Distributor’s Licence or a Code or Order of the Board, and amendments thereto as approved by the Board, or as specified herein.
A38: RESIDENTIAL
A39: RESIDENTIAL
A40: RESIDENTIAL
A41: RESIDENTIAL | B41: Unless specifically noted, this schedule does not contain any charges for the electricity commodity, be it under the Regulated Price Plan, a contract with a retailer or the wholesale market price, as applicable. In addition, the charges in the MONTHLY RATES AND CHARGES – Regulatory Component of this schedule do not apply to a customer that is an embedded wholesale market participant.
A42: RESIDENTIAL
A43: RESIDENTIAL
A44: RESIDENTIAL | B44: It should be noted that this schedule does not list any charges, assessments or credits that are required by law to be invoiced by a distributor and that are not subject to Board approval, such as the Debt Retirement Charge, the Global Adjustment, the Ontario Clean Energy Benefit and the HST.
A45: RESIDENTIAL
A46: RESIDENTIAL
A47: RESIDENTIAL
A48: RESIDENTIAL | B48: MONTHLY RATES AND CHARGES - Delivery Component (If applicable, Effective Date MUST be included in rate description)
A49: RESIDENTIAL | B49: Service Charge | H49: $ | I49: 13.03
A50: RESIDENTIAL | B50: Rate Rider for Smart Metering Entity Charge - effective until October 31, 2018 | H50: $ | I50: 0.79
A51: RESIDENTIAL | B51: Distribution Volumetric Rate | H51: $/kWh | I51: 0.0131
A52: RESIDENTIAL | B52: Low Voltage Service Rate | H52: $/kWh | I52: 0.0002
A53: RESIDENTIAL | B53: Rate Rider for Deferral/Variance Account Disposition (2014) - effective until December 31, 2014 | H53: $/kWh | I53: -0.0011
A54: RESIDENTIAL | B54: Rate Rider for Recovery of Lost Revenue Adjustment Mechanism (2013) - effective until December 31, 2014 | H54: $/kWh | I54: 0.0005
A55: RESIDENTIAL | B55: Rate Rider for Disposition of Global Adjustment Sub-Account (2014) - effective until December 31, 2014. Applicable only for Non-RPP Customers | H55: $/kWh | I55: -0.002
A56: RESIDENTIAL | B56: Retail Transmission Rate - Network Service Rate | H56: $/kWh | I56: 0.0076
A57: RESIDENTIAL | B57: Retail Transmission Rate - Line and Transformation Connection Service Rate | H57: $/kWh | I57: 0.0058
A58: RESIDENTIAL
A59: RESIDENTIAL
A60: RESIDENTIAL
A61: RESIDENTIAL
A62: RESIDENTIAL
A63: RESIDENTIAL
A64: RESIDENTIAL
A65: RESIDENTIAL
A66: RESIDENTIAL
A67: RESIDENTIAL
A68: RESIDENTIAL
A69: RESIDENTIAL
A70: RESIDENTIAL
A71: RESIDENTIAL
A72: RESIDENTIAL
A73: RESIDENTIAL
A74: RESIDENTIAL
A75: RESIDENTIAL
A76: RESIDENTIAL
A77: RESIDENTIAL
A78: RESIDENTIAL
A79: RESIDENTIAL | B79: MONTHLY RATES AND CHARGES - Regulatory Component
A80: RESIDENTIAL
A81: RESIDENTIAL | B81: Wholesale Market Service Rate | H81: $/kWh | I81: 0.0044
A82: RESIDENTIAL | B82: Rural or Remote Electricity Rate Protection Charge (RRRP) | H82: $/kWh | I82: 0.0013
A83: RESIDENTIAL | B83: Standard Supply Service - Administrative Charge (if applicable) | H83: $ | I83: 0.25
A84: RESIDENTIAL
A87: GENERAL SERVICE LESS THAN 50 KW | B87: GENERAL SERVICE LESS THAN 50 KW Service Classification
A88: GENERAL SERVICE LESS THAN 50 KW
A89: GENERAL SERVICE LESS THAN 50 KW | B89: This classification refers to a non-residential account whose monthly average peak demand is less than, or is forecast to be less than, 50 kW. Further servicing details are available in the distributor’s Conditions of Service.
A90: GENERAL SERVICE LESS THAN 50 KW
A91: GENERAL SERVICE LESS THAN 50 KW
A92: GENERAL SERVICE LESS THAN 50 KW
A93: GENERAL SERVICE LESS THAN 50 KW
A94: GENERAL SERVICE LESS THAN 50 KW
A95: GENERAL SERVICE LESS THAN 50 KW | B95: APPLICATION
A96: GENERAL SERVICE LESS THAN 50 KW
A97: GENERAL SERVICE LESS THAN 50 KW | B97: The application of these rates and charges shall be in accordance with the Licence of the Distributor and any Code or Order of the Board, and amendments thereto as approved by the Board, which may be applicable to the administration of this schedule.
A98: GENERAL SERVICE LESS THAN 50 KW
A99: GENERAL SERVICE LESS THAN 50 KW
A100: GENERAL SERVICE LESS THAN 50 KW | B100: No rates and charges for the distribution of electricity and charges to meet the costs of any work or service done or furnished for the purpose of the distribution of electricity shall be made except as permitted by this schedule, unless required by the Distributor’s Licence or a Code or Order of the Board, and amendments thereto as approved by the Board, or as specified herein.
A101: GENERAL SERVICE LESS THAN 50 KW
A102: GENERAL SERVICE LESS THAN 50 KW
A103: GENERAL SERVICE LESS THAN 50 KW
A104: GENERAL SERVICE LESS THAN 50 KW | B104: Unless specifically noted, this schedule does not contain any charges for the electricity commodity, be it under the Regulated Price Plan, a contract with a retailer or the wholesale market price, as applicable. In addition, the charges in the MONTHLY RATES AND CHARGES – Regulatory Component of this schedule do not apply to a customer that is an embedded wholesale market participant.
A105: GENERAL SERVICE LESS THAN 50 KW
A106: GENERAL SERVICE LESS THAN 50 KW
A107: GENERAL SERVICE LESS THAN 50 KW | B107: It should be noted that this schedule does not list any charges, assessments or credits that are required by law to be invoiced by a distributor and that are not subject to Board approval, such as the Debt Retirement Charge, the Global Adjustment, the Ontario Clean Energy Benefit and the HST.
A108: GENERAL SERVICE LESS THAN 50 KW
A109: GENERAL SERVICE LESS THAN 50 KW
A110: GENERAL SERVICE LESS THAN 50 KW
A111: GENERAL SERVICE LESS THAN 50 KW | B111: MONTHLY RATES AND CHARGES - Delivery Component (If applicable, Effective Date MUST be included in rate description)
A112: GENERAL SERVICE LESS THAN 50 KW | B112: Service Charge | H112: $ | I112: 40.1
A113: GENERAL SERVICE LESS THAN 50 KW | B113: Rate Rider for Smart Metering Entity Charge - effective until October 31, 2018 | H113: $ | I113: 0.79
A114: GENERAL SERVICE LESS THAN 50 KW | B114: Distribution Volumetric Rate | H114: $/kWh | I114: 0.0117
A115: GENERAL SERVICE LESS THAN 50 KW | B115: Low Voltage Service Rate | H115: $/kWh | I115: 0.0002
A116: GENERAL SERVICE LESS THAN 50 KW | B116: Rate Rider for Deferral/Variance Account Disposition (2014) - effective until December 31, 2014 | H116: $/kWh | I116: -0.0012
A117: GENERAL SERVICE LESS THAN 50 KW | B117: Rate Rider for Recovery of Lost Revenue Adjustment Mechanism (2013) - effective until December 31, 2014 | H117: $/kWh | I117: 0.0003
A118: GENERAL SERVICE LESS THAN 50 KW | B118: Rate Rider for Disposition of Global Adjustment Sub-Account (2014) - effective until December 31, 2014. Applicable only for Non-RPP Customers | H118: $/kWh | I118: -0.0021
A119: GENERAL SERVICE LESS THAN 50 KW | B119: Retail Transmission Rate - Network Service Rate | H119: $/kWh | I119: 0.0071
A120: GENERAL SERVICE LESS THAN 50 KW | B120: Retail Transmission Rate - Line and Transformation Connection Service Rate | H120: $/kWh | I120: 0.0052
A121: GENERAL SERVICE LESS THAN 50 KW
A122: GENERAL SERVICE LESS THAN 50 KW
A123: GENERAL SERVICE LESS THAN 50 KW
A124: GENERAL SERVICE LESS THAN 50 KW
A125: GENERAL SERVICE LESS THAN 50 KW
A126: GENERAL SERVICE LESS THAN 50 KW
A127: GENERAL SERVICE LESS THAN 50 KW
A128: GENERAL SERVICE LESS THAN 50 KW
A129: GENERAL SERVICE LESS THAN 50 KW
A130: GENERAL SERVICE LESS THAN 50 KW
A131: GENERAL SERVICE LESS THAN 50 KW
A132: GENERAL SERVICE LESS THAN 50 KW
A133: GENERAL SERVICE LESS THAN 50 KW
A134: GENERAL SERVICE LESS THAN 50 KW
A135: GENERAL SERVICE LESS THAN 50 KW
A136: GENERAL SERVICE LESS THAN 50 KW
A137: GENERAL SERVICE LESS THAN 50 KW
A138: GENERAL SERVICE LESS THAN 50 KW
A139: GENERAL SERVICE LESS THAN 50 KW
A140: GENERAL SERVICE LESS THAN 50 KW
A141: GENERAL SERVICE LESS THAN 50 KW
A142: GENERAL SERVICE LESS THAN 50 KW | B142: MONTHLY RATES AND CHARGES - Regulatory Component
A143: GENERAL SERVICE LESS THAN 50 KW
A144: GENERAL SERVICE LESS THAN 50 KW | B144: Wholesale Market Service Rate | H144: =H81 -> $/kWh | I144: 0.0044
A145: GENERAL SERVICE LESS THAN 50 KW | B145: Rural or Remote Electricity Rate Protection Charge (RRRP) | H145: $/kWh | I145: 0.0013
A146: GENERAL SERVICE LESS THAN 50 KW | B146: Standard Supply Service - Administrative Charge (if applicable) | H146: $ | I146: 0.25
A147: GENERAL SERVICE LESS THAN 50 KW
A150: UNMETERED SCATTERED LOAD | B150: UNMETERED SCATTERED LOAD Service Classification
A151: UNMETERED SCATTERED LOAD
A152: UNMETERED SCATTERED LOAD | B152: This classification applies to an account taking electricity at 750 volts or less whose average monthly maximum demand is less than, or is forecast to be less than, 50 kW and the consumption is unmetered. The amount of electricity consumed by unmetered connections will be based on detailed information/documentation provided by the device’s manufacturer and will be agreed to by Enersource Hydro Mississauga Inc. and the customer and may be subject to periodic monitoring of actual consumption. Eligible unmetered loads include cable TV power packs, bus shelters, telephone booths, traffic lights, railway crossings. Further servicing details are available in the distributor’s Conditions of Service.
A153: UNMETERED SCATTERED LOAD
A154: UNMETERED SCATTERED LOAD
A155: UNMETERED SCATTERED LOAD
A156: UNMETERED SCATTERED LOAD
A157: UNMETERED SCATTERED LOAD
A158: UNMETERED SCATTERED LOAD | B158: APPLICATION
A159: UNMETERED SCATTERED LOAD
A160: UNMETERED SCATTERED LOAD | B160: The application of these rates and charges shall be in accordance with the Licence of the Distributor and any Code or Order of the Board, and amendments thereto as approved by the Board, which may be applicable to the administration of this schedule.
A161: UNMETERED SCATTERED LOAD
A162: UNMETERED SCATTERED LOAD
A163: UNMETERED SCATTERED LOAD | B163: No rates and charges for the distribution of electricity and charges to meet the costs of any work or service done or furnished for the purpose of the distribution of electricity shall be made except as permitted by this schedule, unless required by the Distributor’s Licence or a Code or Order of the Board, and amendments thereto as approved by the Board, or as specified herein.
A164: UNMETERED SCATTERED LOAD
A165: UNMETERED SCATTERED LOAD
A166: UNMETERED SCATTERED LOAD
A167: UNMETERED SCATTERED LOAD | B167: Unless specifically noted, this schedule does not contain any charges for the electricity commodity, be it under the Regulated Price Plan, a contract with a retailer or the wholesale market price, as applicable. In addition, the charges in the MONTHLY RATES AND CHARGES – Regulatory Component of this schedule do not apply to a customer that is an embedded wholesale market participant.
A168: UNMETERED SCATTERED LOAD
A169: UNMETERED SCATTERED LOAD
A170: UNMETERED SCATTERED LOAD | B170: It should be noted that this schedule does not list any charges, assessments or credits that are required by law to be invoiced by a distributor and that are not subject to Board approval, such as the Debt Retirement Charge, the Global Adjustment, the Ontario Clean Energy Benefit and the HST.
A171: UNMETERED SCATTERED LOAD
A172: UNMETERED SCATTERED LOAD
A173: UNMETERED SCATTERED LOAD
A174: UNMETERED SCATTERED LOAD | B174: MONTHLY RATES AND CHARGES - Delivery Component (If applicable, Effective Date MUST be included in rate description)
A175: UNMETERED SCATTERED LOAD | B175: Service Charge (per connection) | H175: $ | I175: 8.28
A176: UNMETERED SCATTERED LOAD | B176: Distribution Volumetric Rate | H176: $/kWh | I176: 0.0151
A177: UNMETERED SCATTERED LOAD | B177: Low Voltage Service Rate | H177: $/kWh | I177: 0.0002
A178: UNMETERED SCATTERED LOAD | B178: Rate Rider for Deferral/Variance Account Disposition (2014) - effective until December 31, 2014 | H178: $/kWh | I178: -0.0012
A179: UNMETERED SCATTERED LOAD | B179: Rate Rider for Global Adjustment Sub-Account Disposition (2014) - effective until December 31, 2014 Applicable only for Non-RPP Customers | H179: $/kWh | I179: -0.0012
A180: UNMETERED SCATTERED LOAD | B180: Retail Transmission Rate - Network Service Rate | H180: $/kWh | I180: 0.0071
A181: UNMETERED SCATTERED LOAD | B181: Retail Transmission Rate - Line and Transformation Connection Service Rate | H181: $/kWh | I181: 0.0052
A182: UNMETERED SCATTERED LOAD
A183: UNMETERED SCATTERED LOAD
A184: UNMETERED SCATTERED LOAD
A185: UNMETERED SCATTERED LOAD
A186: UNMETERED SCATTERED LOAD
A187: UNMETERED SCATTERED LOAD
A188: UNMETERED SCATTERED LOAD
A189: UNMETERED SCATTERED LOAD
A190: UNMETERED SCATTERED LOAD
A191: UNMETERED SCATTERED LOAD
A192: UNMETERED SCATTERED LOAD
A193: UNMETERED SCATTERED LOAD
A194: UNMETERED SCATTERED LOAD
A195: UNMETERED SCATTERED LOAD
A196: UNMETERED SCATTERED LOAD
A197: UNMETERED SCATTERED LOAD
A198: UNMETERED SCATTERED LOAD
A199: UNMETERED SCATTERED LOAD
A200: UNMETERED SCATTERED LOAD
A201: UNMETERED SCATTERED LOAD
A202: UNMETERED SCATTERED LOAD
A203: UNMETERED SCATTERED LOAD
A204: UNMETERED SCATTERED LOAD
A205: UNMETERED SCATTERED LOAD | B205: MONTHLY RATES AND CHARGES - Regulatory Component
A206: UNMETERED SCATTERED LOAD
A207: UNMETERED SCATTERED LOAD | B207: Wholesale Market Service Rate | H207: =H81 -> $/kWh | I207: 0.0044
A208: UNMETERED SCATTERED LOAD | B208: Rural or Remote Electricity Rate Protection Charge (RRRP) | H208: $/kWh | I208: 0.0013
A209: UNMETERED SCATTERED LOAD | B209: Standard Supply Service - Administrative Charge (if applicable) | H209: $ | I209: 0.25
A210: UNMETERED SCATTERED LOAD
A213: GENERAL SERVICE 50 TO 499 KW | B213: GENERAL SERVICE 50 TO 499 KW Service Classification
A214: GENERAL SERVICE 50 TO 499 KW
A215: GENERAL SERVICE 50 TO 499 KW | B215: This classification refers to a non-residential account whose monthly average peak demand is equal to or greater than, or is forecast to be equal to or greater than, 50 kW but less than 500 kW. Further servicing details are available in the distributor’s Conditions of Service.
A216: GENERAL SERVICE 50 TO 499 KW
A217: GENERAL SERVICE 50 TO 499 KW
A218: GENERAL SERVICE 50 TO 499 KW
A219: GENERAL SERVICE 50 TO 499 KW
... 256 more rows

Sheet 5. 2014 Continuity Schedule
C15: Please complete the following continuity schedule for the following Deferral / Variance Accounts. Enter information into green cells only. If you have received approval to dispose of balances from prior years, the starting point for entries in the 2015 DVA schedule below will be the balance sheet date as per your G/L for which you received approval. For example, if in the 2014 EDR process (CoS or IRM) you received approval for the December 31, 2012 balances, the starting point for your entries below should be the 2011 year. This will allow for the correct starting point for the 2012 opening balance columns for both principal and interest. Please refer to the footnotes for further instructions.
E19: 2010 | O19: 2011 | Y19: 2012 | AL19: 2013 | AY19: 2014 | BC19: Projected Interest on Dec-31-13 Balances | BF19: 2.1.7 RRR
C20: Account Descriptions | D20: Account Number | E20: Opening Principal Amounts as of Jan-1-10 | F20: Transactions Debit / (Credit) during 2010 excluding interest and adjustments 2 | G20: Board-Approved Disposition during 2010 | H20: Adjustments during 2010 - other 1 | I20: Closing Principal Balance as of Dec-31-10 | J20: Opening Interest Amounts as of Jan-1-10 | K20: Interest Jan-1 to Dec-31-10 | L20: Board-Approved Disposition during 2010 | M20: Adjustments during 2010 - other 2 | N20: Closing Interest Amounts as of Dec-31-10 | O20: Opening Principal Amounts as of Jan-1-11 | P20: Transactions Debit / (Credit) during 2011 excluding interest and adjustments 2 | Q20: Board-Approved Disposition during 2011 | R20: Adjustments during 2011 - other 1 | S20: Closing Principal Balance as of Dec-31-11 | T20: Opening Interest Amounts as of Jan-1-11 | U20: Interest Jan-1 to Dec-31-11 | V20: Board-Approved Disposition during 2011 | W20: Adjustments during 2011 - other 2 | X20: Closing Interest Amounts as of Dec-31-11 | Y20: Opening Principal Amounts as of Jan-1-12 | Z20: Transactions Debit / (Credit) during 2012 excluding interest and adjustments 2 | AA20: Board-Approved Disposition during 2012 | AB20: Other 1 Adjustments during Q1 2012 | AC20: Other 1 Adjustments during Q2 2012 | AD20: Other 1 Adjustments during Q3 2012 | AE20: Other 1 Adjustments during Q4 2012 | AF20: Closing Principal Balance as of Dec-31-12 | AG20: Opening Interest Amounts as of Jan-1-12 | AH20: Interest Jan-1 to Dec-31-12 | AI20: Board-Approved Disposition during 2012 | AJ20: Adjustments during 2012 - other 1 | AK20: Closing Interest Amounts as of Dec-31-12 | AL20: Opening Principal Amounts as of Jan-1-13 | AM20: Transactions Debit / (Credit) during 2013 excluding interest and adjustments 2 | AN20: Board-Approved Disposition during 2013 | AO20: Other 1 Adjustments during Q1 2013 | AP20: Other 1 Adjustments during Q2 2013 | AQ20: Other 1 Adjustments during Q3 2013 | AR20: Other 1 Adjustments during Q4 2013 | AS20: Closing Principal Balance as of Dec-31-13 | AT20: Opening Interest Amounts as of Jan-1-13 | AU20: Interest Jan-1 to Dec-31-13 | AV20: Board-Approved Disposition during 2013 | AW20: Adjustments during 2013 - other 1 | AX20: Closing Interest Amounts as of Dec-31-13 | AY20: Principal Disposition during 2014 - instructed by Board | AZ20: Interest Disposition during 2014 - instructed by Board | BA20: Closing Principal Balances as of Dec 31-13 Adjusted for Dispositions during 2014 | BB20: Closing Interest Balances as of Dec 31-13 Adjusted for Dispositions during 2014 | BC20: Projected Interest from Jan 1, 2014 to December 31, 2014 on Dec 31 -13 balance adjusted for disposition during 2014 3 | BD20: Projected Interest from January 1, 2015 to April 30, 2015 on Dec 31 -13 balance adjusted for disposition during 2014 3 | BE20: Total Claim | BF20: As of Dec 31-13 | BG20: Variance RRR vs. 2013 Balance (Principal + Interest)
BE22: Claim before Forecasted Transactions
C23: Group 1 Accounts
A24: 1 | C24: LV Variance Account | D24: 1550 | E24: 222740 | F24: 1138581 | G24: -638728 | I24: =E24+F24-G24+H24 -> 2000049 | J24: -59814 | K24: 11119.1 | L24: -60322 | N24: =J24+K24-L24+M24 -> 11627.1 | O24: =I24 -> 2000049 | P24: 1492594 | S24: =O24+P24-Q24+R24 -> 3492643 | T24: =N24 -> 11627.1 | U24: 38470 | X24: =T24+U24-V24+W24 -> 50097.1 | Y24: =S24 -> 3492643 | Z24: 1690690.24 | AA24: 2000049 | AF24: =Y24+Z24-AA24+SUM(AB24:AE24) -> 3183284.24 | AG24: =X24 -> 50097.1 | AH24: 38367.72 | AI24: 43517 | AK24: =AG24+AH24-AI24+AJ24 -> 44947.82 | AL24: =AF24 -> 3183284.24 | AM24: 804981.85 | AN24: 1492593.91 | AS24: =AL24+AM24-AN24+SUM(AO24:AR24) -> 2495672.18 | AT24: =AK24 -> 44947.82 | AU24: 34705.18 | AV24: 28520.75 | AX24: =AT24+AU24-AV24+AW24 -> 51132.25 | AY24: 1690690 | AZ24: 41280.14 | BA24: =AS24-AY24 -> 804982.18 | BB24: =AX24-AZ24 -> 9852.11 | BC24: =(AS24-AY24)*(1.47/100) -> 11833.23805 | BD24: =(AS24-AY24)*(1.47/100)/12*4 -> 3944.412682 | BE24: =SUM(BA24:BD24) -> 830611.9407 | BF24: 2546805.61 | BG24: =BF24-SUM(AS24,AX24) -> 1.179999999
C25: Smart Metering Entity Charge Variance | D25: 1551 | AK25: 0 | AL25: =AK25 -> 0 | AS25: =AL25+AM25-AN25+SUM(AO25:AR25) -> 0 | AT25: =AK25 -> 0 | AX25: 0 | BA25: =AS25-AY25 -> 0 | BB25: =AX25-AZ25 -> 0 | BE25: =SUM(BA25:BD25) -> 0 | BG25: =BF25-SUM(AS25,AX25) -> 0
A26: 2 | C26: RSVA - Wholesale Market Service Charge | D26: 1580 | E26: -16956241.86 | F26: -8250747 | G26: -14805516 | I26: =E26+F26-G26+SUM(H26:H26) -> -10401472.86 | J26: -1205119.79 | K26: -65701 | L26: -1205024 | N26: =J26+K26-L26+M26 -> -65796.79 | O26: =I26 -> -10401472.86 | P26: -7802501 | S26: =O26+P26-Q26+SUM(R26:R26) -> -18203973.86 | T26: -65796.79 | U26: -208490 | X26: =T26+U26-V26+W26 -> -274286.79 | Y26: =S26 -> -18203973.86 | Z26: -9704716.33 | AA26: -10401473 | AF26: -17507217.19 | AG26: =X26 -> -274286.79 | AH26: -208234.34 | AI26: -231638 | AK26: -250883.13 | AL26: =AF26 -> -17507217.19 | AM26: -4742781.74 | AN26: -7802410.54 | AS26: -14447588.39 | AT26: =AK26 -> -250883.13 | AU26: -209514.37 | AV26: -157435.46 | AX26: -302962.04 | AY26: -9704806 | AZ26: -236108.65 | BA26: -4742782.39 | BB26: -66853.39 | BC26: =(AS26-AY26)*(1.47/100) -> -69718.90113 | BD26: =(AS26-AY26)*(1.47/100)/12*4 -> -23239.63371 | BE26: =SUM(BA26:BD26) -> -4902594.315 | BF26: -14750549 | BG26: 1.43
A27: 3 | C27: RSVA - Retail Transmission Network Charge | D27: 1584 | E27: -5641839.02 | F27: -2977424 | G27: -2407008 | I27: -6212255.02 | J27: 66491.41 | K27: -36520 | L27: 71518 | N27: -41546.59 | O27: -6212255.02 | P27: 499949 | S27: -5712306.02 | T27: -41546.59 | U27: -96477 | X27: -138023.59 | Y27: -5712306.02 | Z27: 1692258.93 | AA27: =-6212255 -> -6212255 | AF27: 2192207.91 | AG27: -138023.59 | AH27: 10026.72 | AI27: -140595 | AK27: 12598.13 | AL27: 2192207.91 | AM27: 3416731.5 | AN27: 499948.11 | AS27: 5108991.3 | AT27: 12598.13 | AU27: 46249.35 | AV27: 9921.89 | AX27: 48925.59 | AY27: 1692260 | AZ27: 27552.22 | BA27: 3416731.3 | BB27: 21373.37 | BC27: =(AS27-AY27)*(1.47/100) -> 50225.95011 | BD27: =(AS27-AY27)*(1.47/100)/12*4 -> 16741.98337 | BE27: 3505072.603 | BF27: 5157915.62 | BG27: -1.27
A28: 4 | C28: RSVA - Retail Transmission Connection Charge | D28: 1586 | E28: -3596514.1 | F28: -2584800 | G28: -887818 | I28: -5293496.1 | J28: -130789.44 | K28: -32418 | L28: -126805 | N28: -36402.44 | O28: -5293496.1 | P28: 453081 | S28: -4840415.1 | T28: -36402.44 | U28: -82842 | X28: -119244.44 | Y28: -4840415.1 | Z28: 1028935.85 | AA28: -5293496 | AF28: 1482016.75 | AG28: -119244.44 | AH28: 2233.29 | AI28: -120802 | AK28: 3790.85 | AL28: 1482016.75 | AM28: 681957.9 | AN28: =453078 -> 453078 | AS28: 1710896.65 | AT28: 3790.85 | AU28: 18475.44 | AV28: 8221 | AX28: 14045.29 | AY28: 1028939 | AZ28: 10695.4 | BA28: 681957.65 | BB28: 3349.89 | BC28: =(AS28-AY28)*(1.47/100) -> 10024.77746 | BD28: =(AS28-AY28)*(1.47/100)/12*4 -> 3341.592485 | BE28: 698673.9099 | BF28: 1724940.72 | BG28: -1.22
A29: 5 | C29: RSVA - Power (excluding Global Adjustment) | D29: 1588 | E29: -4900025.46 | F29: 366530 | G29: -8288868 | I29: 3755372.54 | J29: -628149.83 | K29: 12353 | L29: -633010 | N29: 17213.17 | O29: 3755372.54 | P29: 413948 | S29: 4169320.54 | T29: 17213.17 | U29: 63195 | X29: 80408.17 | Y29: 4169320.54 | Z29: 716651.5 | AA29: 3755373 | AF29: 1130599.04 | AG29: 80408.17 | AH29: -11526.07 | AI29: 77088 | AK29: -8205.9 | AL29: 1130599.04 | AM29: -1860216.32 | AN29: 413949.51 | AS29: -1143566.79 | AT29: -8205.9 | AU29: -19173.59 | AV29: 9403.49 | AX29: -36782.98 | AY29: 716650 | AZ29: -7074.25 | BA29: -1860216.79 | BB29: -29708.73 | BC29: =(AS29-AY29)*(1.47/100) -> -27345.18681 | BD29: =(AS29-AY29)*(1.47/100)/12*4 -> -9115.062271 | BE29: -1926385.769 | BF29: -1180348.82 | BG29: 0.95
A30: 6 | C30: RSVA - Global Adjustment | D30: 1589 | E30: 37098530.5 | F30: -18434026 | G30: 41485837 | I30: -22821332.5 | J30: 279299.9 | K30: -90778 | L30: 301804 | N30: -113282.1 | O30: -22821332.5 | P30: 2042513 | S30: -20778819.5 | T30: -113282.1 | U30: -331638 | X30: -444920.1 | Y30: -20778819.5 | Z30: -2771959.94 | AA30: -22821333 | AF30: -729446.44 | AG30: -444920.1 | AH30: -31191.42 | AI30: -477146 | AK30: 1034.48 | AL30: -729446.44 | AM30: 3161417.86 | AN30: 2042512.49 | AS30: 389458.93 | AT30: 1034.48 | AU30: 40514.37 | AV30: 62251.51 | AX30: -20702.66 | AY30: -2771959 | AZ30: -101964.8 | BA30: 3161417.93 | BB30: 81262.14 | BC30: =(AS30-AY30)*(1.47/100) -> 46472.84357 | BD30: =(AS30-AY30)*(1.47/100)/12*4 -> 15490.94786 | BE30: 3304643.861 | BF30: 368754.8 | BG30: -1.469999999
A31: 7 | C31: Recovery of Regulatory Asset Balances | D31: 1590 | E31: -67009.07 | G31: -67009 | I31: -0.07000000001 | J31: 41313.46 | K31: -789 | L31: 40524 | N31: 0.46 | O31: -0.07000000001 | S31: -0.07000000001 | T31: 0.46 | X31: 0.46 | Y31: -0.07000000001 | AF31: -0.07000000001 | AG31: 0.46 | AK31: 0.46 | AL31: -0.07000000001 | AS31: -0.07000000001 | AT31: 0.46 | AX31: 0.46 | BA31: -0.07000000001 | BB31: 0.46 | BE31: 0.39 | BG31: -0.39
A32: 8 | C32: Disposition and Recovery/Refund of Regulatory Balances (2008)4 | D32: 1595 | E32: -203108 | I32: -203108 | J32: -76154 | K32: -1182 | N32: -77336 | O32: =I32 -> -203108 | S32: -203108 | T32: -77336 | U32: -2170 | X32: -79506 | Y32: -203108 | AA32: -203108 | AF32: 0 | AG32: -79506 | AI32: -80574 | AK32: 1068 | AL32: 0 | AS32: 0 | AT32: 1068 | AV32: 1068 | AX32: 0 | BA32: 0 | BB32: 0 | BE32: 0 | BG32: 0
A33: 9 | C33: Disposition and Recovery/Refund of Regulatory Balances (2009)4 | D33: 1595 | F33: -8069495.6 | G33: -14390890.64 | I33: 6321395.04 | K33: 709245.07 | L33: 1610526.45 | N33: -901281.38 | O33: =I33 -> 6321395.04 | P33: -8464147 | S33: -2142751.96 | T33: -901281.38 | U33: 728553.3 | X33: -172728.08 | Y33: -2142751.96 | Z33: -662497.29 | AF33: -2805249.25 | AG33: -172728.08 | AH33: 21253.34 | AK33: -151474.74 | AL33: -2805249.25 | AS33: -2805249.25 | AT33: =AK33 -> -151474.74 | AW33: =-41237-1862 -> -43099 | AX33: -194573.74 | AY33: -2805249 | AZ33: -192712.16 | BA33: -0.2499999991 | BB33: -1861.58 | BC33: =(AS33-AY33)*(1.47/100) -> -0.003674999986 | BD33: =(AS33-AY33)*(1.47/100)/12*4 -> -0.001224999995 | BE33: -1861.8349 | BF33: -2999823 | BG33: -0.01000000117
A34: 9 | C34: Disposition and Recovery/Refund of Regulatory Balances (2010)4 | D34: 1595 | I34: 0 | N34: 0 | O34: =I34 -> 0 | S34: 0 | T34: 0 | X34: 0 | Y34: 0 | AF34: 0 | AG34: 0 | AK34: 0 | AL34: 0 | AS34: 0 | AT34: 0 | AX34: 0 | BA34: 0 | BB34: 0 | BE34: 0 | BG34: 0
A35: 9 | C35: Disposition and Recovery/Refund of Regulatory Balances (2011)4 | D35: 1595 | I35: 0 | N35: 0 | O35: =I35 -> 0 | S35: 0 | T35: 0 | X35: 0 | Y35: 0 | AF35: 0 | AG35: 0 | AK35: 0 | AL35: 0 | AS35: 0 | AT35: 0 | AX35: 0 | BA35: 0 | BB35: 0 | BE35: =SUM(BA35:BD35) -> 0 | BG35: 0
A36: 9 | C36: Disposition and Recovery/Refund of Regulatory Balances (2012)4 | D36: 1595 | I36: 0 | N36: 0 | O36: =I36 -> 0 | S36: 0 | T36: =N36 -> 0 | X36: 0 | Y36: =S36 -> 0 | AF36: =Y36+Z36-AA36+SUM(AB36:AE36) -> 0 | AG36: =X36 -> 0 | AK36: =AG36+AH36-AI36+AJ36 -> 0 | AL36: =AF36 -> 0 | AM36: 2675.19 | AS36: =AL36+AM36-AN36+SUM(AO36:AR36) -> 2675.19 | AT36: =AK36 -> 0 | AU36: -5659.5 | AX36: =AT36+AU36-AV36+AW36 -> -5659.5 | BA36: 2675.19 | BB36: -5659.5 | BE36: =SUM(BA36:BD36) -> -2984.31 | BF36: -2984 | BG36: 0.31
C38: RSVA - Global Adjustment | D38: 1589 | E38: =E30 -> 37098530.5 | F38: =F30 -> -18434026 | G38: 41485837 | H38: 0 | I38: -22821332.5 | J38: 279299.9 | K38: -90778 | L38: 301804 | M38: 0 | N38: -113282.1 | O38: =O30 -> -22821332.5 | P38: =P30 -> 2042513 | Q38: 0 | R38: 0 | S38: -20778819.5 | T38: -113282.1 | U38: -331638 | V38: 0 | W38: 0 | X38: -444920.1 | Y38: =Y30 -> -20778819.5 | Z38: =Z30 -> -2771959.94 | AA38: -22821333 | AB38: 0 | AC38: 0 | AD38: 0 | AE38: 0 | AF38: =AF30 -> -729446.44 | AG38: -444920.1 | AH38: -31191.42 | AI38: -477146 | AJ38: =AJ30 -> 0 | AK38: 1034.48 | AL38: =AL30 -> -729446.44 | AM38: =AM30 -> 3161417.86 | AN38: 2042512.49 | AO38: 0 | AP38: 0 | AQ38: 0 | AR38: 0 | AS38: 389458.93 | AT38: 1034.48 | AU38: 40514.37 | AV38: 62251.51 | AW38: 0 | AX38: -20702.66 | AY38: -2771959 | AZ38: =AZ30 -> -101964.8 | BA38: 3161417.93 | BB38: 81262.14 | BC38: 46472.84357 | BD38: 15490.94786 | BE38: 3304643.861 | BF38: 368754.8 | BG38: -1.469999999
C39: Total Group 1 Balance excluding Account 1589 - Global Adjustment | E39: =SUM(E24:E29,E31:E36) -> -31141997.51 | F39: =SUM(F24:F29,F31:F36) -> -20377355.6 | G39: -41485837.64 | H39: 0 | I39: -10033515.47 | J39: -1992222.19 | K39: 596107.17 | L39: -302592.55 | M39: 0 | N39: -1093522.47 | O39: =SUM(O24:O29,O31:O36) -> -10033515.47 | P39: =SUM(P24:P29,P31:P36) -> -13407076 | Q39: 0 | R39: 0 | S39: -23440591.47 | T39: -1093522.47 | U39: 440239.3 | V39: 0 | W39: 0 | X39: -653283.17 | Y39: =SUM(Y24:Y29,Y31:Y36) -> -23440591.47 | Z39: =SUM(Z24:Z29,Z31:Z36) -> -5238677.1 | AA39: -16354910 | AB39: 0 | AC39: 0 | AD39: 0 | AE39: 0 | AF39: =SUM(AF24:AF29,AF31:AF36) -> -12324358.57 | AG39: -653283.17 | AH39: -147879.34 | AI39: -453004 | AJ39: =SUM(AJ24:AJ29,AJ31:AJ36) -> 0 | AK39: -348158.51 | AL39: =SUM(AL24:AL29,AL31:AL36) -> -12324358.57 | AM39: =SUM(AM24:AM29,AM31:AM36) -> -1696651.62 | AN39: -4942841.01 | AO39: 0 | AP39: 0 | AQ39: 0 | AR39: 0 | AS39: -9078169.18 | AT39: -348158.51 | AU39: -134917.49 | AV39: -100300.33 | AW39: -43099 | AX39: -425874.67 | AY39: -7381516 | AZ39: =SUM(AZ24:AZ29,AZ31:AZ36) -> -356367.3 | BA39: -1696653.18 | BB39: -69507.37 | BC39: -24980.12601 | BD39: -8326.70867 | BE39: -1799467.385 | BF39: -9504042.87 | BG39: 0.9799999977
C40: Total Group 1 Balance | E40: =SUM(E24:E36) -> 5956532.99 | F40: =SUM(F24:F36) -> -38811381.6 | G40: -0.6400000006 | H40: 0 | I40: -32854847.97 | J40: -1712922.29 | K40: 505329.17 | L40: -788.55 | M40: 0 | N40: -1206804.57 | O40: =SUM(O24:O36) -> -32854847.97 | P40: =SUM(P24:P36) -> -11364563 | Q40: 0 | R40: 0 | S40: -44219410.97 | T40: -1206804.57 | U40: 108601.3 | V40: 0 | W40: 0 | X40: -1098203.27 | Y40: =SUM(Y24:Y36) -> -44219410.97 | Z40: =SUM(Z24:Z36) -> -8010637.04 | AA40: -39176243 | AB40: 0 | AC40: 0 | AD40: 0 | AE40: 0 | AF40: =SUM(AF24:AF36) -> -13053805.01 | AG40: -1098203.27 | AH40: -179070.76 | AI40: -930150 | AJ40: =SUM(AJ24:AJ36) -> 0 | AK40: -347124.03 | AL40: =SUM(AL24:AL36) -> -13053805.01 | AM40: =SUM(AM24:AM36) -> 1464766.24 | AN40: -2900328.52 | AO40: 0 | AP40: 0 | AQ40: 0 | AR40: 0 | AS40: -8688710.25 | AT40: -347124.03 | AU40: -94403.12 | AV40: -38048.82 | AW40: -43099 | AX40: -446577.33 | AY40: -10153475 | AZ40: =SUM(AZ24:AZ36) -> -458332.1 | BA40: 1464764.75 | BB40: 11754.77 | BC40: 21492.71756 | BD40: 7164.239187 | BE40: 1505176.477 | BF40: -9135288.07 | BG40: -0.4900000008
C42: LRAM Variance Account | D42: 1568 | I42: =E42+F42-G42+SUM(H42:H42) -> 0 | N42: =J42+K42-L42+M42 -> 0 | S42: =O42+P42-Q42+SUM(R42:R42) -> 0 | X42: =T42+U42-V42+W42 -> 0 | Y42: =S42 -> 0 | AF42: =Y42+Z42-AA42+SUM(AB42:AE42) -> 0 | AG42: =X42 -> 0 | AK42: =AG42+AH42-AI42+AJ42 -> 0 | AL42: =AF42 -> 0 | AS42: =AL42+AM42-AN42+SUM(AO42:AR42) -> 0 | AT42: =AK42 -> 0 | AX42: =AT42+AU42-AV42+AW42 -> 0 | BA42: =AS42-AY42 -> 0 | BB42: =AX42-AZ42 -> 0 | BE42: =SUM(BA42:BD42) -> 0 | BF42: 0 | BG42: =BF42-SUM(AS42,AX42) -> 0
C44: Total including Account 1568 | E44: =E42+E40 -> 5956532.99 | F44: =F42+F40 -> -38811381.6 | G44: -0.6400000006 | H44: 0 | I44: -32854847.97 | J44: -1712922.29 | K44: 505329.17 | L44: -788.55 | M44: 0 | N44: -1206804.57 | O44: -32854847.97 | P44: -11364563 | Q44: 0 | R44: 0 | S44: -44219410.97 | T44: -1206804.57 | U44: 108601.3 | V44: 0 | W44: 0 | X44: -1098203.27 | Y44: -44219410.97 | Z44: -8010637.04 | AA44: -39176243 | AB44: 0 | AC44: 0 | AD44: 0 | AE44: 0 | AF44: -13053805.01 | AG44: -1098203.27 | AH44: -179070.76 | AI44: -930150 | AJ44: 0 | AK44: -347124.03 | AL44: -13053805.01 | AM44: 1464766.24 | AN44: -2900328.52 | AO44: 0 | AP44: 0 | AQ44: 0 | AR44: 0 | AS44: -8688710.25 | AT44: -347124.03 | AU44: -94403.12 | AV44: -38048.82 | AW44: -43099 | AX44: -446577.33 | AY44: -10153475 | AZ44: -458332.1 | BA44: 1464764.75 | BB44: 11754.77 | BC44: 21492.71756 | BD44: 7164.239187 | BE44: 1505176.477 | BF44: -9135288.07 | BG44: -0.4900000008
C47: For all Board-Approved dispositions, please ensure that the disposition amount has the same sign (e.g: debit balances are to have a positive figure and credit balance are to have a negative figure) as per the related Board decision.
B50: 1 | C50: Please provide explanations for the nature of the adjustments. If the adjustment relates to previously Board Approved disposed balances, please provide amounts for adjustments and include supporting documentations.
B51: 2 | C51: For RSVA accounts only, report the net variance to the account during the year. For all other accounts, record the transactions during the year.
B52: 3 | C52: If the LDC’s rate year begins on January 1, 2015, the projected interest is recorded from January 1, 2014 to December 31, 2014 on the December 31, 2013 balances adjusted for the disposed balances approved by the Board in the 2014 rate decision. If the LDC’s rate year begins on May 1, 2015, the projected interest is recorded from January 1, 2014 to April 30, 2015 on the December 31, 2013 balances adjusted for the disposed interest balances approved by the Board in the 2014 rate decision.
B53: 4 | C53: Include Account 1595 as part of Group 1 accounts (lines 31, 32, 33 and 34) for review and disposition if the recovery (or refund) period has been completed. If the recovery (or refund) period has not been completed, do not include the respective balance in Account 1595 for disposition at this time.

Sheet 6. Billing Det. for Def-Var
AS1: As per Section 3.2.3 of the 2015 Filing Requirements for Electricity Distribution Rate Applications, an applicant may elect to dispose of the Group 1 account balances below the threshold. If doing so, please select YES from the adjacent drop-down cell and also indicate so in the Manager's Summary. If not, please select NO.
A13: In the green shaded cells, enter the most recent Board Approved volumetric forecast. If there is a material difference between the latest Board-approved volumetric forecast and the most recent 12-month actual volumetric data, use the most recent 12-month actual data. Do not enter data for the MicroFit class.
E15: Billed kWh for Non-RPP Customers | F15: Estimated kW for Non-RPP Customers | H15: 1590 Recovery Share Proportion* | I15: 1595 Recovery Share Proportion (2008) 1 | J15: 1595 Recovery Share Proportion (2009) 1 | K15: 1595 Recovery Share Proportion (2010) 1 | L15: 1595 Recovery Share Proportion (2011) 1 | M15: 1595 Recovery Share Proportion (2012) 1 | N15: 1568 LRAM Variance Account Class Allocation ($ amounts)
A16: Rate Class | B16: Unit | C16: Metered kWh | D16: Metered kW
A17: RESIDENTIAL | B17: $/kWh | C17: 1423857475 | E17: 176865 | F17: =IF(ISERROR(D17/C17*E17), 0, D17/C17*E17) -> 0
A18: GENERAL SERVICE LESS THAN 50 KW | B18: $/kWh | C18: 612188100.9 | E18: 17703 | F18: 0
A19: UNMETERED SCATTERED LOAD | B19: $/kWh | C19: 10383026.67 | E19: 2942 | F19: 0
A20: GENERAL SERVICE 50 TO 499 KW | B20: $/kW | C20: 2139657427 | D20: 6222022.09 | E20: 3950 | F20: 11.48641224
A21: GENERAL SERVICE 500 TO 4,999 KW | B21: $/kW | C21: 2249538514 | D21: 5154337.96 | E21: 464 | F21: 1.063157087
A22: LARGE USE > 5000 KW | B22: $/kW | C22: 997124442.8 | D22: 1737266.52 | E22: 9 | F22: 0.01568048882
A23: STREET LIGHTING | B23: $/kW | C23: 19019720.75 | D23: 49889.05 | E23: 49986 | F23: 131.1141255
A24: STANDBY DISTRIBUTION SERVICE | F24: 0
A25: microFIT
B27: Total | C27: =SUM(C17:C25) -> 7451768707 | D27: =SUM(D17:D25) -> 13163515.62 | E27: 251919 | F27: 143.6793753 | H27: 0 | I27: 0 | J27: 0 | K27: 0 | L27: 0 | M27: 0 | N27: 0
M28: Balance as per Sheet 5 | N28: =ROUND('5. 2014 Continuity Schedule'!BE42, 0) -> 0
M29: Variance | N29: =N27-N28 -> 0
A31: Threshold Test
A32: Total Claim (including Account 1568) | B32: ='5. 2014 Continuity Schedule'!BE44 -> 1505176.477
A33: Total Claim for Threshold Test (All Group 1 Accounts) | B33: ='5. 2014 Continuity Schedule'!BE40 -> 1505176.477
A34: Threshold Test (Total claim per kWh) 3 | B34: =IF(ISERROR(B33/C27), 0, B33/C27) -> 0.0002019891567 | D34: =IF(AND(B34>-0.001,B34<0.001),"Claim does not meet the threshold test.","") -> Claim does not meet the threshold test.
A36: =IF(AND(B34>-0.001, B34<0.001), AS1, "") -> As per Section 3.2.3 of the 2015 Filing Requirements for Electricity Distribution Rate Applications, an applicant may elect to dispose of the Group 1 account balances below the threshold. If doing so, please select YES from the adjacent drop-down cell and also indicate so in the Manager's Summary. If not, please select NO. | C36: NO
A40: 1 Residual Account balance to be allocated to rate classes in proportion to the recovery share as established when rate riders were implemented.
A41: 2 The Threshold Test does not include the amount in 1568.

Sheet 6. hidden (hidden)
E1: Billed kWh for Non-RPP Customers | F1: Estimated kW for Non-RPP Customers | G1: Distribution Revenue 1 | H1: 1590 Recovery Share Proportion* | I1: 1595 Recovery Share Proportion (2008) 2 | J1: 1595 Recovery Share Proportion (2009) 2 | K1: 1595 Recovery Share Proportion (2010) 2 | L1: 1595 Recovery Share Proportion (2011) 2 | M1: 1568 LRAM Variance Account Class Allocation
A2: Rate Class | B2: Unit | C2: Metered kWh | D2: Metered kW
A3: RESIDENTIAL | B3: $/kWh | C3: 1423857475 | D3: 0 | E3: 176865 | G3: 0 | H3: 0 | I3: 0 | J3: 0 | K3: 0 | L3: 0 | M3: 0 | N3: 0
A4: GENERAL SERVICE LESS THAN 50 KW | B4: $/kWh | C4: 612188100.9 | D4: 0 | E4: 17703 | G4: 0 | H4: 0 | I4: 0 | J4: 0 | K4: 0 | L4: 0 | M4: 0 | N4: 0
A5: UNMETERED SCATTERED LOAD | B5: $/kWh | C5: 10383026.67 | D5: 0 | E5: 2942 | G5: 0 | H5: 0 | I5: 0 | J5: 0 | K5: 0 | L5: 0 | M5: 0 | N5: 0
A6: GENERAL SERVICE 50 TO 499 KW | B6: $/kW | C6: 2139657427 | D6: 6222022.09 | E6: 3950 | G6: 0 | H6: 0 | I6: 0 | J6: 0 | K6: 0 | L6: 0 | M6: 0 | N6: 0
A7: GENERAL SERVICE 500 TO 4,999 KW | B7: $/kW | C7: 2249538514 | D7: 5154337.96 | E7: 464 | G7: 0 | H7: 0 | I7: 0 | J7: 0 | K7: 0 | L7: 0 | M7: 0 | N7: 0
A8: LARGE USE > 5000 KW | B8: $/kW | C8: 997124442.8 | D8: 1737266.52 | E8: 9 | G8: 0 | H8: 0 | I8: 0 | J8: 0 | K8: 0 | L8: 0 | M8: 0 | N8: 0
A9: STREET LIGHTING | B9: $/kW | C9: 19019720.75 | D9: 49889.05 | E9: 49986 | G9: 0 | H9: 0 | I9: 0 | J9: 0 | K9: 0 | L9: 0 | M9: 0 | N9: 0
A10: STANDBY DISTRIBUTION SERVICE | B10: 0 | C10: 0 | D10: 0 | E10: 0 | G10: 0 | H10: 0 | I10: 0 | J10: 0 | K10: 0 | L10: 0 | M10: 0 | N10: 0
A11: microFIT | B11: 0 | C11: 0 | D11: 0 | E11: 0 | G11: 0 | H11: 0 | I11: 0 | J11: 0 | K11: 0 | L11: 0 | M11: 0 | N11: 0

Sheet 7. Allocating Def-Var Balances
A13: No input required. This workshseet allocates the deferral/variance account balances (Group 1, 1589, and 1568) to the appropriate classes as per the EDDVAR Report dated July 31, 2009
A15: Allocation of Group 1 Accounts (including Account 1568)
C16: % of Total kWh | D16: % of Total non-RPP kWh | N16: 1595 (2008) | O16: 1595 (2009) | P16: 1595 (2010) | Q16: 1595 (2011) | R16: 1595 (2012) | S16: 1568
A17: Rate Class | F17: 1550 | G17: 1551 | H17: 1580 | I17: 1584 | J17: 1586 | K17: 1588 | L17: 1589 | M17: 1590
A19: RESIDENTIAL | C19: =VLOOKUP(A19, '6. Billing Det. for Def-Var'!A17:D25, 3,0)/'6. Billing Det. for Def-Var'!C27 -> 0.1910764452 | D19: =VLOOKUP(A19, '6. Billing Det. for Def-Var'!A17:E25, 5,0)/'6. Billing Det. for Def-Var'!E27 -> 0.7020709037 | F19: =C19* '5. 2014 Continuity Schedule'!BE24 -> 158710.377 | G19: =C19* '5. 2014 Continuity Schedule'!BE25 -> 0 | H19: =C19* '5. 2014 Continuity Schedule'!BE26 -> -936770.2938 | I19: =C19* '5. 2014 Continuity Schedule'!BE27 -> 669736.8132 | J19: =C19* '5. 2014 Continuity Schedule'!BE28 -> 133500.1271 | K19: =C19* '5. 2014 Continuity Schedule'!BE29 -> -368086.9448 | L19: =D19* '5. 2014 Continuity Schedule'!BE30 -> 2320094.302 | M19: ='6. Billing Det. for Def-Var'!H17* '5. 2014 Continuity Schedule'!BE31 -> 0 | N19: ='6. Billing Det. for Def-Var'!I17* '5. 2014 Continuity Schedule'!BE32 -> 0 | O19: ='6. Billing Det. for Def-Var'!J17* '5. 2014 Continuity Schedule'!BE33 -> 0 | P19: ='6. Billing Det. for Def-Var'!K17* '5. 2014 Continuity Schedule'!BE34 -> 0 | Q19: ='6. Billing Det. for Def-Var'!L17* '5. 2014 Continuity Schedule'!BE35 -> 0 | R19: ='6. Billing Det. for Def-Var'!M17* '5. 2014 Continuity Schedule'!BE36 -> 0 | S19: ='6. Billing Det. for Def-Var'!N17 -> 0
A20: GENERAL SERVICE LESS THAN 50 KW | C20: =VLOOKUP(A20, '6. Billing Det. for Def-Var'!A17:D25, 3,0)/'6. Billing Det. for Def-Var'!C27 -> 0.08215339539 | D20: =VLOOKUP(A20, '6. Billing Det. for Def-Var'!A17:E25, 5,0)/'6. Billing Det. for Def-Var'!E27 -> 0.07027258762 | F20: =C20* '5. 2014 Continuity Schedule'!BE24 -> 68237.59118 | G20: =C20* '5. 2014 Continuity Schedule'!BE25 -> 0 | H20: =C20* '5. 2014 Continuity Schedule'!BE26 -> -402764.7692 | I20: =C20* '5. 2014 Continuity Schedule'!BE27 -> 287953.6154 | J20: =C20* '5. 2014 Continuity Schedule'!BE28 -> 57398.43397 | K20: =C20* '5. 2014 Continuity Schedule'!BE29 -> -158259.1318 | L20: =D20* '5. 2014 Continuity Schedule'!BE30 -> 232225.8753 | M20: ='6. Billing Det. for Def-Var'!H18* '5. 2014 Continuity Schedule'!BE31 -> 0 | N20: ='6. Billing Det. for Def-Var'!I18* '5. 2014 Continuity Schedule'!BE32 -> 0 | O20: ='6. Billing Det. for Def-Var'!J18* '5. 2014 Continuity Schedule'!BE33 -> 0 | P20: ='6. Billing Det. for Def-Var'!K18* '5. 2014 Continuity Schedule'!BE34 -> 0 | Q20: ='6. Billing Det. for Def-Var'!L18* '5. 2014 Continuity Schedule'!BE35 -> 0 | R20: ='6. Billing Det. for Def-Var'!M18* '5. 2014 Continuity Schedule'!BE36 -> 0 | S20: ='6. Billing Det. for Def-Var'!N18 -> 0
A21: UNMETERED SCATTERED LOAD | C21: =VLOOKUP(A21, '6. Billing Det. for Def-Var'!A17:D25, 3,0)/'6. Billing Det. for Def-Var'!C27 -> 0.001393364056 | D21: =VLOOKUP(A21, '6. Billing Det. for Def-Var'!A17:E25, 5,0)/'6. Billing Det. for Def-Var'!E27 -> 0.01167835693 | F21: =C21* '5. 2014 Continuity Schedule'!BE24 -> 1157.344823 | G21: =C21* '5. 2014 Continuity Schedule'!BE25 -> 0 | H21: =C21* '5. 2014 Continuity Schedule'!BE26 -> -6831.0987 | I21: =C21* '5. 2014 Continuity Schedule'!BE27 -> 4883.842179 | J21: =C21* '5. 2014 Continuity Schedule'!BE28 -> 973.507113 | K21: =C21* '5. 2014 Continuity Schedule'!BE29 -> -2684.156689 | L21: =D21* '5. 2014 Continuity Schedule'!BE30 -> 38592.81055 | M21: ='6. Billing Det. for Def-Var'!H19* '5. 2014 Continuity Schedule'!BE31 -> 0 | N21: ='6. Billing Det. for Def-Var'!I19* '5. 2014 Continuity Schedule'!BE32 -> 0 | O21: ='6. Billing Det. for Def-Var'!J19* '5. 2014 Continuity Schedule'!BE33 -> 0 | P21: ='6. Billing Det. for Def-Var'!K19* '5. 2014 Continuity Schedule'!BE34 -> 0 | Q21: ='6. Billing Det. for Def-Var'!L19* '5. 2014 Continuity Schedule'!BE35 -> 0 | R21: ='6. Billing Det. for Def-Var'!M19* '5. 2014 Continuity Schedule'!BE36 -> 0 | S21: ='6. Billing Det. for Def-Var'!N19 -> 0
A22: GENERAL SERVICE 50 TO 499 KW | C22: =VLOOKUP(A22, '6. Billing Det. for Def-Var'!A17:D25, 3,0)/'6. Billing Det. for Def-Var'!C27 -> 0.2871341705 | D22: =VLOOKUP(A22, '6. Billing Det. for Def-Var'!A17:E25, 5,0)/'6. Billing Det. for Def-Var'!E27 -> 0.01567964306 | F22: =C22* '5. 2014 Continuity Schedule'!BE24 -> 238497.0706 | G22: =C22* '5. 2014 Continuity Schedule'!BE25 -> 0 | H22: =C22* '5. 2014 Continuity Schedule'!BE26 -> -1407702.352 | I22: =C22* '5. 2014 Continuity Schedule'!BE27 -> 1006426.115 | J22: =C22* '5. 2014 Continuity Schedule'!BE28 -> 200613.1536 | K22: =C22* '5. 2014 Continuity Schedule'!BE29 -> -553131.1799 | L22: =D22* '5. 2014 Continuity Schedule'!BE30 -> 51815.63619 | M22: ='6. Billing Det. for Def-Var'!H20* '5. 2014 Continuity Schedule'!BE31 -> 0 | N22: ='6. Billing Det. for Def-Var'!I20* '5. 2014 Continuity Schedule'!BE32 -> 0 | O22: ='6. Billing Det. for Def-Var'!J20* '5. 2014 Continuity Schedule'!BE33 -> 0 | P22: ='6. Billing Det. for Def-Var'!K20* '5. 2014 Continuity Schedule'!BE34 -> 0 | Q22: ='6. Billing Det. for Def-Var'!L20* '5. 2014 Continuity Schedule'!BE35 -> 0 | R22: ='6. Billing Det. for Def-Var'!M20* '5. 2014 Continuity Schedule'!BE36 -> 0 | S22: ='6. Billing Det. for Def-Var'!N20 -> 0
A23: GENERAL SERVICE 500 TO 4,999 KW | C23: =VLOOKUP(A23, '6. Billing Det. for Def-Var'!A17:D25, 3,0)/'6. Billing Det. for Def-Var'!C27 -> 0.3018798091 | D23: =VLOOKUP(A23, '6. Billing Det. for Def-Var'!A17:E25, 5,0)/'6. Billing Det. for Def-Var'!E27 -> 0.001841861868 | F23: =C23* '5. 2014 Continuity Schedule'!BE24 -> 250744.9741 | G23: =C23* '5. 2014 Continuity Schedule'!BE25 -> 0 | H23: =C23* '5. 2014 Continuity Schedule'!BE26 -> -1479994.236 | I23: =C23* '5. 2014 Continuity Schedule'!BE27 -> 1058110.648 | J23: =C23* '5. 2014 Continuity Schedule'!BE28 -> 210915.5465 | K23: =C23* '5. 2014 Continuity Schedule'!BE29 -> -581536.9681 | L23: =D23* '5. 2014 Continuity Schedule'!BE30 -> 6086.697517 | M23: ='6. Billing Det. for Def-Var'!H21* '5. 2014 Continuity Schedule'!BE31 -> 0 | N23: ='6. Billing Det. for Def-Var'!I21* '5. 2014 Continuity Schedule'!BE32 -> 0 | O23: ='6. Billing Det. for Def-Var'!J21* '5. 2014 Continuity Schedule'!BE33 -> 0 | P23: ='6. Billing Det. for Def-Var'!K21* '5. 2014 Continuity Schedule'!BE34 -> 0 | Q23: ='6. Billing Det. for Def-Var'!L21* '5. 2014 Continuity Schedule'!BE35 -> 0 | R23: ='6. Billing Det. for Def-Var'!M21* '5. 2014 Continuity Schedule'!BE36 -> 0 | S23: ='6. Billing Det. for Def-Var'!N21 -> 0
A24: LARGE USE > 5000 KW | C24: =VLOOKUP(A24, '6. Billing Det. for Def-Var'!A17:D25, 3,0)/'6. Billing Det. for Def-Var'!C27 -> 0.1338104391 | D24: =VLOOKUP(A24, '6. Billing Det. for Def-Var'!A17:E25, 5,0)/'6. Billing Det. for Def-Var'!E27 -> 3.5725769e-05 | F24: =C24* '5. 2014 Continuity Schedule'!BE24 -> 111144.5485 | G24: =C24* '5. 2014 Continuity Schedule'!BE25 -> 0 | H24: =C24* '5. 2014 Continuity Schedule'!BE26 -> -656018.2981 | I24: =C24* '5. 2014 Continuity Schedule'!BE27 -> 469015.3042 | J24: =C24* '5. 2014 Continuity Schedule'!BE28 -> 93489.86269 | K24: =C24* '5. 2014 Continuity Schedule'!BE29 -> -257770.5257 | L24: =D24* '5. 2014 Continuity Schedule'!BE30 -> 118.0609432 | M24: ='6. Billing Det. for Def-Var'!H22* '5. 2014 Continuity Schedule'!BE31 -> 0 | N24: ='6. Billing Det. for Def-Var'!I22* '5. 2014 Continuity Schedule'!BE32 -> 0 | O24: ='6. Billing Det. for Def-Var'!J22* '5. 2014 Continuity Schedule'!BE33 -> 0 | P24: ='6. Billing Det. for Def-Var'!K22* '5. 2014 Continuity Schedule'!BE34 -> 0 | Q24: ='6. Billing Det. for Def-Var'!L22* '5. 2014 Continuity Schedule'!BE35 -> 0 | R24: ='6. Billing Det. for Def-Var'!M22* '5. 2014 Continuity Schedule'!BE36 -> 0 | S24: ='6. Billing Det. for Def-Var'!N22 -> 0
A25: STREET LIGHTING | C25: =VLOOKUP(A25, '6. Billing Det. for Def-Var'!A17:D25, 3,0)/'6. Billing Det. for Def-Var'!C27 -> 0.00255237669 | D25: =VLOOKUP(A25, '6. Billing Det. for Def-Var'!A17:E25, 5,0)/'6. Billing Det. for Def-Var'!E27 -> 0.198420921 | F25: =C25* '5. 2014 Continuity Schedule'!BE24 -> 2120.034556 | G25: =C25* '5. 2014 Continuity Schedule'!BE25 -> 0 | H25: =C25* '5. 2014 Continuity Schedule'!BE26 -> -12513.26745 | I25: =C25* '5. 2014 Continuity Schedule'!BE27 -> 8946.265611 | J25: =C25* '5. 2014 Continuity Schedule'!BE28 -> 1783.279002 | K25: =C25* '5. 2014 Continuity Schedule'!BE29 -> -4916.862134 | L25: =D25* '5. 2014 Continuity Schedule'!BE30 -> 655710.4786 | M25: ='6. Billing Det. for Def-Var'!H23* '5. 2014 Continuity Schedule'!BE31 -> 0 | N25: ='6. Billing Det. for Def-Var'!I23* '5. 2014 Continuity Schedule'!BE32 -> 0 | O25: ='6. Billing Det. for Def-Var'!J23* '5. 2014 Continuity Schedule'!BE33 -> 0 | P25: ='6. Billing Det. for Def-Var'!K23* '5. 2014 Continuity Schedule'!BE34 -> 0 | Q25: ='6. Billing Det. for Def-Var'!L23* '5. 2014 Continuity Schedule'!BE35 -> 0 | R25: ='6. Billing Det. for Def-Var'!M23* '5. 2014 Continuity Schedule'!BE36 -> 0 | S25: ='6. Billing Det. for Def-Var'!N23 -> 0
A26: STANDBY DISTRIBUTION SERVICE | C26: 0 | D26: 0 | F26: =C26* '5. 2014 Continuity Schedule'!BE24 -> 0 | G26: =C26* '5. 2014 Continuity Schedule'!BE25 -> 0 | H26: =C26* '5. 2014 Continuity Schedule'!BE26 -> 0 | I26: =C26* '5. 2014 Continuity Schedule'!BE27 -> 0 | J26: =C26* '5. 2014 Continuity Schedule'!BE28 -> 0 | K26: =C26* '5. 2014 Continuity Schedule'!BE29 -> 0 | L26: =D26* '5. 2014 Continuity Schedule'!BE30 -> 0 | M26: ='6. Billing Det. for Def-Var'!H24* '5. 2014 Continuity Schedule'!BE31 -> 0 | N26: ='6. Billing Det. for Def-Var'!I24* '5. 2014 Continuity Schedule'!BE32 -> 0 | O26: ='6. Billing Det. for Def-Var'!J24* '5. 2014 Continuity Schedule'!BE33 -> 0 | P26: ='6. Billing Det. for Def-Var'!K24* '5. 2014 Continuity Schedule'!BE34 -> 0 | Q26: ='6. Billing Det. for Def-Var'!L24* '5. 2014 Continuity Schedule'!BE35 -> 0 | R26: ='6. Billing Det. for Def-Var'!M24* '5. 2014 Continuity Schedule'!BE36 -> 0 | S26: ='6. Billing Det. for Def-Var'!N24 -> 0
A27: microFIT | C27: 0 | D27: 0 | F27: =C27* '5. 2014 Continuity Schedule'!BE24 -> 0 | G27: =C27* '5. 2014 Continuity Schedule'!BE25 -> 0 | H27: =C27* '5. 2014 Continuity Schedule'!BE26 -> 0 | I27: =C27* '5. 2014 Continuity Schedule'!BE27 -> 0 | J27: =C27* '5. 2014 Continuity Schedule'!BE28 -> 0 | K27: =C27* '5. 2014 Continuity Schedule'!BE29 -> 0 | L27: =D27* '5. 2014 Continuity Schedule'!BE30 -> 0 | M27: ='6. Billing Det. for Def-Var'!H25* '5. 2014 Continuity Schedule'!BE31 -> 0 | N27: ='6. Billing Det. for Def-Var'!I25* '5. 2014 Continuity Schedule'!BE32 -> 0 | O27: ='6. Billing Det. for Def-Var'!J25* '5. 2014 Continuity Schedule'!BE33 -> 0 | P27: ='6. Billing Det. for Def-Var'!K25* '5. 2014 Continuity Schedule'!BE34 -> 0 | Q27: ='6. Billing Det. for Def-Var'!L25* '5. 2014 Continuity Schedule'!BE35 -> 0 | R27: ='6. Billing Det. for Def-Var'!M25* '5. 2014 Continuity Schedule'!BE36 -> 0 | S27: ='6. Billing Det. for Def-Var'!N25 -> 0
A29: Total | C29: =SUM(C19:C27) -> 1 | D29: =SUM(D19:D27) -> 1 | F29: =SUM(F19:F27) -> 830611.9407 | G29: 0 | H29: -4902594.315 | I29: 3505072.603 | J29: 698673.9099 | K29: -1926385.769 | L29: 3304643.861 | M29: 0 | N29: 0 | O29: 0 | P29: 0 | Q29: 0 | R29: 0 | S29: 0
A32: * RSVA - Power (Excluding Global Adjustment)

Sheet 8. Calculation of Def-Var RR
A12: Input required at cell C15 only. This workshseet calculates rate riders related to the Deferral/Variance Account Disposition (if applicable), associated rate riders for the global adjustment account (1589) and Account 1568. Rate Riders will not be generated for the microFIT class.
A15: Please indicate the Rate Rider Recovery Period (in years) | C15: 1
E17: Balance of Accounts Allocated by kWh/kW (RPP) or Distribution Revenue | F17: Deferral/Variance Account Rate Rider | G17: Allocation of Balance in Account 1589 | H17: Billed kWh or Estimated kW for Non-RPP Customers | I17: Global Adjustment Rate Rider | J17: Allocation of Account 1568 | K17: Account 1568 Rate Rider
A18: Rate Class | B18: Unit | C18: Billed kWh | D18: Billed kW or kVA
A20: RESIDENTIAL | B20: $/kWh | C20: 1423857475 | E20: =SUM('7. Allocating Def-Var Balances'!F19:K19)+SUM('7. Allocating Def-Var Balances'!M19:R19) -> -342909.9215 | F20: -0.0002 | G20: 2320094.302 | H20: 176865 | I20: 13.11788258
A21: GENERAL SERVICE LESS THAN 50 KW | B21: $/kWh | C21: 612188100.9 | E21: =SUM('7. Allocating Def-Var Balances'!F20:K20)+SUM('7. Allocating Def-Var Balances'!M20:R20) -> -147434.2603 | F21: -0.0002 | G21: 232225.8753 | H21: 17703 | I21: 13.11788258
A22: UNMETERED SCATTERED LOAD | B22: $/kWh | C22: 10383026.67 | E22: =SUM('7. Allocating Def-Var Balances'!F21:K21)+SUM('7. Allocating Def-Var Balances'!M21:R21) -> -2500.561273 | F22: -0.0002 | G22: 38592.81055 | H22: 2942 | I22: 13.11788258
A23: GENERAL SERVICE 50 TO 499 KW | B23: $/kW | C23: 2139657427 | D23: 6222022.09 | E23: =SUM('7. Allocating Def-Var Balances'!F22:K22)+SUM('7. Allocating Def-Var Balances'!M22:R22) -> -515297.1931 | F23: -0.0828 | G23: 51815.63619 | H23: 11.48641224 | I23: 4511.037485
A24: GENERAL SERVICE 500 TO 4,999 KW | B24: $/kW | C24: 2249538514 | D24: 5154337.96 | E24: =SUM('7. Allocating Def-Var Balances'!F23:K23)+SUM('7. Allocating Def-Var Balances'!M23:R23) -> -541760.0349 | F24: -0.1051 | G24: 6086.697517 | H24: 1.063157087 | I24: 5725.115877
A25: LARGE USE > 5000 KW | B25: $/kW | C25: 997124442.8 | D25: 1737266.52 | E25: =SUM('7. Allocating Def-Var Balances'!F24:K24)+SUM('7. Allocating Def-Var Balances'!M24:R24) -> -240139.1083 | F25: -0.1382 | G25: 118.0609432 | H25: 0.01568048882 | I25: 7529.162168
A26: STREET LIGHTING | B26: $/kW | C26: 19019720.75 | D26: 49889.05 | E26: =SUM('7. Allocating Def-Var Balances'!F25:K25)+SUM('7. Allocating Def-Var Balances'!M25:R25) -> -4580.550416 | F26: -0.0918 | G26: 655710.4786 | H26: 131.1141255 | I26: 5001.066637
A27: STANDBY DISTRIBUTION SERVICE
A28: microFIT
A29: Total | C29: =SUM(C20:C28) -> 7451768707 | D29: =SUM(D20:D28) -> 13163515.62 | E29: =SUM(E20:E28) -> -1794621.63 | G29: =SUM(G20:G28) -> 3304643.861 | H29: =SUM(H20:H28) -> 197653.6794 | J29: =SUM(J20:J28) -> 0

Sheet 9. STS - Billing Det & Rates
A11: Shared Tax Savings
A13: ="Enter your " & '1. Information Sheet'!F32 & " Board-Approved Billing Determinents into columns B, C and D." -> Enter your 2013 Board-Approved Billing Determinents into columns B, C and D.
A14: ="Enter your " & '1. Information Sheet'!F32 & " Board-Approved Base monthly service and volumetric charges into columns G, H and I." -> Enter your 2013 Board-Approved Base monthly service and volumetric charges into columns G, H and I.
A16: Rate Class | B16: Units | C16: Re-based Billed Customers or Connections | D16: Re-based Billed kWh | E16: Re-based Billed kW (if applicable) | G16: ='1. Information Sheet'!F32 &" Base Monthly Service Charge" -> 2013 Base Monthly Service Charge | H16: ='1. Information Sheet'!F32 &" Base Distribution Volumetric Rate kWh" -> 2013 Base Distribution Volumetric Rate kWh | I16: ='1. Information Sheet'!F32 &" Base Distribution Volumetric Rate kW" -> 2013 Base Distribution Volumetric Rate kW
A17: RESIDENTIAL | B17: $/kWh | C17: 176865 | D17: 1423857475 | E17: 0 | G17: 12.83 | H17: 0.0129 | I17: 0
A18: GENERAL SERVICE LESS THAN 50 KW | B18: $/kWh | C18: 17703 | D18: 612188100.9 | E18: 0 | G18: 39.49 | H18: 0.0115 | I18: 0
A19: UNMETERED SCATTERED LOAD | B19: $/kWh | C19: 2942 | D19: 10383026.67 | E19: 0 | G19: 8.15 | H19: 0.0149 | I19: 0
A20: GENERAL SERVICE 50 TO 499 KW | B20: $/kW | C20: 3950 | D20: 0 | E20: 6222022.09 | G20: 69.54 | H20: 0 | I20: 4.1853
A21: GENERAL SERVICE 500 TO 4,999 KW | B21: $/kW | C21: 464 | D21: 0 | E21: 5154338 | G21: 1583.69 | H21: 0 | I21: 2.1536
A22: LARGE USE > 5000 KW | B22: $/kW | C22: 9 | D22: 0 | E22: 1737266.52 | G22: 12486.8 | H22: 0 | I22: 2.6731
A23: STREET LIGHTING | B23: $/kW | C23: 49986 | D23: 0 | E23: 49889 | G23: 1.37 | H23: 0 | I23: 10.4571
A24: STANDBY DISTRIBUTION SERVICE | C24: 0 | D24: 0 | E24: 0 | G24: 0 | H24: 0 | I24: 0
A25: microFIT

Sheet 10. STS - Rebased Rev
A12: Calculation of Rebased Revenue Requirement. No input required.
A15: Rate Class | C15: Re-based Billed Customers or Connections | D15: Re-based Billed kWh | E15: Re-based Billed kW | G15: Rate ReBal Base Service Charge | H15: Rate ReBal Base Distribution Volumetric Rate kWh | I15: Rate ReBal Base Distribution Volumetric Rate kW | K15: Service Charge Revenue | L15: Distribution Volumetric Rate Revenue kWh | M15: Distribution Volumetric Rate Revenue kW | N15: Revenue Requirement from Rates | P15: Service Charge % Revenue | Q15: Distribution Volumetric Rate % Revenue kWh | R15: Distribution Volumetric Rate % Revenue kW | S15: Total % Revenue
C16: A | D16: B | E16: C | G16: D | H16: E | I16: F | K16: G = A * D *12 | L16: H = B * E | M16: I = C * F | N16: J = G + H + I | P16: K = G / J | Q16: L = H / J | R16: M = I / J | S16: N = J / R
A17: RESIDENTIAL | C17: 176865 | D17: 1423857475 | E17: 0 | G17: 12.83 | H17: 0.0129 | I17: 0 | K17: =G17*C17*12 -> 27230135.4 | L17: =H17*D17 -> 18367761.43 | M17: 0 | N17: =SUM(K17,L17,M17) -> 45597896.83 | P17: =IF(ISERROR(K17/N17),0,K17/N17) -> 0.5971796354 | Q17: =IF(ISERROR(L17/N17),0,L17/N17) -> 0.4028203646 | R17: =IF(ISERROR(M17/N17),0,M17/N17) -> 0 | S17: =N17/N26 -> 0.3862228328
A18: GENERAL SERVICE LESS THAN 50 KW | C18: 17703 | D18: 612188100.9 | E18: 0 | G18: 39.49 | H18: 0.0115 | I18: 0 | K18: 8389097.64 | L18: =H18*D18 -> 7040163.16 | M18: 0 | N18: 15429260.8 | P18: 0.5437135161 | Q18: 0.4562864839 | R18: 0 | S18: =N18/N26 -> 0.1306887648
A19: UNMETERED SCATTERED LOAD | C19: 2942 | D19: 10383026.67 | E19: 0 | G19: 8.15 | H19: 0.0149 | I19: 0 | K19: 287727.6 | L19: =H19*D19 -> 154707.0974 | M19: 0 | N19: 442434.6974 | P19: 0.6503278375 | Q19: 0.3496721625 | R19: 0 | S19: =N19/N26 -> 0.003747505785
A20: GENERAL SERVICE 50 TO 499 KW | C20: 3950 | D20: 0 | E20: 6222022.09 | G20: 69.54 | H20: 0 | I20: 4.1853 | K20: 3296196 | L20: 0 | M20: =I20*E20 -> 26041029.05 | N20: 29337225.05 | P20: 0.1123554117 | Q20: 0 | R20: 0.8876445883 | S20: =N20/N26 -> 0.2484918594
A21: GENERAL SERVICE 500 TO 4,999 KW | C21: 464 | D21: 0 | E21: 5154338 | G21: 1583.69 | H21: 0 | I21: 2.1536 | K21: 8817985.92 | L21: 0 | M21: =I21*E21 -> 11100382.32 | N21: 19918368.24 | P21: 0.4427062405 | Q21: 0 | R21: 0.5572937595 | S21: =N21/N26 -> 0.1687123561
A22: LARGE USE > 5000 KW | C22: 9 | D22: 0 | E22: 1737266.52 | G22: 12486.8 | H22: 0 | I22: 2.6731 | K22: 1348574.4 | L22: 0 | M22: =I22*E22 -> 4643887.135 | N22: 5992461.535 | P22: 0.2250451492 | Q22: 0 | R22: 0.7749548508 | S22: =N22/N26 -> 0.05075728554
A23: STREET LIGHTING | C23: 49986 | D23: 0 | E23: 49889 | G23: 1.37 | H23: 0 | I23: 10.4571 | K23: 821769.84 | L23: 0 | M23: =I23*E23 -> 521694.2619 | N23: 1343464.102 | P23: 0.6116797902 | Q23: 0 | R23: 0.3883202098 | S23: =N23/N26 -> 0.0113793957
A24: STANDBY DISTRIBUTION SERVICE | C24: 0 | D24: 0 | E24: 0 | G24: 0 | H24: 0 | I24: 0 | K24: 0 | L24: 0 | M24: 0 | N24: 0 | P24: 0 | Q24: 0 | R24: 0 | S24: =N24/N26 -> 0
A25: microFIT | K25: 0 | L25: 0 | M25: 0 | N25: 0 | P25: 0 | Q25: 0 | R25: 0 | S25: =N25/N26 -> 0
A26: Total | C26: =SUM(C17:C25) -> 251919 | D26: =SUM(D17:D25) -> 2046428602 | E26: =SUM(E17:E25) -> 13163515.61 | K26: =SUM(K17:K25) -> 50191486.8 | L26: =SUM(L17:L25) -> 25562631.68 | M26: =SUM(M17:M25) -> 42306992.77 | N26: =SUM(N17:N25) -> 118061111.2 | S26: =SUM(S17:S25) -> 1

Sheet 9. STS - Billing Det & Rate HID (hidden)
A11: Shared Tax Savings
A12: ="Enter your " & '1. Information Sheet'!F32 & " Board-Approved Billing Determinents into columns B, C and D." -> Enter your 2013 Board-Approved Billing Determinents into columns B, C and D.
A16: Rate Class | B16: Units | C16: Re-based Billed Customers or Connections | D16: Re-based Billed kWh | E16: Re-based Billed kW (if applicable) | G16: ='1. Information Sheet'!F32 &" Base Monthly Service Charge" -> 2013 Base Monthly Service Charge | H16: ='1. Information Sheet'!F32 &" Base Distribution Volumetric Rate kWh" -> 2013 Base Distribution Volumetric Rate kWh | I16: ='1. Information Sheet'!F32 &" Base Distribution Volumetric Rate kW" -> 2013 Base Distribution Volumetric Rate kW
A17: RESIDENTIAL | B17: $/kWh | C17: 176865 | D17: 1423857475 | E17: 0 | G17: 12.83 | H17: 0.0129 | I17: 0
A18: GENERAL SERVICE LESS THAN 50 KW | B18: $/kWh | C18: 17703 | D18: 612188100.9 | E18: 0 | G18: 39.49 | H18: 0.0115 | I18: 0
A19: UNMETERED SCATTERED LOAD | B19: $/kWh | C19: 2942 | D19: 10383026.67 | E19: 0 | G19: 8.15 | H19: 0.0149 | I19: 0
A20: GENERAL SERVICE 50 TO 499 KW | B20: $/kW | C20: 3950 | D20: 0 | E20: 6222022.09 | G20: 69.54 | H20: 0 | I20: 4.1853
A21: GENERAL SERVICE 500 TO 4,999 KW | B21: $/kW | C21: 464 | D21: 0 | E21: 5154338 | G21: 1583.69 | H21: 0 | I21: 2.1536
A22: LARGE USE > 5000 KW | B22: $/kW | C22: 9 | D22: 0 | E22: 1737266.52 | G22: 12486.8 | H22: 0 | I22: 2.6731
A23: STREET LIGHTING | B23: $/kW | C23: 49986 | D23: 0 | E23: 49889 | G23: 1.37 | H23: 0 | I23: 10.4571
A24: STANDBY DISTRIBUTION SERVICE | B24: 0 | C24: 0 | D24: 0 | E24: 0 | G24: 0 | H24: 0 | I24: 0
A25: microFIT | B25: 0 | C25: 0 | D25: 0 | E25: 0 | G25: 0 | H25: 0 | I25: 0

Sheet 11. STS - Tax Change
T1: Rate Base | U1: Federal Tax Rate
T2: 500000 | U2: 0.11
T3: 10000000 | U3: 0.11
T4: =T3+100000 -> 10100000 | U4: 0.11
T5: =T4+100000 -> 10200000 | U5: 0.11
T6: 10300000 | U6: 0.11
T7: 10400000 | U7: 0.11
T8: 10500000 | U8: 0.11
T9: 10600000 | U9: 0.11
T10: 10700000 | U10: 0.11
T11: 10800000 | U11: 0.11
T12: 10900000 | U12: 0.11
A13: Summary - Sharing of Tax Change Forecast Amounts | T13: 11000000 | U13: 0.11
T14: 11100000 | U14: 0.111
A15: ="For the " & '1. Information Sheet'!F32 & " year, enter any Tax Credits from the Cost of Service Tax Calculation (Positive #)" -> For the 2013 year, enter any Tax Credits from the Cost of Service Tax Calculation (Positive #) | L15: 400000 | T15: 11200000 | U15: =U14+0.13% -> 0.1123 | V15: =U15-U14 -> 0.0013
T16: 11300000 | U16: =U15+0.13% -> 0.1136 | V16: =U16-U15 -> 0.0013
T17: 11400000 | U17: 0.1149 | V17: 0.0013
A18: 1. Tax Related Amounts Forecast from Capital Tax Rate Changes | L18: ='1. Information Sheet'!F32 -> 2013 | N18: 2015 | T18: 11500000 | U18: 0.1162 | V18: 0.0013
A19: Taxable Capital (if you are not claiming capital tax, please enter your Board-Approved Rate Base) | L19: 623497833 | N19: =L19 -> 623497833 | T19: 11600000 | U19: =U18+0.12% -> 0.1174 | V19: 0.0012
T20: 11700000 | U20: =U19+0.12% -> 0.1186 | V20: 0.0012
A21: Deduction from taxable capital up to $15,000,000 | L21: 15000000 | N21: =L21 -> 15000000 | T21: 11800000 | U21: 0.1198 | V21: 0.0012
T22: 11900000 | U22: 0.121 | V22: 0.0012
A23: Net Taxable Capital | L23: =L19-L21 -> 608497833 | N23: =N19-N21 -> 608497833 | T23: 12000000 | U23: =U22+0.112% -> 0.12212 | V23: 0.00112
T24: 12100000 | U24: =U23+0.112% -> 0.12324 | V24: 0.00112
A25: Rate | L25: 0 | N25: 0 | T25: 12200000 | U25: 0.12436 | V25: 0.00112
T26: 12300000 | U26: 0.12548 | V26: 0.00112
A27: Ontario Capital Tax (Deductible, not grossed-up) | L27: =IF(L23>0, L23*L25, 0)*181/365 -> 0 | N27: 0 | T27: 12400000 | U27: 0.1266 | V27: 0.00112
T28: 12500000 | U28: 0.12772 | V28: 0.00112
A29: 2. Tax Related Amounts Forecast from lncome Tax Rate Changes | T29: 12600000 | U29: =U28+0.102% -> 0.12874 | V29: 0.00102
A30: Regulatory Taxable Income | L30: 10223751 | N30: =L30 -> 10223751 | T30: 12700000 | U30: =U29+0.102% -> 0.12976 | V30: 0.00102
T31: 12800000 | U31: 0.13078 | V31: 0.00102
A32: Corporate Tax Rate | L32: 0.2616 | N32: =IF(N30=0,0,IF(N30<=500000,4.5%+11%,IF(N30>500000,(11.5%*N30-35000)/N30+VLOOKUP(N19,T:U,2,TRUE),""))) -> 0.2615765989 | T32: 12900000 | U32: 0.1318 | V32: 0.00102
T33: 13000000 | U33: 0.13282 | V33: 0.00102
A34: Tax Impact | L34: 2274294 | N34: =N30*N32-L15 -> 2274294.015 | T34: 13100000 | U34: =U33+0.096% -> 0.13378 | V34: 0.00096
T35: 13200000 | U35: =U34+0.096% -> 0.13474 | V35: 0.00096
A36: Grossed-up Tax Amount | L36: 3079932 | N36: =N34/(1-N32) -> 3079932.207 | T36: 13300000 | U36: 0.1357 | V36: 0.00096
T37: 13400000 | U37: 0.13666 | V37: 0.00096
A38: Tax Related Amounts Forecast from Capital Tax Rate Changes | L38: =L27 -> 0 | N38: =N27 -> 0 | T38: 13500000 | U38: 0.13762 | V38: 0.00096
T39: 13600000 | U39: =U38+0.088% -> 0.1385 | V39: 0.00088
A40: Tax Related Amounts Forecast from lncome Tax Rate Changes | L40: =L36 -> 3079932 | N40: =N36 -> 3079932.207 | T40: 13700000 | U40: =U39+0.088% -> 0.13938 | V40: 0.00088
T41: 13800000 | U41: 0.14026 | V41: 0.00088
A42: Total Tax Related Amounts | L42: =SUM(L40,L38) -> 3079932 | N42: =SUM(N40,N38) -> 3079932.207 | T42: 13900000 | U42: 0.14114 | V42: 0.00088
T43: 14000000 | U43: 0.14202 | V43: 0.00088
A44: Incremental Tax Savings | N44: =N42-L42 -> 0.2065612469 | T44: 14100000 | U44: =U43+0.082% -> 0.14284 | V44: 0.00082
T45: 14200000 | U45: =U44+0.082% -> 0.14366 | V45: 0.00082
A46: Sharing of Tax Savings (50%) | N46: =0.5*N44 -> 0.1032806234 | T46: 14300000 | U46: 0.14448 | V46: 0.00082
T47: 14400000 | U47: 0.1453 | V47: 0.00082
T48: 14500000 | U48: 0.14612 | V48: 0.00082
T49: 14600000 | U49: =U48+0.076% -> 0.14688 | V49: 0.00076
T50: 14700000 | U50: =U49+0.076% -> 0.14764 | V50: 0.00076
T51: 14800000 | U51: 0.1484 | V51: 0.00076
T52: 14900000 | U52: 0.14916 | V52: 0.00076
T53: 15000000 | U53: 0.15 | V53: 0.00084

Sheet 12. STS - Tax Change Rate Rider
A11: This worksheet calculates a tax change volumetric rate rider. If the rate riders are material (round to 4 decimal places), then the outputs in columns M and O will appear on Sheet 27 - Final Tariff Schedule.
A15: Rate Class | C15: Total Revenue $ by Rate Class | E15: Total Revenue % by Rate Class | G15: Allocation of Tax Savings by Rate Class | I15: Billed kWh | K15: Billed kW | M15: Distribution Volumetric Rate kWh Rate Rider | O15: Distribution Volumetric Rate kW Rate Rider
A17: RESIDENTIAL | C17: 45597896.83 | E17: =C17/C26 -> 0.3862228328 | G17: =E17*G26 -> 0.03862228328 | I17: 1423857475 | K17: 0 | M17: =ROUND(G17/I17,4) -> 0
A18: GENERAL SERVICE LESS THAN 50 KW | C18: 15429260.8 | E18: =C18/C26 -> 0.1306887648 | G18: =E18*G26 -> 0.01306887648 | I18: 612188100.9 | K18: 0 | M18: =ROUND(G18/I18,4) -> 0
A19: UNMETERED SCATTERED LOAD | C19: 442434.6974 | E19: =C19/C26 -> 0.003747505785 | G19: =E19*G26 -> 0.0003747505785 | I19: 10383026.67 | K19: 0 | M19: =ROUND(G19/I19,4) -> 0
A20: GENERAL SERVICE 50 TO 499 KW | C20: 29337225.05 | E20: =C20/C26 -> 0.2484918594 | G20: =E20*G26 -> 0.02484918594 | I20: 0 | K20: 6222022.09
A21: GENERAL SERVICE 500 TO 4,999 KW | C21: 19918368.24 | E21: =C21/C26 -> 0.1687123561 | G21: =E21*G26 -> 0.01687123561 | I21: 0 | K21: 5154338
A22: LARGE USE > 5000 KW | C22: 5992461.535 | E22: =C22/C26 -> 0.05075728554 | G22: =E22*G26 -> 0.005075728554 | I22: 0 | K22: 1737266.52
A23: STREET LIGHTING | C23: 1343464.102 | E23: =C23/C26 -> 0.0113793957 | G23: =E23*G26 -> 0.00113793957 | I23: 0 | K23: 49889
A24: STANDBY DISTRIBUTION SERVICE | C24: 0 | E24: =C24/C26 -> 0 | G24: =E24*G26 -> 0 | I24: 0 | K24: 0
A25: microFIT | C25: 0 | E25: =C25/C26 -> 0 | G25: =E25*G26 -> 0
A26: Total | C26: =SUM(C17:C25) -> 118061111.2 | E26: =SUM(E17:E25) -> 1 | G26: 0.1 | I26: =SUM(I17:I25) -> 2046428602 | K26: =SUM(K17:K25) -> 13163515.61
A28: One or more rate classes appear to have negligible rate riders in columns M and/or O. As per Appendix B of the Filing Requirements, please provide details of the Applicant's proposal in the Manager's Summary.

Sheet 13. RTSR Rate Sheet
A13: No input required. This sheet consolidates all Current Retail Transmission Rates entered on Sheet 4.
A15: Rate Class | B15: Rate Description | C15: Unit | D15: RTSR-Network | E15: RTSR-Connection
A17: RESIDENTIAL | B17: Retail Transmission Rate - Network Service Rate | C17: $/kWh | D17: 0.0076
A18: RESIDENTIAL | B18: Retail Transmission Rate - Line and Transformation Connection Service Rate | C18: $/kWh | E18: 0.0058
A19: GENERAL SERVICE LESS THAN 50 KW | B19: Retail Transmission Rate - Network Service Rate | C19: $/kWh | D19: 0.0071
A20: GENERAL SERVICE LESS THAN 50 KW | B20: Retail Transmission Rate - Line and Transformation Connection Service Rate | C20: $/kWh | E20: 0.0052
A21: UNMETERED SCATTERED LOAD | B21: Retail Transmission Rate - Network Service Rate | C21: $/kWh | D21: 0.0071
A22: UNMETERED SCATTERED LOAD | B22: Retail Transmission Rate - Line and Transformation Connection Service Rate | C22: $/kWh | E22: 0.0052
A23: GENERAL SERVICE 50 TO 499 KW | B23: Retail Transmission Rate - Network Service Rate | C23: $/kW | D23: 2.74
A24: GENERAL SERVICE 50 TO 499 KW | B24: Retail Transmission Rate - Line and Transformation Connection Service Rate | C24: $/kW | E24: 2.047
A25: GENERAL SERVICE 50 TO 499 KW | B25: Retail Transmission Rate - Network Service Rate - Interval Metered | C25: $/kW | D25: 2.74
A26: GENERAL SERVICE 50 TO 499 KW | B26: Retail Transmission Rate - Line and Transformation Connection Service Rate - Interval Metered | C26: $/kW | E26: 2.047
A27: GENERAL SERVICE 500 TO 4,999 KW | B27: Retail Transmission Rate - Network Service Rate - Interval Metered | C27: $/kW | D27: 2.6508
A28: GENERAL SERVICE 500 TO 4,999 KW | B28: Retail Transmission Rate - Line and Transformation Connection Service Rate - Interval Metered | C28: $/kW | E28: 2.003
A29: LARGE USE > 5000 KW | B29: Retail Transmission Rate - Network Service Rate - Interval Metered | C29: $/kW | D29: 2.8287
A30: LARGE USE > 5000 KW | B30: Retail Transmission Rate - Line and Transformation Connection Service Rate - Interval Metered | C30: $/kW | E30: 2.1393
A31: STREET LIGHTING | B31: Retail Transmission Rate - Network Service Rate | C31: $/kW | D31: 1.8974
A32: STREET LIGHTING | B32: Retail Transmission Rate - Line and Transformation Connection Service Rate | C32: $/kW | E32: 1.4801

Sheet 14. RTSR RRR Data
A12: In the green shaded cells, enter the most recent reported RRR billing determinants. Please ensure that billing determinants are non-loss adjusted.
A14: Rate Class | B14: Rate Description | C14: Unit | D14: Non-Loss Adjusted Metered kWh | E14: Non-Loss Adjusted Metered kW | F14: Applicable Loss Factor | H14: Load Factor | I14: Loss Adjusted Billed kWh | J14: Billed kW
A15: RESIDENTIAL | B15: Retail Transmission Rate - Network Service Rate | C15: $/kWh | D15: 1513631515 | E15: 0 | F15: 1 | H15: =IF(C15="$/kW", D15/(E15* 30.4 * 24), "" ) ->  | I15: =IF(OR(F15=0, OR(ISBLANK(F15), TRIM(F15)="")), F15, F15 * D15) -> 1513631515 | J15: =IF(OR(F15=0, OR(ISBLANK(F15), TRIM(F15)="")), E15, E15) -> 0
A16: RESIDENTIAL | B16: Retail Transmission Rate - Line and Transformation Connection Service Rate | C16: $/kWh | D16: 1513631515 | E16: 0 | F16: 1 | I16: 1513631515 | J16: 0
A17: GENERAL SERVICE LESS THAN 50 KW | B17: Retail Transmission Rate - Network Service Rate | C17: $/kWh | D17: 645357536.3 | E17: 0 | F17: 1 | I17: 645357536.3 | J17: 0
A18: GENERAL SERVICE LESS THAN 50 KW | B18: Retail Transmission Rate - Line and Transformation Connection Service Rate | C18: $/kWh | D18: 645357536.3 | E18: 0 | F18: 1 | I18: 645357536.3 | J18: 0
A19: UNMETERED SCATTERED LOAD | B19: Retail Transmission Rate - Network Service Rate | C19: $/kWh | D19: 10388389.9 | E19: 0 | F19: 1 | I19: 10388389.9 | J19: 0
A20: UNMETERED SCATTERED LOAD | B20: Retail Transmission Rate - Line and Transformation Connection Service Rate | C20: $/kWh | D20: 10388389.9 | E20: 0 | F20: 1 | I20: 10388389.9 | J20: 0
A21: GENERAL SERVICE 50 TO 499 KW | B21: Retail Transmission Rate - Network Service Rate | C21: $/kW | D21: 1057606939 | E21: 3077693.4 | F21: 0 | H21: 0 | I21: 0 | J21: 3077693.4
A22: GENERAL SERVICE 50 TO 499 KW | B22: Retail Transmission Rate - Line and Transformation Connection Service Rate | C22: $/kW | D22: 1057606939 | E22: 3077693.4 | F22: 0 | H22: 0 | I22: 0 | J22: 3077693.4
A23: GENERAL SERVICE 50 TO 499 KW | B23: Retail Transmission Rate - Network Service Rate - Interval Metered | C23: $/kW | D23: 1057606939 | E23: 3077693.4 | F23: 0 | H23: 0 | I23: 0 | J23: 3077693.4
A24: GENERAL SERVICE 50 TO 499 KW | B24: Retail Transmission Rate - Line and Transformation Connection Service Rate - Interval Metered | C24: $/kW | D24: 1057606939 | E24: 3077693.4 | F24: 0 | H24: 0 | I24: 0 | J24: 3077693.4
A25: GENERAL SERVICE 500 TO 4,999 KW | B25: Retail Transmission Rate - Network Service Rate - Interval Metered | C25: $/kW | D25: 2113648698 | E25: 4849311.77 | F25: 0 | H25: 0 | I25: 0 | J25: 4849311.77
A26: GENERAL SERVICE 500 TO 4,999 KW | B26: Retail Transmission Rate - Line and Transformation Connection Service Rate - Interval Metered | C26: $/kW | D26: 2113648698 | E26: 4849311.77 | F26: 0 | H26: 0 | I26: 0 | J26: 4849311.77
A27: LARGE USE > 5000 KW | B27: Retail Transmission Rate - Network Service Rate - Interval Metered | C27: $/kW | D27: 1001404045 | E27: 1755221 | F27: 0 | H27: 0 | I27: 0 | J27: 1755221
A28: LARGE USE > 5000 KW | B28: Retail Transmission Rate - Line and Transformation Connection Service Rate - Interval Metered | C28: $/kW | D28: 1001404045 | E28: 1755221 | F28: 0 | H28: 0 | I28: 0 | J28: 1755221
A29: STREET LIGHTING | B29: Retail Transmission Rate - Network Service Rate | C29: $/kW | D29: 37452940.7 | E29: 105994 | F29: 0 | H29: 0 | I29: 0 | J29: 105994
A30: STREET LIGHTING | B30: Retail Transmission Rate - Line and Transformation Connection Service Rate | C30: $/kW | D30: 37452940.7 | E30: 105994 | F30: 0 | H30: 0 | I30: 0 | J30: 105994

Sheet 14. RTSR RRR Data Copy (hidden)
A12: In the green shaded cells, enter the most recent reported RRR billing determinants. Please ensure that billing determinants are non-loss adjusted.
A14: Rate Class | B14: Rate Description | C14: Unit | D14: Non-Loss Adjusted Metered kWh | E14: Non-Loss Adjusted Metered kW | F14: Applicable Loss Factor | H14: Load Factor | I14: Loss Adjusted Billed kWh | J14: Billed kW
A15: RESIDENTIAL | B15: Retail Transmission Rate - Network Service Rate | C15: $/kWh | D15: 1513631515 | E15: 0 | F15: 1
A16: RESIDENTIAL | B16: Retail Transmission Rate - Line and Transformation Connection Service Rate | C16: $/kWh | D16: 1513631515 | E16: 0 | F16: 1
A17: GENERAL SERVICE LESS THAN 50 KW | B17: Retail Transmission Rate - Network Service Rate | C17: $/kWh | D17: 645357536.3 | E17: 0 | F17: 1
A18: GENERAL SERVICE LESS THAN 50 KW | B18: Retail Transmission Rate - Line and Transformation Connection Service Rate | C18: $/kWh | D18: 645357536.3 | E18: 0 | F18: 1
A19: UNMETERED SCATTERED LOAD | B19: Retail Transmission Rate - Network Service Rate | C19: $/kWh | D19: 10388389.9 | E19: 0 | F19: 1
A20: UNMETERED SCATTERED LOAD | B20: Retail Transmission Rate - Line and Transformation Connection Service Rate | C20: $/kWh | D20: 10388389.9 | E20: 0 | F20: 1
A21: GENERAL SERVICE 50 TO 499 KW | B21: Retail Transmission Rate - Network Service Rate | C21: $/kW | D21: 1057606939 | E21: 3077693.4 | F21: 0
A22: GENERAL SERVICE 50 TO 499 KW | B22: Retail Transmission Rate - Line and Transformation Connection Service Rate | C22: $/kW | D22: 1057606939 | E22: 3077693.4 | F22: 0
A23: GENERAL SERVICE 50 TO 499 KW | B23: Retail Transmission Rate - Network Service Rate - Interval Metered | C23: $/kW | D23: 1057606939 | E23: 3077693.4 | F23: 0
A24: GENERAL SERVICE 50 TO 499 KW | B24: Retail Transmission Rate - Line and Transformation Connection Service Rate - Interval Metered | C24: $/kW | D24: 1057606939 | E24: 3077693.4 | F24: 0
A25: GENERAL SERVICE 500 TO 4,999 KW | B25: Retail Transmission Rate - Network Service Rate - Interval Metered | C25: $/kW | D25: 2113648698 | E25: 4849311.77 | F25: 0
A26: GENERAL SERVICE 500 TO 4,999 KW | B26: Retail Transmission Rate - Line and Transformation Connection Service Rate - Interval Metered | C26: $/kW | D26: 2113648698 | E26: 4849311.77 | F26: 0
A27: LARGE USE > 5000 KW | B27: Retail Transmission Rate - Network Service Rate - Interval Metered | C27: $/kW | D27: 1001404045 | E27: 1755221 | F27: 0
A28: LARGE USE > 5000 KW | B28: Retail Transmission Rate - Line and Transformation Connection Service Rate - Interval Metered | C28: $/kW | D28: 1001404045 | E28: 1755221 | F28: 0
A29: STREET LIGHTING | B29: Retail Transmission Rate - Network Service Rate | C29: $/kW | D29: 37452940.7 | E29: 105994 | F29: 0
A30: STREET LIGHTING | B30: Retail Transmission Rate - Line and Transformation Connection Service Rate | C30: $/kW | D30: 37452940.7 | E30: 105994 | F30: 0

Sheet 15. RTSR - UTRs & Sub-Tx
B18: Uniform Transmission Rates | C18: Unit | E18: Effective January 1, 2013 | G18: Effective January 1, 2014 | I18: Effective January 1, 2015
B20: Rate Description | E20: Rate | G20: Rate | I20: Rate
B22: Network Service Rate | C22: kW | E22: 3.63 | G22: 3.82 | I22: 3.82
B24: Line Connection Service Rate | C24: kW | E24: 0.75 | G24: 0.82 | I24: 0.82
B26: Transformation Connection Service Rate | C26: kW | E26: 1.85 | G26: 1.98 | I26: 1.98
B29: Hydro One Sub-Transmission Rates | C29: Unit | E29: Effective January 1, 2013 | G29: Effective January 1, 2014 | I29: Effective January 1, 2015
B33: Rate Description | E33: Rate | G33: Rate | I33: Rate
B35: Network Service Rate | C35: kW | E35: 3.18 | G35: 3.23 | I35: 3.23
B37: Line Connection Service Rate | C37: kW | E37: 0.7 | G37: 0.65 | I37: 0.65
B39: Transformation Connection Service Rate | C39: kW | E39: 1.63 | G39: 1.62 | I39: 1.62
B41: Both Line and Transformation Connection Service Rate | C41: kW | E41: =E39+E37 -> 2.33 | G41: =G39+G37 -> 2.27 | I41: =I39+I37 -> 2.27
B44: If needed , add extra host here (I) | C44: Unit | E44: Effective January 1, 2013 | G44: Effective January 1, 2014 | I44: Effective January 1, 2015
B48: Rate Description | E48: Rate | G48: Rate | I48: Rate
B50: Network Service Rate | C50: kW
B52: Line Connection Service Rate | C52: kW
B54: Transformation Connection Service Rate | C54: kW
B56: Both Line and Transformation Connection Service Rate | C56: kW | E56: =E54+E52 -> 0 | G56: =G54+G52 -> 0 | I56: =I54+I52 -> 0
B59: If needed , add extra host here (II) | C59: Unit | E59: Effective January 1, 2013 | G59: Effective January 1, 2014 | I59: Effective January 1, 2015
B63: Rate Description | E63: Rate | G63: Rate | I63: Rate
B65: Network Service Rate | C65: kW
B67: Line Connection Service Rate | C67: kW
B69: Transformation Connection Service Rate | C69: kW
B71: Both Line and Transformation Connection Service Rate | C71: kW | E71: =E69+E67 -> 0 | G71: =G69+G67 -> 0 | I71: =I69+I67 -> 0
B75: Hydro One Sub-Transmission Rate Rider 9A | C75: Unit | E75: Effective January 1, 2013 | G75: Effective January 1, 2014 | I75: Effective January 1, 2015
B77: Rate Description | E77: Rate | G77: Rate | I77: Rate
B79: RSVA Transmission network – 4714 – which affects 1584 | C79: kW | E79: 0 | G79: 0.1465 | I79: 0.1465
B81: RSVA Transmission connection – 4716 – which affects 1586 | C81: kW | E81: 0 | G81: 0.0667 | I81: 0.0667
B83: RSVA LV – 4750 – which affects 1550 | C83: kW | E83: 0 | G83: 0.0475 | I83: 0.0475
B85: RARA 1 – 2252 – which affects 1590 | C85: kW | E85: 0 | G85: 0.0419 | I85: 0.0419
B87: RARA 1 – 2252 – which affects 1590 (2008) | C87: kW | E87: 0 | G87: -0.027 | I87: -0.027
B89: RARA 1 – 2252 – which affects 1590 (2009) | C89: kW | E89: 0 | G89: -0.0006 | I89: -0.0006
B91: Hydro One Sub-Transmission Rate Rider 9A | C91: kW | E91: =SUM(E79:E89) -> 0 | G91: =SUM(G79:G89) -> 0.275 | I91: =SUM(I79:I89) -> 0.275
E94: Historical 2013 | G94: Current 2014 | I94: Forecast 2015
B95: Low Voltage Switchgear Credit (if applicable, enter as a negative value) | C95: $

Sheet 16. RTSR - Historical Wholesale
B13: In the green shaded cells, enter billing detail for wholesale transmission for the same reporting period as the billing determinants on Sheet "14. RTSR RRR Data". For Hydro One Sub-transmission Rates, if you are charged a combined Line and Transformer connection rate, please ensure that both the line connection and transformer connection columns are completed.
B16: IESO | D16: Network | H16: Line Connection | L16: Transformation Connection | P16: Total Line
B17: Month | D17: Units Billed | E17: Rate | F17: Amount | H17: Units Billed | I17: Rate | J17: Amount | L17: Units Billed | M17: Rate | N17: Amount | P17: Amount
B19: January | D19: 961623 | E19: =IF(D19<>0,F19/D19,0) -> 3.62999949 | F19: 3490691 | H19: 989387 | I19: =IF(H19<>0,J19/H19,0) -> 0.7499997473 | J19: 742040 | L19: 989387 | M19: =IF(L19<>0,N19/L19,0) -> 1.850000051 | N19: 1830366 | P19: =J19+N19 -> 2572406
B20: February | D20: 928604 | E20: 3.630000517 | F20: 3370833 | H20: 973225 | I20: 0.7500002569 | J20: 729919 | L20: 973225 | M20: 1.849999743 | N20: 1800466 | P20: 2530385
B21: March | D21: 888431 | E21: 3.630000529 | F21: 3225005 | H21: 931789 | I21: 0.7500002683 | J21: 698842 | L21: 931789 | M21: 1.850000376 | N21: 1723810 | P21: 2422652
B22: April | D22: 836174 | E22: 3.630000454 | F22: 3035312 | H22: 916396 | I22: 0.75 | J22: 687297 | L22: 916396 | M22: 1.850000436 | N22: 1695333 | P22: 2382630
B23: May | D23: 1102652 | E23: 3.630000218 | F23: 4002627 | H23: 1130508 | I23: 0.75 | J23: 847881 | L23: 1130508 | M23: 1.850000177 | N23: 2091440 | P23: 2939321
B24: June | D24: 1205228 | E24: 3.630000299 | F24: 4374978 | H24: 1236533 | I24: 0.7500002022 | J24: 927400 | L24: 1236533 | M24: 1.84999996 | N24: 2287586 | P24: 3214986
B25: July | D25: 1335784 | E25: 3.63000006 | F25: 4848896 | H25: 1397646 | I25: 0.7500003577 | J25: 1048235 | L25: 1397646 | M25: 1.849999928 | N25: 2585645 | P25: 3633880
B26: August | D26: 1218826 | E26: 3.629999688 | F26: 4424338 | H26: 1246993 | I26: 0.7500002005 | J26: 935245 | L26: 1246993 | M26: 1.84999996 | N26: 2306937 | P26: 3242182
B27: September | D27: 1215881 | E27: 3.629999975 | F27: 4413648 | H27: 1225338 | I27: 0.7500004081 | J27: 919004 | L27: 1225338 | M27: 1.849999755 | N27: 2266875 | P27: 3185879
B28: October | D28: 862329 | E28: 3.629999687 | F28: 3130254 | H28: 930790 | I28: 0.7500005372 | J28: 698093 | L28: 930790 | M28: 1.850000537 | N28: 1721962 | P28: 2420055
B29: November | D29: 927007 | E29: 3.629999558 | F29: 3365035 | H29: 965584 | I29: 0.75 | J29: 724188 | L29: 965584 | M29: 1.849999586 | N29: 1786330 | P29: 2510518
B30: December | D30: 943155 | E30: 3.630000371 | F30: 3423653 | H30: 1036849 | I30: 0.7500002411 | J30: 777637 | L30: 1036849 | M30: 1.850000338 | N30: 1918171 | P30: 2695808
B32: Total | D32: =SUM(D19:D30) -> 12425694 | E32: =IF(D32<>0,F32/D32,0) -> 3.630000063 | F32: =SUM(F19:F30) -> 45105270 | H32: =SUM(H19:H30) -> 12981038 | I32: =IF(H32<>0,J32/H32,0) -> 0.7500001926 | J32: =SUM(J19:J30) -> 9735781 | L32: =SUM(L19:L30) -> 12981038 | M32: =IF(L32<>0,N32/L32,0) -> 1.850000054 | N32: =SUM(N19:N30) -> 24014921 | P32: =SUM(P19:P30) -> 33750702
B34: Hydro One | D34: Network | H34: Line Connection | L34: Transformation Connection | P34: Total Line
B36: Month | D36: Units Billed | E36: Rate | F36: Amount | H36: Units Billed | I36: Rate | J36: Amount | L36: Units Billed | M36: Rate | N36: Amount | P36: Amount
B38: January | D38: 168363 | E38: =IF(D38<>0,F38/D38,0) -> 3.18000392 | F38: 535395 | H38: 149336 | I38: =IF(H38<>0,J38/H38,0) -> 0.6999986607 | J38: 104535 | L38: 175399 | M38: =IF(L38<>0,N38/L38,0) -> 1.630003592 | N38: 285901 | P38: =J38+N38 -> 390436
B39: February | D39: 156160 | E39: 3.180001281 | F39: 496589 | H39: 144177 | I39: 0.7000006936 | J39: 100924 | L39: 170659 | M39: 1.629999004 | N39: 278174 | P39: 379098
B40: March | D40: 170266 | E40: 3.180000705 | F40: 541446 | H40: 145868 | I40: 0.7000027422 | J40: 102108 | L40: 170610 | M40: 1.629998242 | N40: 278094 | P40: 380202
B41: April | D41: 174339 | E41: 3.180005621 | F41: 554399 | H41: 151363 | I41: 0.6999993393 | J41: 105954 | L41: 174915 | M41: 1.629997427 | N41: 285111 | P41: 391065
B42: May | D42: 189559 | E42: 3.179991454 | F42: 602796 | H42: 165099 | I42: 0.7000042399 | J42: 115570 | L42: 189559 | M42: 1.629993828 | N42: 308980 | P42: 424550
B43: June | D43: 184892 | E43: 3.179996971 | F43: 587956 | H43: 161003 | I43: 0.6999993789 | J43: 112702 | L43: 187108 | M43: 1.629999786 | N43: 304986 | P43: 417688
B44: July | D44: 205982 | E44: 3.180001165 | F44: 655023 | H44: 193086 | I44: 0.6999989642 | J44: 135160 | L44: 220231 | M44: 1.629997593 | N44: 358976 | P44: 494136
B45: August | D45: 182850 | E45: 3.18 | F45: 581463 | H45: 157808 | I45: 0.7000025347 | J45: 110466 | L45: 182919 | M45: 1.630000164 | N45: 298158 | P45: 408624
B46: September | D46: 200822 | E46: 3.180000199 | F46: 638614 | H46: 178513 | I46: 0.6999994398 | J46: 124959 | L46: 204835 | M46: 1.629999756 | N46: 333881 | P46: 458840
B47: October | D47: 188629 | E47: 3.179993532 | F47: 599839 | H47: 166478 | I47: 0.7000024027 | J47: 116535 | L47: 188629 | M47: 1.629998569 | N47: 307465 | P47: 424000
B48: November | D48: 176356 | E48: 3.179993876 | F48: 560811 | H48: 151384 | I48: 0.7000013211 | J48: 105969 | L48: 176470 | M48: 1.629999433 | N48: 287646 | P48: 393615
B49: December | D49: 190047 | E49: 3.180002841 | F49: 604350 | H49: 158406 | I49: 0.6999987374 | J49: 110884 | L49: 189544 | M49: 1.630001477 | N49: 308957 | P49: 419841
B51: Total | D51: =SUM(D38:D49) -> 2188265 | E51: =IF(D51<>0,F51/D51,0) -> 3.179999223 | F51: =SUM(F38:F49) -> 6958681 | H51: =SUM(H38:H49) -> 1922521 | I51: =IF(H51<>0,J51/H51,0) -> 0.7000006762 | J51: =SUM(J38:J49) -> 1345766 | L51: =SUM(L38:L49) -> 2230878 | M51: =IF(L51<>0,N51/L51,0) -> 1.629999041 | N51: =SUM(N38:N49) -> 3636329 | P51: =SUM(P38:P49) -> 4982095
B53: Add Extra Host Here (I) | D53: Network | H53: Line Connection | L53: Transformation Connection | P53: Total Line
B54: (if needed)
B55: Month | D55: Units Billed | E55: Rate | F55: Amount | H55: Units Billed | I55: Rate | J55: Amount | L55: Units Billed | M55: Rate | N55: Amount | P55: Amount
B57: January | E57: =IF(D57<>0,F57/D57,0) -> 0 | I57: =IF(H57<>0,J57/H57,0) -> 0 | M57: =IF(L57<>0,N57/L57,0) -> 0 | P57: =J57+N57 -> 0
B58: February | E58: 0 | I58: 0 | M58: 0 | P58: 0
B59: March | E59: 0 | I59: 0 | M59: 0 | P59: 0
B60: April | E60: 0 | I60: 0 | M60: 0 | P60: 0
B61: May | E61: 0 | I61: 0 | M61: 0 | P61: 0
B62: June | E62: 0 | I62: 0 | M62: 0 | P62: 0
B63: July | E63: 0 | I63: 0 | M63: 0 | P63: 0
B64: August | E64: 0 | I64: 0 | M64: 0 | P64: 0
B65: September | E65: 0 | I65: 0 | M65: 0 | P65: 0
B66: October | E66: 0 | I66: 0 | M66: 0 | P66: 0
B67: November | E67: 0 | I67: 0 | M67: 0 | P67: 0
B68: December | E68: 0 | I68: 0 | M68: 0 | P68: 0
B70: Total | D70: =SUM(D57:D68) -> 0 | E70: =IF(D70<>0,F70/D70,0) -> 0 | F70: =SUM(F57:F68) -> 0 | H70: =SUM(H57:H68) -> 0 | I70: =IF(H70<>0,J70/H70,0) -> 0 | J70: =SUM(J57:J68) -> 0 | L70: =SUM(L57:L68) -> 0 | M70: =IF(L70<>0,N70/L70,0) -> 0 | N70: =SUM(N57:N68) -> 0 | P70: =SUM(P57:P68) -> 0
B72: Add Extra Host Here (II) | D72: Network | H72: Line Connection | L72: Transformation Connection | P72: Total Line
B73: (if needed)
B74: Month | D74: Units Billed | E74: Rate | F74: Amount | H74: Units Billed | I74: Rate | J74: Amount | L74: Units Billed | M74: Rate | N74: Amount | P74: Amount
B76: January | E76: =IF(D76<>0,F76/D76,0) -> 0 | I76: =IF(H76<>0,J76/H76,0) -> 0 | M76: =IF(L76<>0,N76/L76,0) -> 0 | P76: =J76+N76 -> 0
B77: February | E77: 0 | I77: 0 | M77: 0 | P77: 0
B78: March | E78: 0 | I78: 0 | M78: 0 | P78: 0
B79: April | E79: 0 | I79: 0 | M79: 0 | P79: 0
B80: May | E80: 0 | I80: 0 | M80: 0 | P80: 0
B81: June | E81: 0 | I81: 0 | M81: 0 | P81: 0
B82: July | E82: 0 | I82: 0 | M82: 0 | P82: 0
B83: August | E83: 0 | I83: 0 | M83: 0 | P83: 0
B84: September | E84: 0 | I84: 0 | M84: 0 | P84: 0
B85: October | E85: 0 | I85: 0 | M85: 0 | P85: 0
B86: November | E86: 0 | I86: 0 | M86: 0 | P86: 0
B87: December | E87: 0 | I87: 0 | M87: 0 | P87: 0
B89: Total | D89: =SUM(D76:D87) -> 0 | E89: =IF(D89<>0,F89/D89,0) -> 0 | F89: =SUM(F76:F87) -> 0 | H89: =SUM(H76:H87) -> 0 | I89: =IF(H89<>0,J89/H89,0) -> 0 | J89: =SUM(J76:J87) -> 0 | L89: =SUM(L76:L87) -> 0 | M89: =IF(L89<>0,N89/L89,0) -> 0 | N89: =SUM(N76:N87) -> 0 | P89: =SUM(P76:P87) -> 0
B91: Total | D91: Network | H91: Line Connection | L91: Transformation Connection | P91: Total Line
B93: Month | D93: Units Billed | E93: Rate | F93: Amount | H93: Units Billed | I93: Rate | J93: Amount | L93: Units Billed | M93: Rate | N93: Amount | P93: Amount
B95: January | D95: =D19+D38+D57+D76 -> 1129986 | E95: =IF(D95<>0,F95/D95,0) -> 3.562952107 | F95: =F19+F38+F57+F76 -> 4026086 | H95: =H19+H38+H57+H76 -> 1138723 | I95: =IF(H95<>0,J95/H95,0) -> 0.7434424351 | J95: =J19+J38+J57+J76 -> 846575 | L95: =L19+L38+L57+L76 -> 1164786 | M95: =IF(L95<>0,N95/L95,0) -> 1.81687194 | N95: =N19+N38+N57+N76 -> 2116267 | P95: =J95+N95 -> 2962842
B96: February | D96: =D20+D39+D58+D77 -> 1084764 | E96: 3.565219716 | F96: =F20+F39+F58+F77 -> 3867422 | H96: =H20+H39+H58+H77 -> 1117402 | I96: 0.743548875 | J96: =J20+J39+J58+J77 -> 830843 | L96: =L20+L39+L58+L77 -> 1143884 | M96: 1.817177266 | N96: =N20+N39+N58+N77 -> 2078640 | P96: 2909483
B97: March | D97: 1058697 | E97: 3.557628859 | F97: 3766451 | H97: 1077657 | I97: 0.7432327726 | J97: 800950 | L97: 1102399 | M97: 1.8159523 | N97: 2001904 | P97: 2802854
B98: April | D98: 1010513 | E98: 3.552364987 | F98: 3589711 | H98: 1067759 | I98: 0.7429120242 | J98: 793251 | L98: 1091311 | M98: 1.81473842 | N98: 1980444 | P98: 2773695
B99: May | D99: 1292211 | E99: 3.563986841 | F99: 4605423 | H99: 1295607 | I99: 0.743629048 | J99: 963451 | L99: 1320067 | M99: 1.818407702 | N99: 2400420 | P99: 3363871
B100: June | D100: 1390120 | E100: 3.570147901 | F100: 4962934 | H100: 1397536 | I100: 0.7442398622 | J100: 1040102 | L100: 1423641 | M100: 1.821085512 | N100: 2592572 | P100: 3632674
B101: July | D101: 1541766 | E101: 3.569879606 | F101: 5503919 | H101: 1590732 | I101: 0.7439310959 | J101: 1183395 | L101: 1617877 | M101: 1.820052451 | N101: 2944621 | P101: 4128016
B102: August | D102: 1401676 | E102: 3.57129679 | F102: 5005801 | H102: 1404801 | I102: 0.7443837241 | J102: 1045711 | L102: 1429912 | M102: 1.82185687 | N102: 2605095 | P102: 3650806
B103: September | D103: 1416703 | E103: 3.566211125 | F103: 5052262 | H103: 1403851 | I103: 0.7436423096 | J103: 1043963 | L103: 1430173 | M103: 1.81849049 | N103: 2600756 | P103: 3644719
B104: October | D104: 1050958 | E104: 3.549231273 | F104: 3730093 | H104: 1097268 | I104: 0.7424147975 | J104: 814628 | L104: 1119419 | M104: 1.81292885 | N104: 2029427 | P104: 2844055
B105: November | D105: 1103363 | E105: 3.55807291 | F105: 3925846 | H105: 1116968 | I105: 0.7432236197 | J105: 830157 | L105: 1142054 | M105: 1.816005198 | N105: 2073976 | P105: 2904133
B106: December | D106: 1133202 | E106: 3.554532202 | F106: 4028003 | H106: 1195255 | I106: 0.7433735897 | J106: 888521 | L106: 1226393 | M106: 1.815998624 | N106: 2227128 | P106: 3115649
B108: Total | D108: =SUM(D95:D106) -> 14613959 | E108: =IF(D108<>0,F108/D108,0) -> 3.562617837 | F108: =SUM(F95:F106) -> 52063951 | H108: =SUM(H95:H106) -> 14903559 | I108: =IF(H108<>0,J108/H108,0) -> 0.7435503828 | J108: =SUM(J95:J106) -> 11081547 | L108: =SUM(L95:L106) -> 15211916 | M108: =IF(L108<>0,N108/L108,0) -> 1.817736175 | N108: =SUM(N95:N106) -> 27651250 | P108: =SUM(P95:P106) -> 38732797
N110: Transformer Allowance Credit (if applicable) | P110: ='15. RTSR - UTRs & Sub-Tx'!E95 -> 0
N112: Total including deduction for Transformer Allowance Credit | P112: =P108+P110 -> 38732797

Sheet 17. RTSR - Current Wholesale
B13: The purpose of this sheet is to calculate the expected billing when current 2014 Uniform Transmission Rates are applied against historical 2013 transmission units.
B16: IESO | D16: Network | H16: Line Connection | L16: Transformation Connection | P16: Total Line
B18: Month | D18: Units Billed | E18: Rate | F18: Amount | H18: Units Billed | I18: Rate | J18: Amount | L18: Units Billed | M18: Rate | N18: Amount | P18: Amount
B20: January | D20: ='16. RTSR - Historical Wholesale'!D19 -> 961623 | E20: ='15. RTSR - UTRs & Sub-Tx'!G22 -> 3.82 | F20: =D20*E20 -> 3673399.86 | H20: ='16. RTSR - Historical Wholesale'!H19 -> 989387 | I20: ='15. RTSR - UTRs & Sub-Tx'!G24 -> 0.82 | J20: =H20*I20 -> 811297.34 | L20: ='16. RTSR - Historical Wholesale'!L19 -> 989387 | M20: ='15. RTSR - UTRs & Sub-Tx'!G26 -> 1.98 | N20: =L20*M20 -> 1958986.26 | P20: =J20+N20 -> 2770283.6
B21: February | D21: ='16. RTSR - Historical Wholesale'!D20 -> 928604 | E21: =E20 -> 3.82 | F21: =D21*E21 -> 3547267.28 | H21: ='16. RTSR - Historical Wholesale'!H20 -> 973225 | I21: =I20 -> 0.82 | J21: =H21*I21 -> 798044.5 | L21: ='16. RTSR - Historical Wholesale'!L20 -> 973225 | M21: =M20 -> 1.98 | N21: =L21*M21 -> 1926985.5 | P21: 2725030
B22: March | D22: ='16. RTSR - Historical Wholesale'!D21 -> 888431 | E22: =E21 -> 3.82 | F22: 3393806.42 | H22: ='16. RTSR - Historical Wholesale'!H21 -> 931789 | I22: =I21 -> 0.82 | J22: 764066.98 | L22: ='16. RTSR - Historical Wholesale'!L21 -> 931789 | M22: =M21 -> 1.98 | N22: 1844942.22 | P22: 2609009.2
B23: April | D23: ='16. RTSR - Historical Wholesale'!D22 -> 836174 | E23: 3.82 | F23: 3194184.68 | H23: ='16. RTSR - Historical Wholesale'!H22 -> 916396 | I23: 0.82 | J23: 751444.72 | L23: ='16. RTSR - Historical Wholesale'!L22 -> 916396 | M23: 1.98 | N23: 1814464.08 | P23: 2565908.8
B24: May | D24: ='16. RTSR - Historical Wholesale'!D23 -> 1102652 | E24: 3.82 | F24: 4212130.64 | H24: ='16. RTSR - Historical Wholesale'!H23 -> 1130508 | I24: 0.82 | J24: 927016.56 | L24: ='16. RTSR - Historical Wholesale'!L23 -> 1130508 | M24: 1.98 | N24: 2238405.84 | P24: 3165422.4
B25: June | D25: ='16. RTSR - Historical Wholesale'!D24 -> 1205228 | E25: 3.82 | F25: 4603970.96 | H25: ='16. RTSR - Historical Wholesale'!H24 -> 1236533 | I25: 0.82 | J25: 1013957.06 | L25: ='16. RTSR - Historical Wholesale'!L24 -> 1236533 | M25: 1.98 | N25: 2448335.34 | P25: 3462292.4
B26: July | D26: ='16. RTSR - Historical Wholesale'!D25 -> 1335784 | E26: 3.82 | F26: 5102694.88 | H26: ='16. RTSR - Historical Wholesale'!H25 -> 1397646 | I26: 0.82 | J26: 1146069.72 | L26: ='16. RTSR - Historical Wholesale'!L25 -> 1397646 | M26: 1.98 | N26: 2767339.08 | P26: 3913408.8
B27: August | D27: ='16. RTSR - Historical Wholesale'!D26 -> 1218826 | E27: 3.82 | F27: 4655915.32 | H27: ='16. RTSR - Historical Wholesale'!H26 -> 1246993 | I27: 0.82 | J27: 1022534.26 | L27: ='16. RTSR - Historical Wholesale'!L26 -> 1246993 | M27: 1.98 | N27: 2469046.14 | P27: 3491580.4
B28: September | D28: ='16. RTSR - Historical Wholesale'!D27 -> 1215881 | E28: 3.82 | F28: 4644665.42 | H28: ='16. RTSR - Historical Wholesale'!H27 -> 1225338 | I28: 0.82 | J28: 1004777.16 | L28: ='16. RTSR - Historical Wholesale'!L27 -> 1225338 | M28: 1.98 | N28: 2426169.24 | P28: 3430946.4
B29: October | D29: ='16. RTSR - Historical Wholesale'!D28 -> 862329 | E29: 3.82 | F29: 3294096.78 | H29: ='16. RTSR - Historical Wholesale'!H28 -> 930790 | I29: 0.82 | J29: 763247.8 | L29: ='16. RTSR - Historical Wholesale'!L28 -> 930790 | M29: 1.98 | N29: 1842964.2 | P29: 2606212
B30: November | D30: ='16. RTSR - Historical Wholesale'!D29 -> 927007 | E30: 3.82 | F30: 3541166.74 | H30: ='16. RTSR - Historical Wholesale'!H29 -> 965584 | I30: 0.82 | J30: 791778.88 | L30: ='16. RTSR - Historical Wholesale'!L29 -> 965584 | M30: 1.98 | N30: 1911856.32 | P30: 2703635.2
B31: December | D31: ='16. RTSR - Historical Wholesale'!D30 -> 943155 | E31: 3.82 | F31: 3602852.1 | H31: ='16. RTSR - Historical Wholesale'!H30 -> 1036849 | I31: 0.82 | J31: 850216.18 | L31: ='16. RTSR - Historical Wholesale'!L30 -> 1036849 | M31: 1.98 | N31: 2052961.02 | P31: 2903177.2
B33: Total | D33: =SUM(D20:D31) -> 12425694 | E33: =IF(D33<>0,F33/D33,0) -> 3.82 | F33: =SUM(F20:F31) -> 47466151.08 | H33: =SUM(H20:H31) -> 12981038 | I33: =IF(H33<>0,J33/H33,0) -> 0.82 | J33: =SUM(J20:J31) -> 10644451.16 | L33: =SUM(L20:L31) -> 12981038 | M33: =IF(L33<>0,N33/L33,0) -> 1.98 | N33: =SUM(N20:N31) -> 25702455.24 | P33: =SUM(P20:P31) -> 36346906.4
B35: Hydro One | D35: Network | H35: Line Connection | L35: Transformation Connection | P35: Total Line
B37: Month | D37: Units Billed | E37: Rate | F37: Amount | H37: Units Billed | I37: Rate | J37: Amount | L37: Units Billed | M37: Rate | N37: Amount | P37: Amount
B39: January | D39: ='16. RTSR - Historical Wholesale'!D38 -> 168363 | E39: ='15. RTSR - UTRs & Sub-Tx'!G35+'15. RTSR - UTRs & Sub-Tx'!G79 -> 3.3765 | F39: =D39*E39 -> 568477.6695 | H39: ='16. RTSR - Historical Wholesale'!H38 -> 149336 | I39: ='15. RTSR - UTRs & Sub-Tx'!G37+'15. RTSR - UTRs & Sub-Tx'!G81 -> 0.7167 | J39: =H39*I39 -> 107029.1112 | L39: ='16. RTSR - Historical Wholesale'!L38 -> 175399 | M39: ='15. RTSR - UTRs & Sub-Tx'!G39 -> 1.62 | N39: =L39*M39 -> 284146.38 | P39: =J39+N39 -> 391175.4912
B40: February | D40: ='16. RTSR - Historical Wholesale'!D39 -> 156160 | E40: =E39 -> 3.3765 | F40: =D40*E40 -> 527274.24 | H40: ='16. RTSR - Historical Wholesale'!H39 -> 144177 | I40: =I39 -> 0.7167 | J40: =H40*I40 -> 103331.6559 | L40: ='16. RTSR - Historical Wholesale'!L39 -> 170659 | M40: =M39 -> 1.62 | N40: =L40*M40 -> 276467.58 | P40: 379799.2359
B41: March | D41: ='16. RTSR - Historical Wholesale'!D40 -> 170266 | E41: =E40 -> 3.3765 | F41: 574903.149 | H41: ='16. RTSR - Historical Wholesale'!H40 -> 145868 | I41: =I40 -> 0.7167 | J41: 104543.5956 | L41: ='16. RTSR - Historical Wholesale'!L40 -> 170610 | M41: =M40 -> 1.62 | N41: 276388.2 | P41: 380931.7956
B42: April | D42: ='16. RTSR - Historical Wholesale'!D41 -> 174339 | E42: 3.3765 | F42: 588655.6335 | H42: ='16. RTSR - Historical Wholesale'!H41 -> 151363 | I42: 0.7167 | J42: 108481.8621 | L42: ='16. RTSR - Historical Wholesale'!L41 -> 174915 | M42: =M41 -> 1.62 | N42: 283362.3 | P42: 391844.1621
B43: May | D43: ='16. RTSR - Historical Wholesale'!D42 -> 189559 | E43: 3.3765 | F43: 640045.9635 | H43: ='16. RTSR - Historical Wholesale'!H42 -> 165099 | I43: 0.7167 | J43: 118326.4533 | L43: ='16. RTSR - Historical Wholesale'!L42 -> 189559 | M43: 1.62 | N43: 307085.58 | P43: 425412.0333
B44: June | D44: ='16. RTSR - Historical Wholesale'!D43 -> 184892 | E44: 3.3765 | F44: 624287.838 | H44: ='16. RTSR - Historical Wholesale'!H43 -> 161003 | I44: 0.7167 | J44: 115390.8501 | L44: ='16. RTSR - Historical Wholesale'!L43 -> 187108 | M44: 1.62 | N44: 303114.96 | P44: 418505.8101
B45: July | D45: ='16. RTSR - Historical Wholesale'!D44 -> 205982 | E45: 3.3765 | F45: 695498.223 | H45: ='16. RTSR - Historical Wholesale'!H44 -> 193086 | I45: 0.7167 | J45: 138384.7362 | L45: ='16. RTSR - Historical Wholesale'!L44 -> 220231 | M45: 1.62 | N45: 356774.22 | P45: 495158.9562
B46: August | D46: ='16. RTSR - Historical Wholesale'!D45 -> 182850 | E46: 3.3765 | F46: 617393.025 | H46: ='16. RTSR - Historical Wholesale'!H45 -> 157808 | I46: 0.7167 | J46: 113100.9936 | L46: ='16. RTSR - Historical Wholesale'!L45 -> 182919 | M46: 1.62 | N46: 296328.78 | P46: 409429.7736
B47: September | D47: ='16. RTSR - Historical Wholesale'!D46 -> 200822 | E47: 3.3765 | F47: 678075.483 | H47: ='16. RTSR - Historical Wholesale'!H46 -> 178513 | I47: 0.7167 | J47: 127940.2671 | L47: ='16. RTSR - Historical Wholesale'!L46 -> 204835 | M47: 1.62 | N47: 331832.7 | P47: 459772.9671
B48: October | D48: ='16. RTSR - Historical Wholesale'!D47 -> 188629 | E48: 3.3765 | F48: 636905.8185 | H48: ='16. RTSR - Historical Wholesale'!H47 -> 166478 | I48: 0.7167 | J48: 119314.7826 | L48: ='16. RTSR - Historical Wholesale'!L47 -> 188629 | M48: 1.62 | N48: 305578.98 | P48: 424893.7626
B49: November | D49: ='16. RTSR - Historical Wholesale'!D48 -> 176356 | E49: 3.3765 | F49: 595466.034 | H49: ='16. RTSR - Historical Wholesale'!H48 -> 151384 | I49: 0.7167 | J49: 108496.9128 | L49: ='16. RTSR - Historical Wholesale'!L48 -> 176470 | M49: 1.62 | N49: 285881.4 | P49: 394378.3128
B50: December | D50: ='16. RTSR - Historical Wholesale'!D49 -> 190047 | E50: 3.3765 | F50: 641693.6955 | H50: ='16. RTSR - Historical Wholesale'!H49 -> 158406 | I50: 0.7167 | J50: 113529.5802 | L50: ='16. RTSR - Historical Wholesale'!L49 -> 189544 | M50: 1.62 | N50: 307061.28 | P50: 420590.8602
B52: Total | D52: =SUM(D39:D50) -> 2188265 | E52: =IF(D52<>0,F52/D52,0) -> 3.3765 | F52: =SUM(F39:F50) -> 7388676.773 | H52: =SUM(H39:H50) -> 1922521 | I52: =IF(H52<>0,J52/H52,0) -> 0.7167 | J52: =SUM(J39:J50) -> 1377870.801 | L52: =SUM(L39:L50) -> 2230878 | M52: =IF(L52<>0,N52/L52,0) -> 1.62 | N52: =SUM(N39:N50) -> 3614022.36 | P52: =SUM(P39:P50) -> 4991893.161
B54: ='16. RTSR - Historical Wholesale'!B53 -> Add Extra Host Here (I) | D54: Network | H54: Line Connection | L54: Transformation Connection | P54: Total Line
B56: Month | D56: Units Billed | E56: Rate | F56: Amount | H56: Units Billed | I56: Rate | J56: Amount | L56: Units Billed | M56: Rate | N56: Amount | P56: Amount
B58: January | D58: ='16. RTSR - Historical Wholesale'!D57 -> 0 | E58: ='15. RTSR - UTRs & Sub-Tx'!G50 -> 0 | F58: =D58*E58 -> 0 | H58: ='16. RTSR - Historical Wholesale'!H57 -> 0 | I58: ='15. RTSR - UTRs & Sub-Tx'!G52 -> 0 | J58: =H58*I58 -> 0 | L58: ='16. RTSR - Historical Wholesale'!L57 -> 0 | M58: ='15. RTSR - UTRs & Sub-Tx'!G54 -> 0 | N58: =L58*M58 -> 0 | P58: =J58+N58 -> 0
B59: February | D59: ='16. RTSR - Historical Wholesale'!D58 -> 0 | E59: =E58 -> 0 | F59: =D59*E59 -> 0 | H59: ='16. RTSR - Historical Wholesale'!H58 -> 0 | I59: =I58 -> 0 | J59: =H59*I59 -> 0 | L59: ='16. RTSR - Historical Wholesale'!L58 -> 0 | M59: =M58 -> 0 | N59: =L59*M59 -> 0 | P59: 0
B60: March | D60: ='16. RTSR - Historical Wholesale'!D59 -> 0 | E60: =E59 -> 0 | F60: 0 | H60: ='16. RTSR - Historical Wholesale'!H59 -> 0 | I60: =I59 -> 0 | J60: 0 | L60: ='16. RTSR - Historical Wholesale'!L59 -> 0 | M60: =M59 -> 0 | N60: 0 | P60: 0
B61: April | D61: ='16. RTSR - Historical Wholesale'!D60 -> 0 | E61: 0 | F61: 0 | H61: ='16. RTSR - Historical Wholesale'!H60 -> 0 | I61: 0 | J61: 0 | L61: ='16. RTSR - Historical Wholesale'!L60 -> 0 | M61: =M60 -> 0 | N61: 0 | P61: 0
B62: May | D62: ='16. RTSR - Historical Wholesale'!D61 -> 0 | E62: 0 | F62: 0 | H62: ='16. RTSR - Historical Wholesale'!H61 -> 0 | I62: 0 | J62: 0 | L62: ='16. RTSR - Historical Wholesale'!L61 -> 0 | M62: 0 | N62: 0 | P62: 0
B63: June | D63: ='16. RTSR - Historical Wholesale'!D62 -> 0 | E63: 0 | F63: 0 | H63: ='16. RTSR - Historical Wholesale'!H62 -> 0 | I63: 0 | J63: 0 | L63: ='16. RTSR - Historical Wholesale'!L62 -> 0 | M63: 0 | N63: 0 | P63: 0
B64: July | D64: ='16. RTSR - Historical Wholesale'!D63 -> 0 | E64: 0 | F64: 0 | H64: ='16. RTSR - Historical Wholesale'!H63 -> 0 | I64: 0 | J64: 0 | L64: ='16. RTSR - Historical Wholesale'!L63 -> 0 | M64: 0 | N64: 0 | P64: 0
B65: August | D65: ='16. RTSR - Historical Wholesale'!D64 -> 0 | E65: 0 | F65: 0 | H65: ='16. RTSR - Historical Wholesale'!H64 -> 0 | I65: 0 | J65: 0 | L65: ='16. RTSR - Historical Wholesale'!L64 -> 0 | M65: 0 | N65: 0 | P65: 0
B66: September | D66: ='16. RTSR - Historical Wholesale'!D65 -> 0 | E66: 0 | F66: 0 | H66: ='16. RTSR - Historical Wholesale'!H65 -> 0 | I66: 0 | J66: 0 | L66: ='16. RTSR - Historical Wholesale'!L65 -> 0 | M66: 0 | N66: 0 | P66: 0
B67: October | D67: ='16. RTSR - Historical Wholesale'!D66 -> 0 | E67: 0 | F67: 0 | H67: ='16. RTSR - Historical Wholesale'!H66 -> 0 | I67: 0 | J67: 0 | L67: ='16. RTSR - Historical Wholesale'!L66 -> 0 | M67: 0 | N67: 0 | P67: 0
B68: November | D68: ='16. RTSR - Historical Wholesale'!D67 -> 0 | E68: 0 | F68: 0 | H68: ='16. RTSR - Historical Wholesale'!H67 -> 0 | I68: 0 | J68: 0 | L68: ='16. RTSR - Historical Wholesale'!L67 -> 0 | M68: 0 | N68: 0 | P68: 0
B69: December | D69: ='16. RTSR - Historical Wholesale'!D68 -> 0 | E69: 0 | F69: 0 | H69: ='16. RTSR - Historical Wholesale'!H68 -> 0 | I69: 0 | J69: 0 | L69: ='16. RTSR - Historical Wholesale'!L68 -> 0 | M69: 0 | N69: 0 | P69: 0
B71: Total | D71: =SUM(D58:D69) -> 0 | E71: =IF(D71<>0,F71/D71,0) -> 0 | F71: =SUM(F58:F69) -> 0 | H71: =SUM(H58:H69) -> 0 | I71: =IF(H71<>0,J71/H71,0) -> 0 | J71: =SUM(J58:J69) -> 0 | L71: =SUM(L58:L69) -> 0 | M71: =IF(L71<>0,N71/L71,0) -> 0 | N71: =SUM(N58:N69) -> 0 | P71: =SUM(P58:P69) -> 0
B73: ='16. RTSR - Historical Wholesale'!B72 -> Add Extra Host Here (II) | D73: Network | H73: Line Connection | L73: Transformation Connection | P73: Total Line
B75: Month | D75: Units Billed | E75: Rate | F75: Amount | H75: Units Billed | I75: Rate | J75: Amount | L75: Units Billed | M75: Rate | N75: Amount | P75: Amount
B77: January | D77: ='16. RTSR - Historical Wholesale'!D76 -> 0 | E77: ='15. RTSR - UTRs & Sub-Tx'!G65 -> 0 | F77: =D77*E77 -> 0 | H77: ='16. RTSR - Historical Wholesale'!H76 -> 0 | I77: ='15. RTSR - UTRs & Sub-Tx'!G67 -> 0 | J77: =H77*I77 -> 0 | L77: ='16. RTSR - Historical Wholesale'!L76 -> 0 | M77: ='15. RTSR - UTRs & Sub-Tx'!G69 -> 0 | N77: =L77*M77 -> 0 | P77: =J77+N77 -> 0
B78: February | D78: ='16. RTSR - Historical Wholesale'!D77 -> 0 | E78: =E77 -> 0 | F78: =D78*E78 -> 0 | H78: ='16. RTSR - Historical Wholesale'!H77 -> 0 | I78: =I77 -> 0 | J78: =H78*I78 -> 0 | L78: ='16. RTSR - Historical Wholesale'!L77 -> 0 | M78: =M77 -> 0 | N78: =L78*M78 -> 0 | P78: 0
B79: March | D79: ='16. RTSR - Historical Wholesale'!D78 -> 0 | E79: =E78 -> 0 | F79: 0 | H79: ='16. RTSR - Historical Wholesale'!H78 -> 0 | I79: =I78 -> 0 | J79: 0 | L79: ='16. RTSR - Historical Wholesale'!L78 -> 0 | M79: =M78 -> 0 | N79: 0 | P79: 0
B80: April | D80: ='16. RTSR - Historical Wholesale'!D79 -> 0 | E80: 0 | F80: 0 | H80: ='16. RTSR - Historical Wholesale'!H79 -> 0 | I80: 0 | J80: 0 | L80: ='16. RTSR - Historical Wholesale'!L79 -> 0 | M80: =M79 -> 0 | N80: 0 | P80: 0
B81: May | D81: ='16. RTSR - Historical Wholesale'!D80 -> 0 | E81: 0 | F81: 0 | H81: ='16. RTSR - Historical Wholesale'!H80 -> 0 | I81: 0 | J81: 0 | L81: ='16. RTSR - Historical Wholesale'!L80 -> 0 | M81: 0 | N81: 0 | P81: 0
B82: June | D82: ='16. RTSR - Historical Wholesale'!D81 -> 0 | E82: 0 | F82: 0 | H82: ='16. RTSR - Historical Wholesale'!H81 -> 0 | I82: 0 | J82: 0 | L82: ='16. RTSR - Historical Wholesale'!L81 -> 0 | M82: 0 | N82: 0 | P82: 0
B83: July | D83: ='16. RTSR - Historical Wholesale'!D82 -> 0 | E83: 0 | F83: 0 | H83: ='16. RTSR - Historical Wholesale'!H82 -> 0 | I83: 0 | J83: 0 | L83: ='16. RTSR - Historical Wholesale'!L82 -> 0 | M83: 0 | N83: 0 | P83: 0
B84: August | D84: ='16. RTSR - Historical Wholesale'!D83 -> 0 | E84: 0 | F84: 0 | H84: ='16. RTSR - Historical Wholesale'!H83 -> 0 | I84: 0 | J84: 0 | L84: ='16. RTSR - Historical Wholesale'!L83 -> 0 | M84: 0 | N84: 0 | P84: 0
B85: September | D85: ='16. RTSR - Historical Wholesale'!D84 -> 0 | E85: 0 | F85: 0 | H85: ='16. RTSR - Historical Wholesale'!H84 -> 0 | I85: 0 | J85: 0 | L85: ='16. RTSR - Historical Wholesale'!L84 -> 0 | M85: 0 | N85: 0 | P85: 0
B86: October | D86: ='16. RTSR - Historical Wholesale'!D85 -> 0 | E86: 0 | F86: 0 | H86: ='16. RTSR - Historical Wholesale'!H85 -> 0 | I86: 0 | J86: 0 | L86: ='16. RTSR - Historical Wholesale'!L85 -> 0 | M86: 0 | N86: 0 | P86: 0
B87: November | D87: ='16. RTSR - Historical Wholesale'!D86 -> 0 | E87: 0 | F87: 0 | H87: ='16. RTSR - Historical Wholesale'!H86 -> 0 | I87: 0 | J87: 0 | L87: ='16. RTSR - Historical Wholesale'!L86 -> 0 | M87: 0 | N87: 0 | P87: 0
B88: December | D88: ='16. RTSR - Historical Wholesale'!D87 -> 0 | E88: 0 | F88: 0 | H88: ='16. RTSR - Historical Wholesale'!H87 -> 0 | I88: 0 | J88: 0 | L88: ='16. RTSR - Historical Wholesale'!L87 -> 0 | M88: 0 | N88: 0 | P88: 0
B90: Total | D90: =SUM(D77:D88) -> 0 | E90: =IF(D90<>0,F90/D90,0) -> 0 | F90: =SUM(F77:F88) -> 0 | H90: =SUM(H77:H88) -> 0 | I90: =IF(H90<>0,J90/H90,0) -> 0 | J90: =SUM(J77:J88) -> 0 | L90: =SUM(L77:L88) -> 0 | M90: =IF(L90<>0,N90/L90,0) -> 0 | N90: =SUM(N77:N88) -> 0 | P90: =SUM(P77:P88) -> 0
B92: Total | D92: Network | H92: Line Connection | L92: Transformation Connection | P92: Total Line
B94: Month | D94: Units Billed | E94: Rate | F94: Amount | H94: Units Billed | I94: Rate | J94: Amount | L94: Units Billed | M94: Rate | N94: Amount | P94: Amount
B96: January | D96: =D20+D39+D58+D77 -> 1129986 | E96: =IF(D96<>0,F96/D96,0) -> 3.753920429 | F96: =F20+F39+F58+F77 -> 4241877.53 | H96: =H20+H39+H58+H77 -> 1138723 | I96: =IF(H96<>0,J96/H96,0) -> 0.8064528873 | J96: =J20+J39+J58+J77 -> 918326.4512 | L96: =L20+L39+L58+L77 -> 1164786 | M96: =IF(L96<>0,N96/L96,0) -> 1.925789493 | N96: =N20+N39+N58+N77 -> 2243132.64 | P96: =J96+N96 -> 3161459.091
B97: February | D97: =D21+D40+D59+D78 -> 1084764 | E97: 3.756154813 | F97: =F21+F40+F59+F78 -> 4074541.52 | H97: =H21+H40+H59+H78 -> 1117402 | I97: 0.8066713286 | J97: =J21+J40+J59+J78 -> 901376.1559 | L97: =L21+L40+L59+L78 -> 1143884 | M97: 1.926290673 | N97: =N21+N40+N59+N78 -> 2203453.08 | P97: 3104829.236
B98: March | D98: 1058697 | E98: 3.748673671 | F98: 3968709.569 | H98: 1077657 | I98: 0.806017662 | J98: 868610.5756 | L98: 1102399 | M98: 1.924285508 | N98: 2121330.42 | P98: 2989940.996
B99: April | D99: 1010513 | E99: 3.743485055 | F99: 3782840.313 | H99: 1067759 | I99: 0.8053564354 | J99: 859926.5821 | L99: 1091311 | M99: 1.922299308 | N99: 2097826.38 | P99: 2957752.962
B100: May | D100: 1292211 | E100: 3.754941417 | F100: 4852176.603 | H100: 1295607 | I100: 0.8068364969 | J100: 1045343.013 | L100: 1320067 | M100: 1.928304715 | N100: 2545491.42 | P100: 3590834.433
B101: June | D101: 1390120 | E101: 3.761012573 | F101: 5228258.798 | H101: 1397536 | I101: 0.8080993335 | J101: 1129347.91 | L101: 1423641 | M101: 1.932685487 | N101: 2751450.3 | P101: 3880798.21
B102: July | D102: 1541766 | E102: 3.760747807 | F102: 5798193.103 | H102: 1590732 | I102: 0.8074612544 | J102: 1284454.456 | L102: 1617877 | M102: 1.930995558 | N102: 3124113.3 | P102: 4408567.756
B103: August | D103: 1401676 | E103: 3.762144993 | F103: 5273308.345 | H103: 1404801 | I103: 0.8083958181 | J103: 1135635.254 | L103: 1429912 | M103: 1.933947628 | N103: 2765374.92 | P103: 3901010.174
B104: September | D104: 1416703 | E104: 3.757132513 | F104: 5322740.903 | H104: 1403851 | I104: 0.806864423 | J104: 1132717.427 | L104: 1430173 | M104: 1.928439385 | N104: 2758001.94 | P104: 3890719.367
B105: October | D105: 1050958 | E105: 3.740399329 | F105: 3931002.598 | H105: 1097268 | I105: 0.804327277 | J105: 882562.5826 | L105: 1119419 | M105: 1.919337781 | N105: 2148543.18 | P105: 3031105.763
B106: November | D106: 1103363 | E106: 3.749113188 | F106: 4136632.774 | H106: 1116968 | I106: 0.8059996283 | J106: 900275.7928 | L106: 1142054 | M106: 1.924372858 | N106: 2197737.72 | P106: 3098013.513
B107: December | D107: 1133202 | E107: 3.745621518 | F107: 4244545.796 | H107: 1195255 | I107: 0.80630975 | J107: 963745.7602 | L107: 1226393 | M107: 1.924360543 | N107: 2360022.3 | P107: 3323768.06
B109: Total | D109: =SUM(D96:D107) -> 14613959 | E109: =IF(D109<>0,F109/D109,0) -> 3.753591197 | F109: =SUM(F96:F107) -> 54854827.85 | H109: =SUM(H96:H107) -> 14903559 | I109: =IF(H109<>0,J109/H109,0) -> 0.8066745642 | J109: =SUM(J96:J107) -> 12022321.96 | L109: =SUM(L96:L107) -> 15211916 | M109: =IF(L109<>0,N109/L109,0) -> 1.927204804 | N109: =SUM(N96:N107) -> 29316477.6 | P109: =SUM(P96:P107) -> 41338799.56
N111: Transformer Allowance Credit (if applicable) | P111: ='15. RTSR - UTRs & Sub-Tx'!G95 -> 0
N113: Total including deduction for Transformer Allowance Credit | P113: =P109+P111 -> 41338799.56

Sheet 18. RTSR - Forecast Wholesale
B13: The purpose of this sheet is to calculate the expected billing when forecasted 2015 Uniform Transmission Rates are applied against historical 2013 transmission units.
B16: IESO | D16: Network | H16: Line Connection | L16: Transformation Connection | P16: Total Line
B18: Month | D18: Units Billed | E18: Rate | F18: Amount | H18: Units Billed | I18: Rate | J18: Amount | L18: Units Billed | M18: Rate | N18: Amount | P18: Amount
B20: January | D20: ='16. RTSR - Historical Wholesale'!D19 -> 961623 | E20: ='15. RTSR - UTRs & Sub-Tx'!I22 -> 3.82 | F20: =D20*E20 -> 3673399.86 | H20: ='16. RTSR - Historical Wholesale'!H19 -> 989387 | I20: ='15. RTSR - UTRs & Sub-Tx'!I24 -> 0.82 | J20: =H20*I20 -> 811297.34 | L20: ='16. RTSR - Historical Wholesale'!L19 -> 989387 | M20: ='15. RTSR - UTRs & Sub-Tx'!I26 -> 1.98 | N20: =L20*M20 -> 1958986.26 | P20: =J20+N20 -> 2770283.6
B21: February | D21: ='16. RTSR - Historical Wholesale'!D20 -> 928604 | E21: =E20 -> 3.82 | F21: 3547267.28 | H21: ='16. RTSR - Historical Wholesale'!H20 -> 973225 | I21: =I20 -> 0.82 | J21: 798044.5 | L21: ='16. RTSR - Historical Wholesale'!L20 -> 973225 | M21: =M20 -> 1.98 | N21: 1926985.5 | P21: 2725030
B22: March | D22: ='16. RTSR - Historical Wholesale'!D21 -> 888431 | E22: 3.82 | F22: 3393806.42 | H22: ='16. RTSR - Historical Wholesale'!H21 -> 931789 | I22: 0.82 | J22: 764066.98 | L22: ='16. RTSR - Historical Wholesale'!L21 -> 931789 | M22: 1.98 | N22: 1844942.22 | P22: 2609009.2
B23: April | D23: ='16. RTSR - Historical Wholesale'!D22 -> 836174 | E23: 3.82 | F23: 3194184.68 | H23: ='16. RTSR - Historical Wholesale'!H22 -> 916396 | I23: 0.82 | J23: 751444.72 | L23: ='16. RTSR - Historical Wholesale'!L22 -> 916396 | M23: 1.98 | N23: 1814464.08 | P23: 2565908.8
B24: May | D24: ='16. RTSR - Historical Wholesale'!D23 -> 1102652 | E24: 3.82 | F24: 4212130.64 | H24: ='16. RTSR - Historical Wholesale'!H23 -> 1130508 | I24: 0.82 | J24: 927016.56 | L24: ='16. RTSR - Historical Wholesale'!L23 -> 1130508 | M24: 1.98 | N24: 2238405.84 | P24: 3165422.4
B25: June | D25: ='16. RTSR - Historical Wholesale'!D24 -> 1205228 | E25: 3.82 | F25: 4603970.96 | H25: ='16. RTSR - Historical Wholesale'!H24 -> 1236533 | I25: 0.82 | J25: 1013957.06 | L25: ='16. RTSR - Historical Wholesale'!L24 -> 1236533 | M25: 1.98 | N25: 2448335.34 | P25: 3462292.4
B26: July | D26: ='16. RTSR - Historical Wholesale'!D25 -> 1335784 | E26: 3.82 | F26: 5102694.88 | H26: ='16. RTSR - Historical Wholesale'!H25 -> 1397646 | I26: 0.82 | J26: 1146069.72 | L26: ='16. RTSR - Historical Wholesale'!L25 -> 1397646 | M26: 1.98 | N26: 2767339.08 | P26: 3913408.8
B27: August | D27: ='16. RTSR - Historical Wholesale'!D26 -> 1218826 | E27: 3.82 | F27: 4655915.32 | H27: ='16. RTSR - Historical Wholesale'!H26 -> 1246993 | I27: 0.82 | J27: 1022534.26 | L27: ='16. RTSR - Historical Wholesale'!L26 -> 1246993 | M27: 1.98 | N27: 2469046.14 | P27: 3491580.4
B28: September | D28: ='16. RTSR - Historical Wholesale'!D27 -> 1215881 | E28: 3.82 | F28: 4644665.42 | H28: ='16. RTSR - Historical Wholesale'!H27 -> 1225338 | I28: 0.82 | J28: 1004777.16 | L28: ='16. RTSR - Historical Wholesale'!L27 -> 1225338 | M28: 1.98 | N28: 2426169.24 | P28: 3430946.4
B29: October | D29: ='16. RTSR - Historical Wholesale'!D28 -> 862329 | E29: 3.82 | F29: 3294096.78 | H29: ='16. RTSR - Historical Wholesale'!H28 -> 930790 | I29: 0.82 | J29: 763247.8 | L29: ='16. RTSR - Historical Wholesale'!L28 -> 930790 | M29: 1.98 | N29: 1842964.2 | P29: 2606212
B30: November | D30: ='16. RTSR - Historical Wholesale'!D29 -> 927007 | E30: 3.82 | F30: 3541166.74 | H30: ='16. RTSR - Historical Wholesale'!H29 -> 965584 | I30: 0.82 | J30: 791778.88 | L30: ='16. RTSR - Historical Wholesale'!L29 -> 965584 | M30: 1.98 | N30: 1911856.32 | P30: 2703635.2
B31: December | D31: ='16. RTSR - Historical Wholesale'!D30 -> 943155 | E31: 3.82 | F31: 3602852.1 | H31: ='16. RTSR - Historical Wholesale'!H30 -> 1036849 | I31: 0.82 | J31: 850216.18 | L31: ='16. RTSR - Historical Wholesale'!L30 -> 1036849 | M31: 1.98 | N31: 2052961.02 | P31: 2903177.2
B33: Total | D33: =SUM(D20:D31) -> 12425694 | E33: =IF(D33<>0,F33/D33,0) -> 3.82 | F33: =SUM(F20:F31) -> 47466151.08 | H33: =SUM(H20:H31) -> 12981038 | I33: =IF(H33<>0,J33/H33,0) -> 0.82 | J33: =SUM(J20:J31) -> 10644451.16 | L33: =SUM(L20:L31) -> 12981038 | M33: =IF(L33<>0,N33/L33,0) -> 1.98 | N33: =SUM(N20:N31) -> 25702455.24 | P33: =SUM(P20:P31) -> 36346906.4
B35: Hydro One | D35: Network | H35: Line Connection | L35: Transformation Connection | P35: Total Line
B37: Month | D37: Units Billed | E37: Rate | F37: Amount | H37: Units Billed | I37: Rate | J37: Amount | L37: Units Billed | M37: Rate | N37: Amount | P37: Amount
B39: January | D39: ='16. RTSR - Historical Wholesale'!D38 -> 168363 | E39: ='15. RTSR - UTRs & Sub-Tx'!I35+'15. RTSR - UTRs & Sub-Tx'!I79 -> 3.3765 | F39: =D39*E39 -> 568477.6695 | H39: ='16. RTSR - Historical Wholesale'!H38 -> 149336 | I39: ='15. RTSR - UTRs & Sub-Tx'!I37+'15. RTSR - UTRs & Sub-Tx'!I81 -> 0.7167 | J39: =H39*I39 -> 107029.1112 | L39: ='16. RTSR - Historical Wholesale'!L38 -> 175399 | M39: ='15. RTSR - UTRs & Sub-Tx'!I39 -> 1.62 | N39: =L39*M39 -> 284146.38 | P39: =J39+N39 -> 391175.4912
B40: February | D40: ='16. RTSR - Historical Wholesale'!D39 -> 156160 | E40: =E39 -> 3.3765 | F40: 527274.24 | H40: ='16. RTSR - Historical Wholesale'!H39 -> 144177 | I40: =I39 -> 0.7167 | J40: 103331.6559 | L40: ='16. RTSR - Historical Wholesale'!L39 -> 170659 | M40: =M39 -> 1.62 | N40: 276467.58 | P40: 379799.2359
B41: March | D41: ='16. RTSR - Historical Wholesale'!D40 -> 170266 | E41: 3.3765 | F41: 574903.149 | H41: ='16. RTSR - Historical Wholesale'!H40 -> 145868 | I41: 0.7167 | J41: 104543.5956 | L41: ='16. RTSR - Historical Wholesale'!L40 -> 170610 | M41: 1.62 | N41: 276388.2 | P41: 380931.7956
B42: April | D42: ='16. RTSR - Historical Wholesale'!D41 -> 174339 | E42: 3.3765 | F42: 588655.6335 | H42: ='16. RTSR - Historical Wholesale'!H41 -> 151363 | I42: 0.7167 | J42: 108481.8621 | L42: ='16. RTSR - Historical Wholesale'!L41 -> 174915 | M42: 1.62 | N42: 283362.3 | P42: 391844.1621
B43: May | D43: ='16. RTSR - Historical Wholesale'!D42 -> 189559 | E43: 3.3765 | F43: 640045.9635 | H43: ='16. RTSR - Historical Wholesale'!H42 -> 165099 | I43: 0.7167 | J43: 118326.4533 | L43: ='16. RTSR - Historical Wholesale'!L42 -> 189559 | M43: 1.62 | N43: 307085.58 | P43: 425412.0333
B44: June | D44: ='16. RTSR - Historical Wholesale'!D43 -> 184892 | E44: 3.3765 | F44: 624287.838 | H44: ='16. RTSR - Historical Wholesale'!H43 -> 161003 | I44: 0.7167 | J44: 115390.8501 | L44: ='16. RTSR - Historical Wholesale'!L43 -> 187108 | M44: 1.62 | N44: 303114.96 | P44: 418505.8101
B45: July | D45: ='16. RTSR - Historical Wholesale'!D44 -> 205982 | E45: 3.3765 | F45: 695498.223 | H45: ='16. RTSR - Historical Wholesale'!H44 -> 193086 | I45: 0.7167 | J45: 138384.7362 | L45: ='16. RTSR - Historical Wholesale'!L44 -> 220231 | M45: 1.62 | N45: 356774.22 | P45: 495158.9562
B46: August | D46: ='16. RTSR - Historical Wholesale'!D45 -> 182850 | E46: 3.3765 | F46: 617393.025 | H46: ='16. RTSR - Historical Wholesale'!H45 -> 157808 | I46: 0.7167 | J46: 113100.9936 | L46: ='16. RTSR - Historical Wholesale'!L45 -> 182919 | M46: 1.62 | N46: 296328.78 | P46: 409429.7736
B47: September | D47: ='16. RTSR - Historical Wholesale'!D46 -> 200822 | E47: 3.3765 | F47: 678075.483 | H47: ='16. RTSR - Historical Wholesale'!H46 -> 178513 | I47: 0.7167 | J47: 127940.2671 | L47: ='16. RTSR - Historical Wholesale'!L46 -> 204835 | M47: 1.62 | N47: 331832.7 | P47: 459772.9671
B48: October | D48: ='16. RTSR - Historical Wholesale'!D47 -> 188629 | E48: 3.3765 | F48: 636905.8185 | H48: ='16. RTSR - Historical Wholesale'!H47 -> 166478 | I48: 0.7167 | J48: 119314.7826 | L48: ='16. RTSR - Historical Wholesale'!L47 -> 188629 | M48: 1.62 | N48: 305578.98 | P48: 424893.7626
B49: November | D49: ='16. RTSR - Historical Wholesale'!D48 -> 176356 | E49: 3.3765 | F49: 595466.034 | H49: ='16. RTSR - Historical Wholesale'!H48 -> 151384 | I49: 0.7167 | J49: 108496.9128 | L49: ='16. RTSR - Historical Wholesale'!L48 -> 176470 | M49: 1.62 | N49: 285881.4 | P49: 394378.3128
B50: December | D50: ='16. RTSR - Historical Wholesale'!D49 -> 190047 | E50: 3.3765 | F50: 641693.6955 | H50: ='16. RTSR - Historical Wholesale'!H49 -> 158406 | I50: 0.7167 | J50: 113529.5802 | L50: ='16. RTSR - Historical Wholesale'!L49 -> 189544 | M50: 1.62 | N50: 307061.28 | P50: 420590.8602
B52: Total | D52: =SUM(D39:D50) -> 2188265 | E52: =IF(D52<>0,F52/D52,0) -> 3.3765 | F52: =SUM(F39:F50) -> 7388676.773 | H52: =SUM(H39:H50) -> 1922521 | I52: =IF(H52<>0,J52/H52,0) -> 0.7167 | J52: =SUM(J39:J50) -> 1377870.801 | L52: =SUM(L39:L50) -> 2230878 | M52: =IF(L52<>0,N52/L52,0) -> 1.62 | N52: =SUM(N39:N50) -> 3614022.36 | P52: =SUM(P39:P50) -> 4991893.161
B54: ='16. RTSR - Historical Wholesale'!B53 -> Add Extra Host Here (I) | D54: Network | H54: Line Connection | L54: Transformation Connection | P54: Total Line
B56: Month | D56: Units Billed | E56: Rate | F56: Amount | H56: Units Billed | I56: Rate | J56: Amount | L56: Units Billed | M56: Rate | N56: Amount | P56: Amount
B58: January | D58: ='16. RTSR - Historical Wholesale'!D57 -> 0 | E58: ='15. RTSR - UTRs & Sub-Tx'!I50 -> 0 | F58: =D58*E58 -> 0 | H58: ='16. RTSR - Historical Wholesale'!H57 -> 0 | I58: ='15. RTSR - UTRs & Sub-Tx'!I52 -> 0 | J58: =H58*I58 -> 0 | L58: ='16. RTSR - Historical Wholesale'!L57 -> 0 | M58: ='15. RTSR - UTRs & Sub-Tx'!I54 -> 0 | N58: =L58*M58 -> 0 | P58: =J58+N58 -> 0
B59: February | D59: ='16. RTSR - Historical Wholesale'!D58 -> 0 | E59: =E58 -> 0 | F59: 0 | H59: ='16. RTSR - Historical Wholesale'!H58 -> 0 | I59: =I58 -> 0 | J59: 0 | L59: ='16. RTSR - Historical Wholesale'!L58 -> 0 | M59: =M58 -> 0 | N59: 0 | P59: 0
B60: March | D60: ='16. RTSR - Historical Wholesale'!D59 -> 0 | E60: 0 | F60: 0 | H60: ='16. RTSR - Historical Wholesale'!H59 -> 0 | I60: 0 | J60: 0 | L60: ='16. RTSR - Historical Wholesale'!L59 -> 0 | M60: 0 | N60: 0 | P60: 0
B61: April | D61: ='16. RTSR - Historical Wholesale'!D60 -> 0 | E61: 0 | F61: 0 | H61: ='16. RTSR - Historical Wholesale'!H60 -> 0 | I61: 0 | J61: 0 | L61: ='16. RTSR - Historical Wholesale'!L60 -> 0 | M61: 0 | N61: 0 | P61: 0
B62: May | D62: ='16. RTSR - Historical Wholesale'!D61 -> 0 | E62: 0 | F62: 0 | H62: ='16. RTSR - Historical Wholesale'!H61 -> 0 | I62: 0 | J62: 0 | L62: ='16. RTSR - Historical Wholesale'!L61 -> 0 | M62: 0 | N62: 0 | P62: 0
B63: June | D63: ='16. RTSR - Historical Wholesale'!D62 -> 0 | E63: 0 | F63: 0 | H63: ='16. RTSR - Historical Wholesale'!H62 -> 0 | I63: 0 | J63: 0 | L63: ='16. RTSR - Historical Wholesale'!L62 -> 0 | M63: 0 | N63: 0 | P63: 0
B64: July | D64: ='16. RTSR - Historical Wholesale'!D63 -> 0 | E64: 0 | F64: 0 | H64: ='16. RTSR - Historical Wholesale'!H63 -> 0 | I64: 0 | J64: 0 | L64: ='16. RTSR - Historical Wholesale'!L63 -> 0 | M64: 0 | N64: 0 | P64: 0
B65: August | D65: ='16. RTSR - Historical Wholesale'!D64 -> 0 | E65: 0 | F65: 0 | H65: ='16. RTSR - Historical Wholesale'!H64 -> 0 | I65: 0 | J65: 0 | L65: ='16. RTSR - Historical Wholesale'!L64 -> 0 | M65: 0 | N65: 0 | P65: 0
B66: September | D66: ='16. RTSR - Historical Wholesale'!D65 -> 0 | E66: 0 | F66: 0 | H66: ='16. RTSR - Historical Wholesale'!H65 -> 0 | I66: 0 | J66: 0 | L66: ='16. RTSR - Historical Wholesale'!L65 -> 0 | M66: 0 | N66: 0 | P66: 0
B67: October | D67: ='16. RTSR - Historical Wholesale'!D66 -> 0 | E67: 0 | F67: 0 | H67: ='16. RTSR - Historical Wholesale'!H66 -> 0 | I67: 0 | J67: 0 | L67: ='16. RTSR - Historical Wholesale'!L66 -> 0 | M67: 0 | N67: 0 | P67: 0
B68: November | D68: ='16. RTSR - Historical Wholesale'!D67 -> 0 | E68: 0 | F68: 0 | H68: ='16. RTSR - Historical Wholesale'!H67 -> 0 | I68: 0 | J68: 0 | L68: ='16. RTSR - Historical Wholesale'!L67 -> 0 | M68: 0 | N68: 0 | P68: 0
B69: December | D69: ='16. RTSR - Historical Wholesale'!D68 -> 0 | E69: 0 | F69: 0 | H69: ='16. RTSR - Historical Wholesale'!H68 -> 0 | I69: 0 | J69: 0 | L69: ='16. RTSR - Historical Wholesale'!L68 -> 0 | M69: 0 | N69: 0 | P69: 0
B71: Total | D71: =SUM(D58:D69) -> 0 | E71: =IF(D71<>0,F71/D71,0) -> 0 | F71: =SUM(F58:F69) -> 0 | H71: =SUM(H58:H69) -> 0 | I71: =IF(H71<>0,J71/H71,0) -> 0 | J71: =SUM(J58:J69) -> 0 | L71: =SUM(L58:L69) -> 0 | M71: =IF(L71<>0,N71/L71,0) -> 0 | N71: =SUM(N58:N69) -> 0 | P71: =SUM(P58:P69) -> 0
B73: ='16. RTSR - Historical Wholesale'!B72 -> Add Extra Host Here (II) | D73: Network | H73: Line Connection | L73: Transformation Connection | P73: Total Line
B75: Month | D75: Units Billed | E75: Rate | F75: Amount | H75: Units Billed | I75: Rate | J75: Amount | L75: Units Billed | M75: Rate | N75: Amount | P75: Amount
B77: January | D77: ='16. RTSR - Historical Wholesale'!D76 -> 0 | E77: ='15. RTSR - UTRs & Sub-Tx'!I65 -> 0 | F77: =D77*E77 -> 0 | H77: ='16. RTSR - Historical Wholesale'!H76 -> 0 | I77: ='15. RTSR - UTRs & Sub-Tx'!I67 -> 0 | J77: =H77*I77 -> 0 | L77: ='16. RTSR - Historical Wholesale'!L76 -> 0 | M77: ='15. RTSR - UTRs & Sub-Tx'!I69 -> 0 | N77: =L77*M77 -> 0 | P77: =J77+N77 -> 0
B78: February | D78: ='16. RTSR - Historical Wholesale'!D77 -> 0 | E78: =E77 -> 0 | F78: 0 | H78: ='16. RTSR - Historical Wholesale'!H77 -> 0 | I78: =I77 -> 0 | J78: 0 | L78: ='16. RTSR - Historical Wholesale'!L77 -> 0 | M78: =M77 -> 0 | N78: 0 | P78: 0
B79: March | D79: ='16. RTSR - Historical Wholesale'!D78 -> 0 | E79: 0 | F79: 0 | H79: ='16. RTSR - Historical Wholesale'!H78 -> 0 | I79: 0 | J79: 0 | L79: ='16. RTSR - Historical Wholesale'!L78 -> 0 | M79: 0 | N79: 0 | P79: 0
B80: April | D80: ='16. RTSR - Historical Wholesale'!D79 -> 0 | E80: 0 | F80: 0 | H80: ='16. RTSR - Historical Wholesale'!H79 -> 0 | I80: 0 | J80: 0 | L80: ='16. RTSR - Historical Wholesale'!L79 -> 0 | M80: 0 | N80: 0 | P80: 0
B81: May | D81: ='16. RTSR - Historical Wholesale'!D80 -> 0 | E81: 0 | F81: 0 | H81: ='16. RTSR - Historical Wholesale'!H80 -> 0 | I81: 0 | J81: 0 | L81: ='16. RTSR - Historical Wholesale'!L80 -> 0 | M81: 0 | N81: 0 | P81: 0
B82: June | D82: ='16. RTSR - Historical Wholesale'!D81 -> 0 | E82: 0 | F82: 0 | H82: ='16. RTSR - Historical Wholesale'!H81 -> 0 | I82: 0 | J82: 0 | L82: ='16. RTSR - Historical Wholesale'!L81 -> 0 | M82: 0 | N82: 0 | P82: 0
B83: July | D83: ='16. RTSR - Historical Wholesale'!D82 -> 0 | E83: 0 | F83: 0 | H83: ='16. RTSR - Historical Wholesale'!H82 -> 0 | I83: 0 | J83: 0 | L83: ='16. RTSR - Historical Wholesale'!L82 -> 0 | M83: 0 | N83: 0 | P83: 0
B84: August | D84: ='16. RTSR - Historical Wholesale'!D83 -> 0 | E84: 0 | F84: 0 | H84: ='16. RTSR - Historical Wholesale'!H83 -> 0 | I84: 0 | J84: 0 | L84: ='16. RTSR - Historical Wholesale'!L83 -> 0 | M84: 0 | N84: 0 | P84: 0
B85: September | D85: ='16. RTSR - Historical Wholesale'!D84 -> 0 | E85: 0 | F85: 0 | H85: ='16. RTSR - Historical Wholesale'!H84 -> 0 | I85: 0 | J85: 0 | L85: ='16. RTSR - Historical Wholesale'!L84 -> 0 | M85: 0 | N85: 0 | P85: 0
B86: October | D86: ='16. RTSR - Historical Wholesale'!D85 -> 0 | E86: 0 | F86: 0 | H86: ='16. RTSR - Historical Wholesale'!H85 -> 0 | I86: 0 | J86: 0 | L86: ='16. RTSR - Historical Wholesale'!L85 -> 0 | M86: 0 | N86: 0 | P86: 0
B87: November | D87: ='16. RTSR - Historical Wholesale'!D86 -> 0 | E87: 0 | F87: 0 | H87: ='16. RTSR - Historical Wholesale'!H86 -> 0 | I87: 0 | J87: 0 | L87: ='16. RTSR - Historical Wholesale'!L86 -> 0 | M87: 0 | N87: 0 | P87: 0
B88: December | D88: ='16. RTSR - Historical Wholesale'!D87 -> 0 | E88: 0 | F88: 0 | H88: ='16. RTSR - Historical Wholesale'!H87 -> 0 | I88: 0 | J88: 0 | L88: ='16. RTSR - Historical Wholesale'!L87 -> 0 | M88: 0 | N88: 0 | P88: 0
B90: Total | D90: =SUM(D77:D88) -> 0 | E90: =IF(D90<>0,F90/D90,0) -> 0 | F90: =SUM(F77:F88) -> 0 | H90: =SUM(H77:H88) -> 0 | I90: =IF(H90<>0,J90/H90,0) -> 0 | J90: =SUM(J77:J88) -> 0 | L90: =SUM(L77:L88) -> 0 | M90: =IF(L90<>0,N90/L90,0) -> 0 | N90: =SUM(N77:N88) -> 0 | P90: =SUM(P77:P88) -> 0
B92: Total | D92: Network | H92: Line Connection | L92: Transformation Connection | P92: Total Line
B94: Month | D94: Units Billed | E94: Rate | F94: Amount | H94: Units Billed | I94: Rate | J94: Amount | L94: Units Billed | M94: Rate | N94: Amount | P94: Amount
B96: January | D96: =D20+D39 -> 1129986 | E96: =IF(D96<>0,F96/D96,0) -> 3.753920429 | F96: =F20+F39 -> 4241877.53 | H96: =H20+H39 -> 1138723 | I96: =IF(H96<>0,J96/H96,0) -> 0.8064528873 | J96: =J20+J39 -> 918326.4512 | L96: =L20+L39 -> 1164786 | M96: =IF(L96<>0,N96/L96,0) -> 1.925789493 | N96: =N20+N39 -> 2243132.64 | P96: =J96+N96 -> 3161459.091
B97: February | D97: 1084764 | E97: 3.756154813 | F97: 4074541.52 | H97: 1117402 | I97: 0.8066713286 | J97: 901376.1559 | L97: 1143884 | M97: 1.926290673 | N97: 2203453.08 | P97: 3104829.236
B98: March | D98: 1058697 | E98: 3.748673671 | F98: 3968709.569 | H98: 1077657 | I98: 0.806017662 | J98: 868610.5756 | L98: 1102399 | M98: 1.924285508 | N98: 2121330.42 | P98: 2989940.996
B99: April | D99: 1010513 | E99: 3.743485055 | F99: 3782840.313 | H99: 1067759 | I99: 0.8053564354 | J99: 859926.5821 | L99: 1091311 | M99: 1.922299308 | N99: 2097826.38 | P99: 2957752.962
B100: May | D100: 1292211 | E100: 3.754941417 | F100: 4852176.603 | H100: 1295607 | I100: 0.8068364969 | J100: 1045343.013 | L100: 1320067 | M100: 1.928304715 | N100: 2545491.42 | P100: 3590834.433
B101: June | D101: 1390120 | E101: 3.761012573 | F101: 5228258.798 | H101: 1397536 | I101: 0.8080993335 | J101: 1129347.91 | L101: 1423641 | M101: 1.932685487 | N101: 2751450.3 | P101: 3880798.21
B102: July | D102: 1541766 | E102: 3.760747807 | F102: 5798193.103 | H102: 1590732 | I102: 0.8074612544 | J102: 1284454.456 | L102: 1617877 | M102: 1.930995558 | N102: 3124113.3 | P102: 4408567.756
B103: August | D103: 1401676 | E103: 3.762144993 | F103: 5273308.345 | H103: 1404801 | I103: 0.8083958181 | J103: 1135635.254 | L103: 1429912 | M103: 1.933947628 | N103: 2765374.92 | P103: 3901010.174
B104: September | D104: 1416703 | E104: 3.757132513 | F104: 5322740.903 | H104: 1403851 | I104: 0.806864423 | J104: 1132717.427 | L104: 1430173 | M104: 1.928439385 | N104: 2758001.94 | P104: 3890719.367
B105: October | D105: 1050958 | E105: 3.740399329 | F105: 3931002.598 | H105: 1097268 | I105: 0.804327277 | J105: 882562.5826 | L105: 1119419 | M105: 1.919337781 | N105: 2148543.18 | P105: 3031105.763
B106: November | D106: 1103363 | E106: 3.749113188 | F106: 4136632.774 | H106: 1116968 | I106: 0.8059996283 | J106: 900275.7928 | L106: 1142054 | M106: 1.924372858 | N106: 2197737.72 | P106: 3098013.513
B107: December | D107: 1133202 | E107: 3.745621518 | F107: 4244545.796 | H107: 1195255 | I107: 0.80630975 | J107: 963745.7602 | L107: 1226393 | M107: 1.924360543 | N107: 2360022.3 | P107: 3323768.06
B109: Total | D109: =SUM(D96:D107) -> 14613959 | E109: =IF(D109<>0,F109/D109,0) -> 3.753591197 | F109: =SUM(F96:F107) -> 54854827.85 | H109: =SUM(H96:H107) -> 14903559 | I109: =IF(H109<>0,J109/H109,0) -> 0.8066745642 | J109: =SUM(J96:J107) -> 12022321.96 | L109: =SUM(L96:L107) -> 15211916 | M109: =IF(L109<>0,N109/L109,0) -> 1.927204804 | N109: =SUM(N96:N107) -> 29316477.6 | P109: =SUM(P96:P107) -> 41338799.56
N111: Transformer Allowance Credit (if applicable) | P111: ='15. RTSR - UTRs & Sub-Tx'!I95 -> 0
N113: Total including deduction for Transformer Allowance Credit | P113: =P109+P111 -> 41338799.56

Sheet 19. RTSR Ntwrk to Curren WS
A13: The purpose of this sheet is to re-align the current RTS Network Rates to recover current wholesale network costs.
A16: Rate Class | B16: Rate Description | C16: Unit | E16: Current RTSR-Network | G16: Loss Adjusted Billed kWh | I16: Loss Adjusted Billed kW | K16: Billed Amount | M16: Billed Amount % | O16: Current Wholesale Billing | Q16: Proposed RTSR Network
A19: RESIDENTIAL | B19: Retail Transmission Rate - Network Service Rate | C19: $/kWh | E19: 0.0076 | G19: 1513631515 | I19: 0 | K19: =IF(E19="", "", IF(C19="$/kWh", E19*G19, E19*I19)) -> 11503599.51 | M19: =IF(ISERROR(K19/SUM(K19:K100)),"",K19/SUM(K19:K100)) -> 0.2253583158 | O19: =IF(ISERROR('17. RTSR - Current Wholesale'!$F$109*M19), "", '17. RTSR - Current Wholesale'!$F$109*M19) -> 12361991.62 | Q19: =IF(C19="","",IF(C19="$/kWh",IF(G19<>0,O19/G19,),IF(I19<>0,O19/I19,0))) -> 0.008167107715
A20: GENERAL SERVICE LESS THAN 50 KW | B20: Retail Transmission Rate - Network Service Rate | C20: $/kWh | E20: 0.0071 | G20: 645357536.3 | I20: 0 | K20: 4582038.508 | M20: =IF(ISERROR(K20/SUM(K19:K100)),"",K20/SUM(K19:K100)) -> 0.0897632502 | O20: =IF(ISERROR('17. RTSR - Current Wholesale'!$F$109*M20), "", '17. RTSR - Current Wholesale'!$F$109*M20) -> 4923947.637 | Q20: 0.007629797996
A21: UNMETERED SCATTERED LOAD | B21: Retail Transmission Rate - Network Service Rate | C21: $/kWh | E21: 0.0071 | G21: 10388389.9 | I21: 0 | K21: 73757.56829 | M21: =IF(ISERROR(K21/SUM(K19:K100)),"",K21/SUM(K19:K100)) -> 0.001444928725 | O21: =IF(ISERROR('17. RTSR - Current Wholesale'!$F$109*M21), "", '17. RTSR - Current Wholesale'!$F$109*M21) -> 79261.31645 | Q21: 0.007629797996
A22: GENERAL SERVICE 50 TO 499 KW | B22: Retail Transmission Rate - Network Service Rate | C22: $/kW | E22: 2.74 | G22: 0 | I22: 3077693.4 | K22: 8432879.916 | M22: =IF(ISERROR(K22/SUM(K19:K100)),"",K22/SUM(K19:K100)) -> 0.1652021712 | O22: =IF(ISERROR('17. RTSR - Current Wholesale'!$F$109*M22), "", '17. RTSR - Current Wholesale'!$F$109*M22) -> 9062136.66 | Q22: 2.944457255
A23: GENERAL SERVICE 50 TO 499 KW | B23: Retail Transmission Rate - Network Service Rate - Interval Metered | C23: $/kW | E23: 2.74 | G23: 0 | I23: 3077693.4 | K23: 8432879.916 | M23: =IF(ISERROR(K23/SUM(K19:K100)),"",K23/SUM(K19:K100)) -> 0.1652021712 | O23: =IF(ISERROR('17. RTSR - Current Wholesale'!$F$109*M23), "", '17. RTSR - Current Wholesale'!$F$109*M23) -> 9062136.66 | Q23: 2.944457255
A24: GENERAL SERVICE 500 TO 4,999 KW | B24: Retail Transmission Rate - Network Service Rate - Interval Metered | C24: $/kW | E24: 2.6508 | G24: 0 | I24: 4849311.77 | K24: 12854555.64 | M24: =IF(ISERROR(K24/SUM(K19:K100)),"",K24/SUM(K19:K100)) -> 0.2518238754 | O24: =IF(ISERROR('17. RTSR - Current Wholesale'!$F$109*M24), "", '17. RTSR - Current Wholesale'!$F$109*M24) -> 13813755.33 | Q24: 2.848601201
A25: LARGE USE > 5000 KW | B25: Retail Transmission Rate - Network Service Rate - Interval Metered | C25: $/kW | E25: 2.8287 | G25: 0 | I25: 1755221 | K25: 4964993.643 | M25: =IF(ISERROR(K25/SUM(K19:K100)),"",K25/SUM(K19:K100)) -> 0.09726543456 | O25: =IF(ISERROR('17. RTSR - Current Wholesale'!$F$109*M25), "", '17. RTSR - Current Wholesale'!$F$109*M25) -> 5335478.669 | Q25: 3.039775999
A26: STREET LIGHTING | B26: Retail Transmission Rate - Network Service Rate | C26: $/kW | E26: 1.8974 | G26: 0 | I26: 105994 | K26: 201113.0156 | M26: =IF(ISERROR(K26/SUM(K19:K100)),"",K26/SUM(K19:K100)) -> 0.003939852952 | O26: =IF(ISERROR('17. RTSR - Current Wholesale'!$F$109*M26), "", '17. RTSR - Current Wholesale'!$F$109*M26) -> 216119.9554 | Q26: 2.038982918

Sheet 20. RTSR Adj Conn to Current WS
A13: The purpose of this sheet is to re-align the current RTS Connection Rates to recover current wholesale connection costs.
A16: Rate Class | B16: Rate Description | C16: Unit | E16: Current RTSR-Connection | G16: Loss Adjusted Billed kWh | I16: Loss Adjusted Billed kW | K16: Billed Amount | M16: Billed Amount % | O16: Current Wholesale Billing | Q16: Proposed RTSR Connection
A19: RESIDENTIAL | B19: Retail Transmission Rate - Line and Transformation Connection Service Rate | C19: $/kWh | E19: 0.0058 | G19: 1513631515 | I19: 0 | K19: =IF(E19="", "", IF(C19="$/kWh", E19*G19, E19*I19)) -> 8779062.785 | M19: =IF(ISERROR(K19/SUM(K19:K100)),"",K19/SUM(K19:K100)) -> 0.2285380112 | O19: =IF(ISERROR('17. RTSR - Current Wholesale'!$P$113*M19), "", '17. RTSR - Current Wholesale'!$P$113*M19) -> 9447487.035 | Q19: =IF(C19="","",IF(C19="$/kWh",IF(G19<>0,O19/G19,),IF(I19<>0,O19/I19,0))) -> 0.006241603021
A20: GENERAL SERVICE LESS THAN 50 KW | B20: Retail Transmission Rate - Line and Transformation Connection Service Rate | C20: $/kWh | E20: 0.0052 | G20: 645357536.3 | I20: 0 | K20: 3355859.189 | M20: =IF(ISERROR(K20/SUM(K19:K100)),"",K20/SUM(K19:K100)) -> 0.08736028019 | O20: =IF(ISERROR('17. RTSR - Current Wholesale'!$P$113*M20), "", '17. RTSR - Current Wholesale'!$P$113*M20) -> 3611369.112 | Q20: 0.00559591995
A21: UNMETERED SCATTERED LOAD | B21: Retail Transmission Rate - Line and Transformation Connection Service Rate | C21: $/kWh | E21: 0.0052 | G21: 10388389.9 | I21: 0 | K21: 54019.62748 | M21: =IF(ISERROR(K21/SUM(K19:K100)),"",K21/SUM(K19:K100)) -> 0.001406247857 | O21: =IF(ISERROR('17. RTSR - Current Wholesale'!$P$113*M21), "", '17. RTSR - Current Wholesale'!$P$113*M21) -> 58132.59829 | Q21: 0.00559591995
A22: GENERAL SERVICE 50 TO 499 KW | B22: Retail Transmission Rate - Line and Transformation Connection Service Rate | C22: $/kW | E22: 2.047 | G22: 0 | I22: 3077693.4 | K22: 6300038.39 | M22: =IF(ISERROR(K22/SUM(K19:K100)),"",K22/SUM(K19:K100)) -> 0.164003639 | O22: =IF(ISERROR('17. RTSR - Current Wholesale'!$P$113*M22), "", '17. RTSR - Current Wholesale'!$P$113*M22) -> 6779713.56 | Q22: 2.202855411
A23: GENERAL SERVICE 50 TO 499 KW | B23: Retail Transmission Rate - Line and Transformation Connection Service Rate - Interval Metered | C23: $/kW | E23: 2.047 | G23: 0 | I23: 3077693.4 | K23: 6300038.39 | M23: =IF(ISERROR(K23/SUM(K19:K100)),"",K23/SUM(K19:K100)) -> 0.164003639 | O23: =IF(ISERROR('17. RTSR - Current Wholesale'!$P$113*M23), "", '17. RTSR - Current Wholesale'!$P$113*M23) -> 6779713.56 | Q23: 2.202855411
A24: GENERAL SERVICE 500 TO 4,999 KW | B24: Retail Transmission Rate - Line and Transformation Connection Service Rate - Interval Metered | C24: $/kW | E24: 2.003 | G24: 0 | I24: 4849311.77 | K24: 9713171.475 | M24: =IF(ISERROR(K24/SUM(K19:K100)),"",K24/SUM(K19:K100)) -> 0.2528548827 | O24: =IF(ISERROR('17. RTSR - Current Wholesale'!$P$113*M24), "", '17. RTSR - Current Wholesale'!$P$113*M24) -> 10452717.31 | Q24: 2.155505319
A25: LARGE USE > 5000 KW | B25: Retail Transmission Rate - Line and Transformation Connection Service Rate - Interval Metered | C25: $/kW | E25: 2.1393 | G25: 0 | I25: 1755221 | K25: 3754944.285 | M25: =IF(ISERROR(K25/SUM(K19:K100)),"",K25/SUM(K19:K100)) -> 0.09774932928 | O25: =IF(ISERROR('17. RTSR - Current Wholesale'!$P$113*M25), "", '17. RTSR - Current Wholesale'!$P$113*M25) -> 4040839.93 | Q25: 2.30218299
A26: STREET LIGHTING | B26: Retail Transmission Rate - Line and Transformation Connection Service Rate | C26: $/kW | E26: 1.4801 | G26: 0 | I26: 105994 | K26: 156881.7194 | M26: =IF(ISERROR(K26/SUM(K19:K100)),"",K26/SUM(K19:K100)) -> 0.004083970808 | O26: =IF(ISERROR('17. RTSR - Current Wholesale'!$P$113*M26), "", '17. RTSR - Current Wholesale'!$P$113*M26) -> 168826.4506 | Q26: 1.592792523

Sheet 21. RTSR Adj Ntwk to Forcast WS
A13: The purpose of this sheet is to update the re-align RTS Network Rates to recover forecast wholesale network costs.
A16: Rate Class | B16: Rate Description | C16: Unit | E16: Adjusted RTSR-Network | G16: Loss Adjusted Billed kWh | I16: Loss Adjusted Billed kW | K16: Billed Amount | M16: Billed Amount % | O16: Forecast Wholesale Billing | Q16: Proposed RTSR Network
A19: RESIDENTIAL | B19: Retail Transmission Rate - Network Service Rate | C19: $/kWh | E19: 0.008167107715 | G19: 1513631515 | I19: 0 | K19: =IF(E19="", "", IF(C19="$/kWh", E19*G19, E19*I19)) -> 12361991.62 | M19: =IF(ISERROR(K19/SUM(K19:K100)),"",K19/SUM(K19:K100)) -> 0.2253583158 | O19: =IF(ISERROR('18. RTSR - Forecast Wholesale'!$F$109*M19), "", '18. RTSR - Forecast Wholesale'!$F$109*M19) -> 12361991.62 | Q19: =IF(C19="","",IF(C19="$/kWh",IF(G19<>0,O19/G19,),IF(I19<>0,O19/I19,0))) -> 0.008167107715
A20: GENERAL SERVICE LESS THAN 50 KW | B20: Retail Transmission Rate - Network Service Rate | C20: $/kWh | E20: 0.007629797996 | G20: 645357536.3 | I20: 0 | K20: 4923947.637 | M20: =IF(ISERROR(K20/SUM(K19:K100)),"",K20/SUM(K19:K100)) -> 0.0897632502 | O20: =IF(ISERROR('18. RTSR - Forecast Wholesale'!$F$109*M20), "", '18. RTSR - Forecast Wholesale'!$F$109*M20) -> 4923947.637 | Q20: 0.007629797996
A21: UNMETERED SCATTERED LOAD | B21: Retail Transmission Rate - Network Service Rate | C21: $/kWh | E21: 0.007629797996 | G21: 10388389.9 | I21: 0 | K21: 79261.31645 | M21: =IF(ISERROR(K21/SUM(K19:K100)),"",K21/SUM(K19:K100)) -> 0.001444928725 | O21: =IF(ISERROR('18. RTSR - Forecast Wholesale'!$F$109*M21), "", '18. RTSR - Forecast Wholesale'!$F$109*M21) -> 79261.31645 | Q21: 0.007629797996
A22: GENERAL SERVICE 50 TO 499 KW | B22: Retail Transmission Rate - Network Service Rate | C22: $/kW | E22: 2.944457255 | G22: 0 | I22: 3077693.4 | K22: 9062136.66 | M22: =IF(ISERROR(K22/SUM(K19:K100)),"",K22/SUM(K19:K100)) -> 0.1652021712 | O22: =IF(ISERROR('18. RTSR - Forecast Wholesale'!$F$109*M22), "", '18. RTSR - Forecast Wholesale'!$F$109*M22) -> 9062136.66 | Q22: 2.944457255
A23: GENERAL SERVICE 50 TO 499 KW | B23: Retail Transmission Rate - Network Service Rate - Interval Metered | C23: $/kW | E23: 2.944457255 | G23: 0 | I23: 3077693.4 | K23: 9062136.66 | M23: =IF(ISERROR(K23/SUM(K19:K100)),"",K23/SUM(K19:K100)) -> 0.1652021712 | O23: =IF(ISERROR('18. RTSR - Forecast Wholesale'!$F$109*M23), "", '18. RTSR - Forecast Wholesale'!$F$109*M23) -> 9062136.66 | Q23: 2.944457255
A24: GENERAL SERVICE 500 TO 4,999 KW | B24: Retail Transmission Rate - Network Service Rate - Interval Metered | C24: $/kW | E24: 2.848601201 | G24: 0 | I24: 4849311.77 | K24: 13813755.33 | M24: =IF(ISERROR(K24/SUM(K19:K100)),"",K24/SUM(K19:K100)) -> 0.2518238754 | O24: =IF(ISERROR('18. RTSR - Forecast Wholesale'!$F$109*M24), "", '18. RTSR - Forecast Wholesale'!$F$109*M24) -> 13813755.33 | Q24: 2.848601201
A25: LARGE USE > 5000 KW | B25: Retail Transmission Rate - Network Service Rate - Interval Metered | C25: $/kW | E25: 3.039775999 | G25: 0 | I25: 1755221 | K25: 5335478.669 | M25: =IF(ISERROR(K25/SUM(K19:K100)),"",K25/SUM(K19:K100)) -> 0.09726543456 | O25: =IF(ISERROR('18. RTSR - Forecast Wholesale'!$F$109*M25), "", '18. RTSR - Forecast Wholesale'!$F$109*M25) -> 5335478.669 | Q25: 3.039775999
A26: STREET LIGHTING | B26: Retail Transmission Rate - Network Service Rate | C26: $/kW | E26: 2.038982918 | G26: 0 | I26: 105994 | K26: 216119.9554 | M26: =IF(ISERROR(K26/SUM(K19:K100)),"",K26/SUM(K19:K100)) -> 0.003939852952 | O26: =IF(ISERROR('18. RTSR - Forecast Wholesale'!$F$109*M26), "", '18. RTSR - Forecast Wholesale'!$F$109*M26) -> 216119.9554 | Q26: 2.038982918

Sheet 22. RTSR Adj Conn. to Forcst WS
A13: The purpose of this sheet is to update the re-aligned RTS Connection Rates to recover forecast wholesale connection costs.
A16: Rate Class | B16: Rate Description | C16: Unit | E16: Adjusted RTSR-Connection | G16: Loss Adjusted Billed kWh | I16: Loss Adjusted Billed kW | K16: Billed Amount | M16: Billed Amount % | O16: Forecast Wholesale Billing | Q16: Proposed RTSR Connection
A19: RESIDENTIAL | B19: Retail Transmission Rate - Line and Transformation Connection Service Rate | C19: $/kWh | E19: 0.006241603021 | G19: 1513631515 | I19: 0 | K19: =IF(E19="", "", IF(C19="$/kWh", E19*G19, E19*I19)) -> 9447487.035 | M19: =IF(ISERROR(K19/SUM(K19:K100)),"",K19/SUM(K19:K100)) -> 0.2285380112 | O19: =IF(ISERROR('18. RTSR - Forecast Wholesale'!$P$113*M19), "", '18. RTSR - Forecast Wholesale'!$P$113*M19) -> 9447487.035 | Q19: =IF(C19="","",IF(C19="$/kWh",IF(G19<>0,O19/G19,),IF(I19<>0,O19/I19,0))) -> 0.006241603021
A20: GENERAL SERVICE LESS THAN 50 KW | B20: Retail Transmission Rate - Line and Transformation Connection Service Rate | C20: $/kWh | E20: 0.00559591995 | G20: 645357536.3 | I20: 0 | K20: 3611369.112 | M20: =IF(ISERROR(K20/SUM(K19:K100)),"",K20/SUM(K19:K100)) -> 0.08736028019 | O20: =IF(ISERROR('18. RTSR - Forecast Wholesale'!$P$113*M20), "", '18. RTSR - Forecast Wholesale'!$P$113*M20) -> 3611369.112 | Q20: 0.00559591995
A21: UNMETERED SCATTERED LOAD | B21: Retail Transmission Rate - Line and Transformation Connection Service Rate | C21: $/kWh | E21: 0.00559591995 | G21: 10388389.9 | I21: 0 | K21: 58132.59829 | M21: =IF(ISERROR(K21/SUM(K19:K100)),"",K21/SUM(K19:K100)) -> 0.001406247857 | O21: =IF(ISERROR('18. RTSR - Forecast Wholesale'!$P$113*M21), "", '18. RTSR - Forecast Wholesale'!$P$113*M21) -> 58132.59829 | Q21: 0.00559591995
A22: GENERAL SERVICE 50 TO 499 KW | B22: Retail Transmission Rate - Line and Transformation Connection Service Rate | C22: $/kW | E22: 2.202855411 | G22: 0 | I22: 3077693.4 | K22: 6779713.56 | M22: =IF(ISERROR(K22/SUM(K19:K100)),"",K22/SUM(K19:K100)) -> 0.164003639 | O22: =IF(ISERROR('18. RTSR - Forecast Wholesale'!$P$113*M22), "", '18. RTSR - Forecast Wholesale'!$P$113*M22) -> 6779713.56 | Q22: 2.202855411
A23: GENERAL SERVICE 50 TO 499 KW | B23: Retail Transmission Rate - Line and Transformation Connection Service Rate - Interval Metered | C23: $/kW | E23: 2.202855411 | G23: 0 | I23: 3077693.4 | K23: 6779713.56 | M23: =IF(ISERROR(K23/SUM(K19:K100)),"",K23/SUM(K19:K100)) -> 0.164003639 | O23: =IF(ISERROR('18. RTSR - Forecast Wholesale'!$P$113*M23), "", '18. RTSR - Forecast Wholesale'!$P$113*M23) -> 6779713.56 | Q23: 2.202855411
A24: GENERAL SERVICE 500 TO 4,999 KW | B24: Retail Transmission Rate - Line and Transformation Connection Service Rate - Interval Metered | C24: $/kW | E24: 2.155505319 | G24: 0 | I24: 4849311.77 | K24: 10452717.31 | M24: =IF(ISERROR(K24/SUM(K19:K100)),"",K24/SUM(K19:K100)) -> 0.2528548827 | O24: =IF(ISERROR('18. RTSR - Forecast Wholesale'!$P$113*M24), "", '18. RTSR - Forecast Wholesale'!$P$113*M24) -> 10452717.31 | Q24: 2.155505319
A25: LARGE USE > 5000 KW | B25: Retail Transmission Rate - Line and Transformation Connection Service Rate - Interval Metered | C25: $/kW | E25: 2.30218299 | G25: 0 | I25: 1755221 | K25: 4040839.93 | M25: =IF(ISERROR(K25/SUM(K19:K100)),"",K25/SUM(K19:K100)) -> 0.09774932928 | O25: =IF(ISERROR('18. RTSR - Forecast Wholesale'!$P$113*M25), "", '18. RTSR - Forecast Wholesale'!$P$113*M25) -> 4040839.93 | Q25: 2.30218299
A26: STREET LIGHTING | B26: Retail Transmission Rate - Line and Transformation Connection Service Rate | C26: $/kW | E26: 1.592792523 | G26: 0 | I26: 105994 | K26: 168826.4506 | M26: =IF(ISERROR(K26/SUM(K19:K100)),"",K26/SUM(K19:K100)) -> 0.004083970808 | O26: =IF(ISERROR('18. RTSR - Forecast Wholesale'!$P$113*M26), "", '18. RTSR - Forecast Wholesale'!$P$113*M26) -> 168826.4506 | Q26: 1.592792523

Sheet 23. RTSR Final 2015 RTS Rates
A13: This sheet lists proposed RTSRs for all classes. No input required.
A16: Rate Class | B16: Rate Description | C16: Unit | E16: Proposed Retail Transmission Rate
A19: RESIDENTIAL | B19: Retail Transmission Rate - Network Service Rate | C19: $/kWh | E19: 0.008167107715
A20: RESIDENTIAL | B20: Retail Transmission Rate - Line and Transformation Connection Service Rate | C20: $/kWh | E20: 0.006241603021
A21: GENERAL SERVICE LESS THAN 50 KW | B21: Retail Transmission Rate - Network Service Rate | C21: $/kWh | E21: 0.007629797996
A22: GENERAL SERVICE LESS THAN 50 KW | B22: Retail Transmission Rate - Line and Transformation Connection Service Rate | C22: $/kWh | E22: 0.00559591995
A23: UNMETERED SCATTERED LOAD | B23: Retail Transmission Rate - Network Service Rate | C23: $/kWh | E23: 0.007629797996
A24: UNMETERED SCATTERED LOAD | B24: Retail Transmission Rate - Line and Transformation Connection Service Rate | C24: $/kWh | E24: 0.00559591995
A25: GENERAL SERVICE 50 TO 499 KW | B25: Retail Transmission Rate - Network Service Rate | C25: $/kW | E25: 2.944457255
A26: GENERAL SERVICE 50 TO 499 KW | B26: Retail Transmission Rate - Line and Transformation Connection Service Rate | C26: $/kW | E26: 2.202855411
A27: GENERAL SERVICE 50 TO 499 KW | B27: Retail Transmission Rate - Network Service Rate - Interval Metered | C27: $/kW | E27: 2.944457255
A28: GENERAL SERVICE 50 TO 499 KW | B28: Retail Transmission Rate - Line and Transformation Connection Service Rate - Interval Metered | C28: $/kW | E28: 2.202855411
A29: GENERAL SERVICE 500 TO 4,999 KW | B29: Retail Transmission Rate - Network Service Rate - Interval Metered | C29: $/kW | E29: 2.848601201
A30: GENERAL SERVICE 500 TO 4,999 KW | B30: Retail Transmission Rate - Line and Transformation Connection Service Rate - Interval Metered | C30: $/kW | E30: 2.155505319
A31: LARGE USE > 5000 KW | B31: Retail Transmission Rate - Network Service Rate - Interval Metered | C31: $/kW | E31: 3.039775999
A32: LARGE USE > 5000 KW | B32: Retail Transmission Rate - Line and Transformation Connection Service Rate - Interval Metered | C32: $/kW | E32: 2.30218299
A33: STREET LIGHTING | B33: Retail Transmission Rate - Network Service Rate | C33: $/kW | E33: 2.038982918
A34: STREET LIGHTING | B34: Retail Transmission Rate - Line and Transformation Connection Service Rate | C34: $/kW | E34: 1.592792523

Sheet 24. Rev2Cost_GDPIPI
Y1: FALSE | Z1: 0 | AC1: NO
Y2: TRUE
A12: If applicable, please enter any adjustments related to the revenue to cost ratio model into columns C and E. The Price Escalator and Stretch Factor have been set at the 2014 values and will be updated by Board staff at a later date.
A15: Price Escalator | B15: 0.017 | C15: Choose Stretch Factor Group | E15: II
A16: Productivity Factor | B16: 0 | C16: Associated Stretch Factor Value | E16: =IF(E15="I", 0%, IF(E15="II", 0.15%, IF(E15="III", 0.3%, IF(E15="IV", 0.45%, 0.6%)))) -> 0.0015
A17: Price Cap Index | B17: =B15-B16-E16 -> 0.0155
B19: Current MFC | C19: MFC Adjustment from R/C Model | D19: Current Volumetric Charge | E19: DVR Adjustment from R/C Model | F19: Price Cap Index to be Applied to MFC and DVR | G19: Proposed MFC | H19: Proposed Volumetric Charge
A20: Rate Class
A22: RESIDENTIAL | B22: 13.03 | D22: 0.0131 | F22: =$B$17 -> 0.0155 | G22: =ROUND(SUM(B22,C22)*(1+F22),2) -> 13.23 | H22: =ROUND(SUM(D22,E22)*(1+F22),4) -> 0.0133
A23: GENERAL SERVICE LESS THAN 50 KW | B23: 40.1 | D23: 0.0117 | F23: 0.0155 | G23: 40.72 | H23: 0.0119
A24: UNMETERED SCATTERED LOAD | B24: 8.28 | D24: 0.0151 | F24: 0.0155 | G24: 8.41 | H24: 0.0153
A25: GENERAL SERVICE 50 TO 499 KW | B25: 70.62 | D25: 4.2502 | F25: 0.0155 | G25: 71.71 | H25: 4.3161
A26: GENERAL SERVICE 500 TO 4,999 KW | B26: 1608.24 | D26: 2.187 | F26: 0.0155 | G26: 1633.17 | H26: 2.2209
A27: LARGE USE > 5000 KW | B27: 12680.35 | D27: 2.7145 | F27: 0.0155 | G27: 12876.9 | H27: 2.7566
A28: STREET LIGHTING | B28: 1.39 | D28: 10.6192 | F28: 0.0155 | G28: 1.41 | H28: 10.7838
A29: STANDBY DISTRIBUTION SERVICE | F29: 0.0155 | G29: 0 | H29: 0
A30: microFIT | B30: 5.4 | G30: 5.4

Sheet 24. hidden (hidden)
A1: Rate Class | B1: MFC Adjustment from R/C Model | C1: DVR Adjustment from R/C Model
A2: RESIDENTIAL | B2: 13.03 | D2: 0.0131
A3: GENERAL SERVICE LESS THAN 50 KW | B3: 40.1 | D3: 0.0117
A4: UNMETERED SCATTERED LOAD | B4: 8.28 | D4: 0.0151
A5: GENERAL SERVICE 50 TO 499 KW | B5: 70.62 | D5: 4.2502
A6: GENERAL SERVICE 500 TO 4,999 KW | B6: 1608.24 | D6: 2.187
A7: LARGE USE > 5000 KW | B7: 12680.35 | D7: 2.7145
A8: STREET LIGHTING | B8: 1.39 | D8: 10.6192
A9: STANDBY DISTRIBUTION SERVICE

Sheet 25. Other Charges & LF
A11: Please enter the following charges as found on your most recent Board-Approved Tariff Schedule. The standard Allowance rates have been included as default entries. If you have different rates, please make the appropriate corrections in the applicable cells below. As well, please enter the current Specific Service Charges below. The standard Retail Service Charges have been entered below. If you have different rates, please make the appropriate corrections in columns A, C or D as applicable (cells are unlocked).
C13: UNIT | D13: RATE
A15: ALLOWANCES
A17: Transformer Allowance for Ownership - per kW of billing demand/month | C17: $/kW | D17: -0.4
A20: Primary Metering Allowance for transformer losses – applied to measured demand and energy | C20: % | D20: -1
A22: SPECIFIC SERVICE CHARGES
A24: APPLICATION
A26: The application of these rates and charges shall be in accordance with the Licence of the Distributor and any Code or Order of the Board, and amendments thereto as approved by the Board, which may be applicable to the administration of this schedule.
A27: No charges to meet the costs of any work or service done or furnished for the purpose of the distribution of electricity shall be made except as permitted by this schedule, unless required by the Distributor’s Licence or a Code or Order of the Board, and amendments thereto as approved by the Board, or as specified herein.
A28: It should be noted that this schedule does not list any charges, assessments or credits that are required by law to be invoiced by a distributor and that are not subject to Board approval, such as the Debt Retirement Charge, the Global Adjustment, the Ontario Clean Energy Benefit and the HST.
A30: Customer Administration
A31: Arrears certificate | C31: $ | D31: 15
A32: Request for other billing information | C32: $ | D32: 15
A33: Credit Reference/credit check (plus credit agency costs) | C33: $ | D33: 15
A34: Credit reference/credit check (plus credit agency costs – General Service) | C34: $ | D34: 25
A35: Income Tax Letter | C35: $ | D35: 15
A36: Returned cheque (plus bank charges) | C36: $ | D36: 12.5
A37: Account set up charge/change of occupancy charge (plus credit agency costs if applicable) | C37: $ | D37: 30
A38: Account set up charge/change of occupancy charge (plus credit agency costs if applicable – Residential) | C38: $ | D38: 20
A39: Meter dispute charge plus Measurement Canada fees (if meter found correct) | C39: $ | D39: 10
A40: Special meter reads | C40: $ | D40: 30
A41: Interval meter request change | C41: $ | D41: 40
A67: Non-Payment of Account
A68: Late Payment – per month | C68: % | D68: 1.5
A69: Late Payment – per annum | C69: % | D69: 19.56
A70: Collection of account charge – no disconnection | C70: $ | D70: 9
A71: Disconnect/Reconnect at meter – during regular hours | C71: $ | D71: 20
A72: Disconnect/Reconnect at pole – during regular hours | C72: $ | D72: 185
A73: Disconnect/Reconnect at pole – after regular hours | C73: $ | D73: 415
A76: Temporary service install & remove – overhead – no transformer | C76: $ | D76: 400
A77: Specific Charge for Access to the Power Poles - $/pole/year | C77: $ | D77: 22.35
A116: RETAIL SERVICE CHARGES (if applicable)
A118: The application of these rates and charges shall be in accordance with the Licence of the Distributor and any Code or Order of the Board, and amendments thereto as approved by the Board, which may be applicable to the administration of this schedule.
A120: No rates and charges for the distribution of electricity and charges to meet the costs of any work or service done or furnished for the purpose of the distribution of electricity shall be made except as permitted by this schedule, unless required by the Distributor’s Licence or a Code or Order of the Board, and amendments thereto as approved by the Board, or as specified herein.
A122: Unless specifically noted, this schedule does not contain any charges for the electricity commodity, be it under the Regulated Price Plan, a contract with a retailer or the wholesale market price, as applicable.
A124: It should be noted that this schedule does not list any charges, assessments, or credits that are required by law to be invoiced by a distributor and that are not subject to Board approval, such as the Debt Retirement Charge, the Global Adjustment, the Ontario Clean Energy Benefit and the HST.
A126: Retail Service Charges refer to services provided by a distributor to retailers or customers related to the supply of competitive electricity.
A128: One-time charge, per retailer, to establish the service agreement between the distributor and the retailer | C128: $ | D128: 100
A129: Monthly Fixed Charge, per retailer | C129: $ | D129: 20
A130: Monthly Variable Charge, per customer, per retailer | C130: $/cust. | D130: 0.5
A131: Distributor-consolidated billing monthly charge, per customer, per retailer | C131: $/cust. | D131: 0.3
A132: Retailer-consolidated billing monthly credit, per customer, per retailer | C132: $/cust. | D132: -0.3
A133: Service Transaction Requests (STR)
A134: Request fee, per request, applied to the requesting party | C134: $ | D134: 0.25
A135: Processing fee, per request, applied to the requesting party | C135: $ | D135: 0.5
A136: Request for customer information as outlined in Section 10.6.3 and Chapter 11 of the Retail
A137: Settlement Code directly to retailers and customers, if not delivered electronically through the
A138: Electronic Business Transaction (EBT) system, applied to the requesting party
A139: Up to twice a year | C139: $ | D139: no charge
A140: More than twice a year, per request (plus incremental delivery costs) | C140: $ | D140: 2
A143: LOSS FACTORS
A145: If the distributor is not capable of prorating changed loss factors jointly with distribution rates, the revised loss factors will be implemented upon the first subsequent billing for each billing cycle.
A148: Distribution Loss Factor - Secondary Metered Customer < 5,000 kW | D148: 1.036 | H148: TLF_Secondary_LT_5000kW
A149: Total Loss Factor – Secondary Metered Customer > 5,000 kW | D149: 1.0145 | H149: TLF_Primary_LT_5000kW
A150: Distribution Loss Factor - Primary Metered Customer < 5,000 kW | D150: 1.0256
A151: Distribution Loss Factor - Primary Metered Customer > 5,000 kW | D151: 1.0045

Sheet 26. Proposed Rates
Z1: 3
L5: =ROUND(LEN(B5), -2) / 100 -> 0
L9: =ROUND(LEN(B9), -2) / 100 -> 0
B12: In the Green Cells below, enter any proposed rate riders that are not already included in this model (e.g: ICM rate riders). In column B, the rate rider descriptions must begin with "Rate Rider for". In column C, choose the associated unit from the drop-down menu. In column D, enter the rate. All rate riders with a "$" unit will be rounded to 2 decimal places and all others will be rounded to 4 decimal places.
A20: RESIDENTIAL | B20: RESIDENTIAL SERVICE CLASSIFICATION | C20: Unit | D20: Rate
A21: RESIDENTIAL | B21: Rate Rider for Funding of Green Energy (2015), effective until December 31, 2015 | C21: $ | D21: 0.02
A22: RESIDENTIAL
A23: RESIDENTIAL
A24: RESIDENTIAL
A25: RESIDENTIAL
A26: RESIDENTIAL
A27: RESIDENTIAL
A28: RESIDENTIAL
A29: RESIDENTIAL
A30: RESIDENTIAL
A32: GENERAL SERVICE LESS THAN 50 KW | B32: GENERAL SERVICE LESS THAN 50 KW SERVICE CLASSIFICATION | C32: Unit | D32: Rate
A33: GENERAL SERVICE LESS THAN 50 KW | B33: Rate Rider for Funding of Green Energy (2015), effective until December 31, 2015 | C33: $ | D33: 0.02
A34: GENERAL SERVICE LESS THAN 50 KW
A35: GENERAL SERVICE LESS THAN 50 KW
A36: GENERAL SERVICE LESS THAN 50 KW
A37: GENERAL SERVICE LESS THAN 50 KW
A38: GENERAL SERVICE LESS THAN 50 KW
A39: GENERAL SERVICE LESS THAN 50 KW
A40: GENERAL SERVICE LESS THAN 50 KW
A41: GENERAL SERVICE LESS THAN 50 KW
A42: GENERAL SERVICE LESS THAN 50 KW
A44: UNMETERED SCATTERED LOAD | B44: UNMETERED SCATTERED LOAD SERVICE CLASSIFICATION | C44: Unit | D44: Rate
A45: UNMETERED SCATTERED LOAD | B45: Rate Rider for Funding of Green Energy (2015), effective until December 31, 2015 | C45: $ | D45: 0.02
A46: UNMETERED SCATTERED LOAD
A47: UNMETERED SCATTERED LOAD
A48: UNMETERED SCATTERED LOAD
A49: UNMETERED SCATTERED LOAD
A50: UNMETERED SCATTERED LOAD
A51: UNMETERED SCATTERED LOAD
A52: UNMETERED SCATTERED LOAD
A53: UNMETERED SCATTERED LOAD
A54: UNMETERED SCATTERED LOAD
A56: GENERAL SERVICE 50 TO 499 KW | B56: GENERAL SERVICE 50 TO 499 KW SERVICE CLASSIFICATION | C56: Unit | D56: Rate
A57: GENERAL SERVICE 50 TO 499 KW | B57: Rate Rider for Funding of Green Energy (2015), effective until December 31, 2015 | C57: $ | D57: 0.02
A58: GENERAL SERVICE 50 TO 499 KW
A59: GENERAL SERVICE 50 TO 499 KW
A60: GENERAL SERVICE 50 TO 499 KW
A61: GENERAL SERVICE 50 TO 499 KW
A62: GENERAL SERVICE 50 TO 499 KW
A63: GENERAL SERVICE 50 TO 499 KW
A64: GENERAL SERVICE 50 TO 499 KW
A65: GENERAL SERVICE 50 TO 499 KW
A66: GENERAL SERVICE 50 TO 499 KW
A68: GENERAL SERVICE 500 TO 4,999 KW | B68: GENERAL SERVICE 500 TO 4,999 KW SERVICE CLASSIFICATION | C68: Unit | D68: Rate
A69: GENERAL SERVICE 500 TO 4,999 KW | B69: Rate Rider for Funding of Green Energy (2015), effective until December 31, 2015 | C69: $ | D69: 0.02
A70: GENERAL SERVICE 500 TO 4,999 KW
A71: GENERAL SERVICE 500 TO 4,999 KW
A72: GENERAL SERVICE 500 TO 4,999 KW
A73: GENERAL SERVICE 500 TO 4,999 KW
A74: GENERAL SERVICE 500 TO 4,999 KW
A75: GENERAL SERVICE 500 TO 4,999 KW
A76: GENERAL SERVICE 500 TO 4,999 KW
A77: GENERAL SERVICE 500 TO 4,999 KW
A78: GENERAL SERVICE 500 TO 4,999 KW
A80: LARGE USE > 5000 KW | B80: LARGE USE > 5000 KW SERVICE CLASSIFICATION | C80: Unit | D80: Rate
A81: LARGE USE > 5000 KW | B81: Rate Rider for Funding of Green Energy (2015), effective until December 31, 2015 | C81: $ | D81: 0.02
A82: LARGE USE > 5000 KW
A83: LARGE USE > 5000 KW
A84: LARGE USE > 5000 KW
A85: LARGE USE > 5000 KW
A86: LARGE USE > 5000 KW
A87: LARGE USE > 5000 KW
A88: LARGE USE > 5000 KW
A89: LARGE USE > 5000 KW
A90: LARGE USE > 5000 KW
A92: STREET LIGHTING | B92: STREET LIGHTING SERVICE CLASSIFICATION | C92: Unit | D92: Rate
A93: STREET LIGHTING | B93: Rate Rider for Funding of Green Energy (2015), effective until December 31, 2015 | C93: $ | D93: 0.02
A94: STREET LIGHTING
A95: STREET LIGHTING
A96: STREET LIGHTING
A97: STREET LIGHTING
A98: STREET LIGHTING
A99: STREET LIGHTING
A100: STREET LIGHTING
A101: STREET LIGHTING
A102: STREET LIGHTING
A104: STANDBY DISTRIBUTION SERVICE | B104: STANDBY DISTRIBUTION SERVICE SERVICE CLASSIFICATION | C104: Unit | D104: Rate
A105: STANDBY DISTRIBUTION SERVICE
A106: STANDBY DISTRIBUTION SERVICE
A107: STANDBY DISTRIBUTION SERVICE
A108: STANDBY DISTRIBUTION SERVICE
A109: STANDBY DISTRIBUTION SERVICE
A110: STANDBY DISTRIBUTION SERVICE
A111: STANDBY DISTRIBUTION SERVICE
A112: STANDBY DISTRIBUTION SERVICE
A113: STANDBY DISTRIBUTION SERVICE
A114: STANDBY DISTRIBUTION SERVICE
A116: microFIT | B116: microFIT SERVICE CLASSIFICATION | C116: Unit | D116: Rate
A117: microFIT
A118: microFIT
A119: microFIT
A120: microFIT
A121: microFIT
A122: microFIT
A123: microFIT
A124: microFIT
A125: microFIT
A126: microFIT
B130: PROPOSED MONTHLY RATES AND CHARGES - Regulatory Component
A132: Wholesale Market Service Rate | B132: Wholesale Market Service Rate | C132: $/kWh | D132: 0.0044
A133: Rural or Remote Electricity Rate Protection Charge (RRRP) | B133: Rural or Remote Electricity Rate Protection Charge (RRRP) | C133: $/kWh | D133: 0.0013
A134: Standard Supply Service - Administrative Charge (if applicable) | B134: Standard Supply Service - Administrative Charge (if applicable) | C134: $ | D134: 0.25

Sheet 26. Hidden (hidden)
A1: RESIDENTIAL | B1: RESIDENTIAL SERVICE CLASSIFICATION | C1: Unit | D1: Rate
A2: RESIDENTIAL | B2: Rate Rider for Funding of Green Energy (2015), effective until December 31, 2015 | C2: $ | D2: 0.02
A3: RESIDENTIAL
A4: RESIDENTIAL
A5: RESIDENTIAL
A6: RESIDENTIAL
A7: RESIDENTIAL
A8: RESIDENTIAL
A9: RESIDENTIAL
A10: RESIDENTIAL
A11: RESIDENTIAL
A13: GENERAL SERVICE LESS THAN 50 KW | B13: GENERAL SERVICE LESS THAN 50 KW SERVICE CLASSIFICATION | C13: Unit | D13: Rate
A14: GENERAL SERVICE LESS THAN 50 KW | B14: Rate Rider for Funding of Green Energy (2015), effective until December 31, 2015 | C14: $ | D14: 0.02
A15: GENERAL SERVICE LESS THAN 50 KW
A16: GENERAL SERVICE LESS THAN 50 KW
A17: GENERAL SERVICE LESS THAN 50 KW
A18: GENERAL SERVICE LESS THAN 50 KW
A19: GENERAL SERVICE LESS THAN 50 KW
A20: GENERAL SERVICE LESS THAN 50 KW
A21: GENERAL SERVICE LESS THAN 50 KW
A22: GENERAL SERVICE LESS THAN 50 KW
A23: GENERAL SERVICE LESS THAN 50 KW
A25: UNMETERED SCATTERED LOAD | B25: UNMETERED SCATTERED LOAD SERVICE CLASSIFICATION | C25: Unit | D25: Rate
A26: UNMETERED SCATTERED LOAD | B26: Rate Rider for Funding of Green Energy (2015), effective until December 31, 2015 | C26: $ | D26: 0.02
A27: UNMETERED SCATTERED LOAD
A28: UNMETERED SCATTERED LOAD
A29: UNMETERED SCATTERED LOAD
A30: UNMETERED SCATTERED LOAD
A31: UNMETERED SCATTERED LOAD
A32: UNMETERED SCATTERED LOAD
A33: UNMETERED SCATTERED LOAD
A34: UNMETERED SCATTERED LOAD
A35: UNMETERED SCATTERED LOAD
A37: GENERAL SERVICE 50 TO 499 KW | B37: GENERAL SERVICE 50 TO 499 KW SERVICE CLASSIFICATION | C37: Unit | D37: Rate
A38: GENERAL SERVICE 50 TO 499 KW | B38: Rate Rider for Funding of Green Energy (2015), effective until December 31, 2015 | C38: $ | D38: 0.02
A39: GENERAL SERVICE 50 TO 499 KW
A40: GENERAL SERVICE 50 TO 499 KW
A41: GENERAL SERVICE 50 TO 499 KW
A42: GENERAL SERVICE 50 TO 499 KW
A43: GENERAL SERVICE 50 TO 499 KW
A44: GENERAL SERVICE 50 TO 499 KW
A45: GENERAL SERVICE 50 TO 499 KW
A46: GENERAL SERVICE 50 TO 499 KW
A47: GENERAL SERVICE 50 TO 499 KW
A49: GENERAL SERVICE 500 TO 4,999 KW | B49: GENERAL SERVICE 500 TO 4,999 KW SERVICE CLASSIFICATION | C49: Unit | D49: Rate
A50: GENERAL SERVICE 500 TO 4,999 KW | B50: Rate Rider for Funding of Green Energy (2015), effective until December 31, 2015 | C50: $ | D50: 0.02
A51: GENERAL SERVICE 500 TO 4,999 KW
A52: GENERAL SERVICE 500 TO 4,999 KW
A53: GENERAL SERVICE 500 TO 4,999 KW
A54: GENERAL SERVICE 500 TO 4,999 KW
A55: GENERAL SERVICE 500 TO 4,999 KW
A56: GENERAL SERVICE 500 TO 4,999 KW
A57: GENERAL SERVICE 500 TO 4,999 KW
A58: GENERAL SERVICE 500 TO 4,999 KW
A59: GENERAL SERVICE 500 TO 4,999 KW
A61: LARGE USE > 5000 KW | B61: LARGE USE > 5000 KW SERVICE CLASSIFICATION | C61: Unit | D61: Rate
A62: LARGE USE > 5000 KW | B62: Rate Rider for Funding of Green Energy (2015), effective until December 31, 2015 | C62: $ | D62: 0.02
A63: LARGE USE > 5000 KW
A64: LARGE USE > 5000 KW
A65: LARGE USE > 5000 KW
A66: LARGE USE > 5000 KW
A67: LARGE USE > 5000 KW
A68: LARGE USE > 5000 KW
A69: LARGE USE > 5000 KW
A70: LARGE USE > 5000 KW
A71: LARGE USE > 5000 KW
A73: STREET LIGHTING | B73: STREET LIGHTING SERVICE CLASSIFICATION | C73: Unit | D73: Rate
A74: STREET LIGHTING | B74: Rate Rider for Funding of Green Energy (2015), effective until December 31, 2015 | C74: $ | D74: 0.02
A75: STREET LIGHTING
A76: STREET LIGHTING
A77: STREET LIGHTING
A78: STREET LIGHTING
A79: STREET LIGHTING
A80: STREET LIGHTING
A81: STREET LIGHTING
A82: STREET LIGHTING
A83: STREET LIGHTING
A85: STANDBY DISTRIBUTION SERVICE | B85: STANDBY DISTRIBUTION SERVICE SERVICE CLASSIFICATION | C85: Unit | D85: Rate
A86: STANDBY DISTRIBUTION SERVICE
A87: STANDBY DISTRIBUTION SERVICE
A88: STANDBY DISTRIBUTION SERVICE
A89: STANDBY DISTRIBUTION SERVICE
A90: STANDBY DISTRIBUTION SERVICE
A91: STANDBY DISTRIBUTION SERVICE
A92: STANDBY DISTRIBUTION SERVICE
A93: STANDBY DISTRIBUTION SERVICE
A94: STANDBY DISTRIBUTION SERVICE
A95: STANDBY DISTRIBUTION SERVICE
A97: microFIT | B97: microFIT SERVICE CLASSIFICATION | C97: Unit | D97: Rate
A98: microFIT
A99: microFIT
A100: microFIT
A101: microFIT
A102: microFIT
A103: microFIT
A104: microFIT
A105: microFIT
A106: microFIT
A107: microFIT
B111: PROPOSED MONTHLY RATES AND CHARGES - Regulatory Component
A113: Wholesale Market Service Rate | B113: Wholesale Market Service Rate | C113: $/kWh | D113: 0.0044
A114: Rural or Remote Electricity Rate Protection Charge (RRRP) | B114: Rural or Remote Electricity Rate Protection Charge (RRRP) | C114: $/kWh | D114: 0.0013
A115: Standard Supply Service - Administrative Charge (if applicable) | B115: Standard Supply Service - Administrative Charge (if applicable) | C115: $ | D115: 0.25

Sheet 27. Final Tariff Schedule
A1: hidden column | B1: ='1. Information Sheet'!F14 -> Enersource Hydro Mississauga | F1: hidden column | Z1: 3
A2: for rate classes | B2: TARIFF OF RATES AND CHARGES | F2: for proposed
B3: ="Effective and Implementation Date " & TEXT('1. Information Sheet'!F26, "mmmm dd, yyyy") -> Effective and Implementation Date January 01, 2015 | F3: labeliing
B5: This schedule supersedes and replaces all previously
B6: approved schedules of Rates, Charges and Loss Factors | L6: =ROUND(LEN(B6), -2) / 100 -> 1
B7: =IF(LEN('1. Information Sheet'!F18)=0, "Please enter your assigned EB# on Sheet 1", '1. Information Sheet'!F18) -> EB-2014-0068
B9: RESIDENTIAL SERVICE CLASSIFICATION
B11: This classification refers to all residential services including, without limitation, single family or single unit dwellings, multi-family dwellings, row-type dwellings and subdivision developments. Energy is supplied in single phase, 3-wire, or three phase, 4-wire, having a nominal voltage of 120/240 Volts. There shall be only one delivery point to a dwelling. Further servicing details are available in the distributor’s Conditions of Service. | L11: =ROUND(LEN(B11), -2) / 100 -> 4
B13: APPLICATION
B15: The application of these rates and charges shall be in accordance with the Licence of the Distributor and any Code or Order of the Board, and amendments thereto as approved by the Board, which may be applicable to the administration of this schedule. | L15: =ROUND(LEN(B15), -2) / 100 -> 3
B17: No rates and charges for the distribution of electricity and charges to meet the costs of any work or service done or furnished for the purpose of the distribution of electricity shall be made except as permitted by this schedule, unless required by the Distributor’s Licence or a Code or Order of the Board, and amendments thereto as approved by the Board, or as specified herein. | L17: =ROUND(LEN(B17), -2) / 100 -> 4
B19: Unless specifically noted, this schedule does not contain any charges for the electricity commodity, be it under the Regulated Price Plan, a contract with a retailer or the wholesale market price, as applicable. In addition, the charges in the MONTHLY RATES AND CHARGES – Regulatory Component of this schedule do not apply to a customer that is an embedded wholesale market participant. | L19: =ROUND(LEN(B19), -2) / 100 -> 4
B21: It should be noted that this schedule does not list any charges, assessments or credits that are required by law to be invoiced by a distributor and that are not subject to Board approval, such as the Debt Retirement Charge, the Global Adjustment, the Ontario Clean Energy Benefit and the HST. | L21: =ROUND(LEN(B21), -2) / 100 -> 3
B23: MONTHLY RATES AND CHARGES - Delivery Component
A25: RESIDENTIAL | B25: Service Charge | D25: $ | E25: 13.23 | K25: 1_P_MSC
A26: RESIDENTIAL | B26: Rate Rider for Smart Metering Entity Charge - effective until October 31, 2018 | D26: $ | E26: 0.79 | K26: 1_P_SMEC
A27: RESIDENTIAL | B27: Distribution Volumetric Rate | D27: $/kWh | E27: 0.0133 | K27: 1_P_VC_1
A28: RESIDENTIAL | B28: Low Voltage Service Rate | D28: $/kWh | E28: 0.0002 | K28: 1_P_LVrate
A29: RESIDENTIAL | B29: Rate Rider for Funding of Green Energy (2015), effective until December 31, 2015 | D29: $ | E29: 0.02 | K29: 1_P_MSC_Rate_Rider_2
A30: RESIDENTIAL | B30: Retail Transmission Rate - Network Service Rate | D30: $/kWh | E30: 0.008167107715 | K30: 1_P_RTSR_Network
A31: RESIDENTIAL | B31: Retail Transmission Rate - Line and Transformation Connection Service Rate | D31: $/kWh | E31: 0.006241603021 | K31: 1_P_RTSR_Connection
A32: RESIDENTIAL
A33: RESIDENTIAL | B33: MONTHLY RATES AND CHARGES - Regulatory Component
A34: RESIDENTIAL
A35: RESIDENTIAL | B35: Wholesale Market Service Rate | D35: $/kWh | E35: 0.0044 | K35: 1_P_WMSR
A36: RESIDENTIAL | B36: Rural or Remote Electricity Rate Protection Charge (RRRP) | D36: $/kWh | E36: 0.0013 | K36: 1_P_RRPC
A37: RESIDENTIAL | B37: Standard Supply Service - Administrative Charge (if applicable) | D37: $ | E37: 0.25 | K37: 1_P_SSS
B39: GENERAL SERVICE LESS THAN 50 KW SERVICE CLASSIFICATION
B41: This classification refers to a non-residential account whose monthly average peak demand is less than, or is forecast to be less than, 50 kW. Further servicing details are available in the distributor’s Conditions of Service. | L41: =ROUND(LEN(B41), -2) / 100 -> 2
B43: APPLICATION
B45: The application of these rates and charges shall be in accordance with the Licence of the Distributor and any Code or Order of the Board, and amendments thereto as approved by the Board, which may be applicable to the administration of this schedule. | L45: =ROUND(LEN(B45), -2) / 100 -> 3
B47: No rates and charges for the distribution of electricity and charges to meet the costs of any work or service done or furnished for the purpose of the distribution of electricity shall be made except as permitted by this schedule, unless required by the Distributor’s Licence or a Code or Order of the Board, and amendments thereto as approved by the Board, or as specified herein. | L47: =ROUND(LEN(B47), -2) / 100 -> 4
B49: Unless specifically noted, this schedule does not contain any charges for the electricity commodity, be it under the Regulated Price Plan, a contract with a retailer or the wholesale market price, as applicable. In addition, the charges in the MONTHLY RATES AND CHARGES – Regulatory Component of this schedule do not apply to a customer that is an embedded wholesale market participant. | L49: =ROUND(LEN(B49), -2) / 100 -> 4
B51: It should be noted that this schedule does not list any charges, assessments or credits that are required by law to be invoiced by a distributor and that are not subject to Board approval, such as the Debt Retirement Charge, the Global Adjustment, the Ontario Clean Energy Benefit and the HST. | L51: =ROUND(LEN(B51), -2) / 100 -> 3
B53: MONTHLY RATES AND CHARGES - Delivery Component
A55: GENERAL SERVICE LESS THAN 50 KW | B55: Service Charge | D55: $ | E55: 40.72 | K55: 2_P_MSC
A56: GENERAL SERVICE LESS THAN 50 KW | B56: Rate Rider for Smart Metering Entity Charge - effective until October 31, 2018 | D56: $ | E56: 0.79 | K56: 2_P_SMEC
A57: GENERAL SERVICE LESS THAN 50 KW | B57: Distribution Volumetric Rate | D57: $/kWh | E57: 0.0119 | K57: 2_P_VC_1
A58: GENERAL SERVICE LESS THAN 50 KW | B58: Low Voltage Service Rate | D58: $/kWh | E58: 0.0002 | K58: 2_P_LVrate
A59: GENERAL SERVICE LESS THAN 50 KW | B59: Rate Rider for Funding of Green Energy (2015), effective until December 31, 2015 | D59: $ | E59: 0.02 | K59: 2_P_MSC_Rate_Rider_2
A60: GENERAL SERVICE LESS THAN 50 KW | B60: Retail Transmission Rate - Network Service Rate | D60: $/kWh | E60: 0.007629797996 | K60: 2_P_RTSR_Network
A61: GENERAL SERVICE LESS THAN 50 KW | B61: Retail Transmission Rate - Line and Transformation Connection Service Rate | D61: $/kWh | E61: 0.00559591995 | K61: 2_P_RTSR_Connection
A62: GENERAL SERVICE LESS THAN 50 KW
A63: GENERAL SERVICE LESS THAN 50 KW | B63: MONTHLY RATES AND CHARGES - Regulatory Component
A64: GENERAL SERVICE LESS THAN 50 KW
A65: GENERAL SERVICE LESS THAN 50 KW | B65: Wholesale Market Service Rate | D65: $/kWh | E65: 0.0044 | K65: 2_P_WMSR
A66: GENERAL SERVICE LESS THAN 50 KW | B66: Rural or Remote Electricity Rate Protection Charge (RRRP) | D66: $/kWh | E66: 0.0013 | K66: 2_P_RRPC
A67: GENERAL SERVICE LESS THAN 50 KW | B67: Standard Supply Service - Administrative Charge (if applicable) | D67: $ | E67: 0.25 | K67: 2_P_SSS
B69: UNMETERED SCATTERED LOAD SERVICE CLASSIFICATION
B71: This classification applies to an account taking electricity at 750 volts or less whose average monthly maximum demand is less than, or is forecast to be less than, 50 kW and the consumption is unmetered. The amount of electricity consumed by unmetered connections will be based on detailed information/documentation provided by the device’s manufacturer and will be agreed to by Enersource Hydro Mississauga Inc. and the customer and may be subject to periodic monitoring of actual consumption. Eligible unmetered loads include cable TV power packs, bus shelters, telephone booths, traffic lights, railway crossings. Further servicing details are available in the distributor’s Conditions of Service. | L71: =ROUND(LEN(B71), -2) / 100 -> 7
B73: APPLICATION
B75: The application of these rates and charges shall be in accordance with the Licence of the Distributor and any Code or Order of the Board, and amendments thereto as approved by the Board, which may be applicable to the administration of this schedule. | L75: =ROUND(LEN(B75), -2) / 100 -> 3
B77: No rates and charges for the distribution of electricity and charges to meet the costs of any work or service done or furnished for the purpose of the distribution of electricity shall be made except as permitted by this schedule, unless required by the Distributor’s Licence or a Code or Order of the Board, and amendments thereto as approved by the Board, or as specified herein. | L77: =ROUND(LEN(B77), -2) / 100 -> 4
B79: Unless specifically noted, this schedule does not contain any charges for the electricity commodity, be it under the Regulated Price Plan, a contract with a retailer or the wholesale market price, as applicable. In addition, the charges in the MONTHLY RATES AND CHARGES – Regulatory Component of this schedule do not apply to a customer that is an embedded wholesale market participant. | L79: =ROUND(LEN(B79), -2) / 100 -> 4
B81: It should be noted that this schedule does not list any charges, assessments or credits that are required by law to be invoiced by a distributor and that are not subject to Board approval, such as the Debt Retirement Charge, the Global Adjustment, the Ontario Clean Energy Benefit and the HST. | L81: =ROUND(LEN(B81), -2) / 100 -> 3
B83: MONTHLY RATES AND CHARGES - Delivery Component
A85: UNMETERED SCATTERED LOAD | B85: Service Charge (per connection) | D85: $ | E85: 8.41 | K85: 3_P_MSC
A86: UNMETERED SCATTERED LOAD | B86: Distribution Volumetric Rate | D86: $/kWh | E86: 0.0153 | K86: 3_P_VC_1
A87: UNMETERED SCATTERED LOAD | B87: Low Voltage Service Rate | D87: $/kWh | E87: 0.0002 | K87: 3_P_LVrate
A88: UNMETERED SCATTERED LOAD | B88: Rate Rider for Funding of Green Energy (2015), effective until December 31, 2015 | D88: $ | E88: 0.02 | K88: 3_P_MSC_Rate_Rider_1
A89: UNMETERED SCATTERED LOAD | B89: Retail Transmission Rate - Network Service Rate | D89: $/kWh | E89: 0.007629797996 | K89: 3_P_RTSR_Network
A90: UNMETERED SCATTERED LOAD | B90: Retail Transmission Rate - Line and Transformation Connection Service Rate | D90: $/kWh | E90: 0.00559591995 | K90: 3_P_RTSR_Connection
A91: UNMETERED SCATTERED LOAD
A92: UNMETERED SCATTERED LOAD | B92: MONTHLY RATES AND CHARGES - Regulatory Component
A93: UNMETERED SCATTERED LOAD
A94: UNMETERED SCATTERED LOAD | B94: Wholesale Market Service Rate | D94: $/kWh | E94: 0.0044 | K94: 3_P_WMSR
A95: UNMETERED SCATTERED LOAD | B95: Rural or Remote Electricity Rate Protection Charge (RRRP) | D95: $/kWh | E95: 0.0013 | K95: 3_P_RRPC
A96: UNMETERED SCATTERED LOAD | B96: Standard Supply Service - Administrative Charge (if applicable) | D96: $ | E96: 0.25 | K96: 3_P_SSS
B98: GENERAL SERVICE 50 TO 499 KW SERVICE CLASSIFICATION
B100: This classification refers to a non-residential account whose monthly average peak demand is equal to or greater than, or is forecast to be equal to or greater than, 50 kW but less than 500 kW. Further servicing details are available in the distributor’s Conditions of Service. | L100: =ROUND(LEN(B100), -2) / 100 -> 3
B102: APPLICATION
B104: The application of these rates and charges shall be in accordance with the Licence of the Distributor and any Code or Order of the Board, and amendments thereto as approved by the Board, which may be applicable to the administration of this schedule. | L104: =ROUND(LEN(B104), -2) / 100 -> 3
B106: No rates and charges for the distribution of electricity and charges to meet the costs of any work or service done or furnished for the purpose of the distribution of electricity shall be made except as permitted by this schedule, unless required by the Distributor’s Licence or a Code or Order of the Board, and amendments thereto as approved by the Board, or as specified herein. | L106: =ROUND(LEN(B106), -2) / 100 -> 4
B108: Unless specifically noted, this schedule does not contain any charges for the electricity commodity, be it under the Regulated Price Plan, a contract with a retailer or the wholesale market price, as applicable. In addition, the charges in the MONTHLY RATES AND CHARGES – Regulatory Component of this schedule do not apply to a customer that is an embedded wholesale market participant. | L108: =ROUND(LEN(B108), -2) / 100 -> 4
B110: It should be noted that this schedule does not list any charges, assessments or credits that are required by law to be invoiced by a distributor and that are not subject to Board approval, such as the Debt Retirement Charge, the Global Adjustment, the Ontario Clean Energy Benefit and the HST. Billing demands are established at the greater of 100% of the kW, or 90% of the kVa amounts. | L110: =ROUND(LEN(B110), -2) / 100 -> 4
B112: MONTHLY RATES AND CHARGES - Delivery Component
A114: GENERAL SERVICE 50 TO 499 KW | B114: Service Charge | D114: $ | E114: 71.71 | K114: 4_P_MSC
A115: GENERAL SERVICE 50 TO 499 KW | B115: Distribution Volumetric Rate | D115: $/kW | E115: 4.3161 | K115: 4_P_VC_1
A116: GENERAL SERVICE 50 TO 499 KW | B116: Low Voltage Service Rate | D116: $/kW | E116: 0.0802 | K116: 4_P_LVrate
A117: GENERAL SERVICE 50 TO 499 KW | B117: Rate Rider for Funding of Green Energy (2015), effective until December 31, 2015 | D117: $ | E117: 0.02 | K117: 4_P_MSC_Rate_Rider_1
A118: GENERAL SERVICE 50 TO 499 KW | B118: Retail Transmission Rate - Network Service Rate | D118: $/kW | E118: 2.944457255 | K118: 4_P_RTSR_Network
A119: GENERAL SERVICE 50 TO 499 KW | B119: Retail Transmission Rate - Line and Transformation Connection Service Rate | D119: $/kW | E119: 2.202855411 | K119: 4_P_RTSR_Connection
A120: GENERAL SERVICE 50 TO 499 KW | B120: Retail Transmission Rate - Network Service Rate - Interval Metered | D120: $/kW | E120: 2.944457255 | K120: 4_P_RTSR_Network_Interval
A121: GENERAL SERVICE 50 TO 499 KW | B121: Retail Transmission Rate - Line and Transformation Connection Service Rate - Interval Metered | D121: $/kW | E121: 2.202855411 | K121: 4_P_RTSR_Connection_Interval
A122: GENERAL SERVICE 50 TO 499 KW
A123: GENERAL SERVICE 50 TO 499 KW | B123: MONTHLY RATES AND CHARGES - Regulatory Component
A124: GENERAL SERVICE 50 TO 499 KW
A125: GENERAL SERVICE 50 TO 499 KW | B125: Wholesale Market Service Rate | D125: $/kWh | E125: 0.0044 | K125: 4_P_WMSR
A126: GENERAL SERVICE 50 TO 499 KW | B126: Rural or Remote Electricity Rate Protection Charge (RRRP) | D126: $/kWh | E126: 0.0013 | K126: 4_P_RRPC
A127: GENERAL SERVICE 50 TO 499 KW | B127: Standard Supply Service - Administrative Charge (if applicable) | D127: $ | E127: 0.25 | K127: 4_P_SSS
B129: GENERAL SERVICE 500 TO 4,999 KW SERVICE CLASSIFICATION
B131: This classification refers to a non-residential account whose monthly average peak demand is equal to or greater than, or is forecast to be equal to or greater than, 500 kW but less than 5,000 kW. Further servicing details are available in the distributor’s Conditions of Service. | L131: =ROUND(LEN(B131), -2) / 100 -> 3
B133: APPLICATION
B135: The application of these rates and charges shall be in accordance with the Licence of the Distributor and any Code or Order of the Board, and amendments thereto as approved by the Board, which may be applicable to the administration of this schedule. | L135: =ROUND(LEN(B135), -2) / 100 -> 3
B137: No rates and charges for the distribution of electricity and charges to meet the costs of any work or service done or furnished for the purpose of the distribution of electricity shall be made except as permitted by this schedule, unless required by the Distributor’s Licence or a Code or Order of the Board, and amendments thereto as approved by the Board, or as specified herein. | L137: =ROUND(LEN(B137), -2) / 100 -> 4
B139: Unless specifically noted, this schedule does not contain any charges for the electricity commodity, be it under the Regulated Price Plan, a contract with a retailer or the wholesale market price, as applicable. In addition, the charges in the MONTHLY RATES AND CHARGES – Regulatory Component of this schedule do not apply to a customer that is an embedded wholesale market participant. | L139: =ROUND(LEN(B139), -2) / 100 -> 4
B141: It should be noted that this schedule does not list any charges, assessments or credits that are required by law to be invoiced by a distributor and that are not subject to Board approval, such as the Debt Retirement Charge, the Global Adjustment, the Ontario Clean Energy Benefit and the HST. Billing demands are established at the greater of 100% of the kW, or 90% of the kVa amounts. | L141: =ROUND(LEN(B141), -2) / 100 -> 6
B143: MONTHLY RATES AND CHARGES - Delivery Component
A145: GENERAL SERVICE 500 TO 4,999 KW | B145: Service Charge | D145: $ | E145: 1633.17 | K145: 5_P_MSC
A146: GENERAL SERVICE 500 TO 4,999 KW | B146: Distribution Volumetric Rate | D146: $/kW | E146: 2.2209 | K146: 5_P_VC_1
A147: GENERAL SERVICE 500 TO 4,999 KW | B147: Low Voltage Service Rate | D147: $/kW | E147: 0.0784 | K147: 5_P_LVrate
A148: GENERAL SERVICE 500 TO 4,999 KW | B148: Rate Rider for Funding of Green Energy (2015), effective until December 31, 2015 | D148: $ | E148: 0.02 | K148: 5_P_MSC_Rate_Rider_1
A149: GENERAL SERVICE 500 TO 4,999 KW | B149: Retail Transmission Rate - Network Service Rate - Interval Metered | D149: $/kW | E149: 2.848601201 | K149: 5_P_RTSR_Network_Interval
A150: GENERAL SERVICE 500 TO 4,999 KW | B150: Retail Transmission Rate - Line and Transformation Connection Service Rate - Interval Metered | D150: $/kW | E150: 2.155505319 | K150: 5_P_RTSR_Connection_Interval
A151: GENERAL SERVICE 500 TO 4,999 KW
A152: GENERAL SERVICE 500 TO 4,999 KW | B152: MONTHLY RATES AND CHARGES - Regulatory Component
A153: GENERAL SERVICE 500 TO 4,999 KW
A154: GENERAL SERVICE 500 TO 4,999 KW | B154: Wholesale Market Service Rate | D154: $/kWh | E154: 0.0044 | K154: 5_P_WMSR
A155: GENERAL SERVICE 500 TO 4,999 KW | B155: Rural or Remote Electricity Rate Protection Charge (RRRP) | D155: $/kWh | E155: 0.0013 | K155: 5_P_RRPC
A156: GENERAL SERVICE 500 TO 4,999 KW | B156: Standard Supply Service - Administrative Charge (if applicable) | D156: $ | E156: 0.25 | K156: 5_P_SSS
B158: LARGE USE > 5000 KW SERVICE CLASSIFICATION
B160: This classification refers to an account whose monthly average peak demand is equal to or greater than, or is forecast to be equal to or greater than, 5,000 kW. Further servicing details are available in the distributor’s Conditions of Service. | L160: =ROUND(LEN(B160), -2) / 100 -> 2
B162: APPLICATION
B164: The application of these rates and charges shall be in accordance with the Licence of the Distributor and any Code or Order of the Board, and amendments thereto as approved by the Board, which may be applicable to the administration of this schedule. | L164: =ROUND(LEN(B164), -2) / 100 -> 3
B166: No rates and charges for the distribution of electricity and charges to meet the costs of any work or service done or furnished for the purpose of the distribution of electricity shall be made except as permitted by this schedule, unless required by the Distributor’s Licence or a Code or Order of the Board, and amendments thereto as approved by the Board, or as specified herein. | L166: =ROUND(LEN(B166), -2) / 100 -> 4
B168: Unless specifically noted, this schedule does not contain any charges for the electricity commodity, be it under the Regulated Price Plan, a contract with a retailer or the wholesale market price, as applicable. In addition, the charges in the MONTHLY RATES AND CHARGES – Regulatory Component of this schedule do not apply to a customer that is an embedded wholesale market participant. | L168: =ROUND(LEN(B168), -2) / 100 -> 4
B170: It should be noted that this schedule does not list any charges, assessments or credits that are required by law to be invoiced by a distributor and that are not subject to Board approval, such as the Debt Retirement Charge, the Global Adjustment, the Ontario Clean Energy Benefit and the HST. Billing demands are established at the greater of 100% of the kW, or 90% of the kVa amounts. | L170: =ROUND(LEN(B170), -2) / 100 -> 8
B172: MONTHLY RATES AND CHARGES - Delivery Component
A174: LARGE USE > 5000 KW | B174: Service Charge | D174: $ | E174: 12876.9 | K174: 6_P_MSC
A175: LARGE USE > 5000 KW | B175: Distribution Volumetric Rate | D175: $/kW | E175: 2.7566 | K175: 6_P_VC_1
A176: LARGE USE > 5000 KW | B176: Low Voltage Service Rate | D176: $/kW | E176: 0.0838 | K176: 6_P_LVrate
A177: LARGE USE > 5000 KW | B177: Rate Rider for Funding of Green Energy (2015), effective until December 31, 2015 | D177: $ | E177: 0.02 | K177: 6_P_MSC_Rate_Rider_1
A178: LARGE USE > 5000 KW | B178: Retail Transmission Rate - Network Service Rate - Interval Metered | D178: $/kW | E178: 3.039775999 | K178: 6_P_RTSR_Network_Interval
A179: LARGE USE > 5000 KW | B179: Retail Transmission Rate - Line and Transformation Connection Service Rate - Interval Metered | D179: $/kW | E179: 2.30218299 | K179: 6_P_RTSR_Connection_Interval
A180: LARGE USE > 5000 KW
A181: LARGE USE > 5000 KW | B181: MONTHLY RATES AND CHARGES - Regulatory Component
A182: LARGE USE > 5000 KW
A183: LARGE USE > 5000 KW | B183: Wholesale Market Service Rate | D183: $/kWh | E183: 0.0044 | K183: 6_P_WMSR
A184: LARGE USE > 5000 KW | B184: Rural or Remote Electricity Rate Protection Charge (RRRP) | D184: $/kWh | E184: 0.0013 | K184: 6_P_RRPC
A185: LARGE USE > 5000 KW | B185: Standard Supply Service - Administrative Charge (if applicable) | D185: $ | E185: 0.25 | K185: 6_P_SSS
B187: STREET LIGHTING SERVICE CLASSIFICATION
B189: This classification refers to an account for roadway lighting. Street Lighting is unmetered where energy consumption is estimated based on the connected wattage and calculated hours of use using methods established by the Ontario Energy Board. Further servicing details are available in the distributor’s Conditions of Service. | L189: =ROUND(LEN(B189), -2) / 100 -> 3
B191: APPLICATION
B193: The application of these rates and charges shall be in accordance with the Licence of the Distributor and any Code or Order of the Board, and amendments thereto as approved by the Board, which may be applicable to the administration of this schedule. | L193: =ROUND(LEN(B193), -2) / 100 -> 3
B195: No rates and charges for the distribution of electricity and charges to meet the costs of any work or service done or furnished for the purpose of the distribution of electricity shall be made except as permitted by this schedule, unless required by the Distributor’s Licence or a Code or Order of the Board, and amendments thereto as approved by the Board, or as specified herein. | L195: =ROUND(LEN(B195), -2) / 100 -> 4
B197: Unless specifically noted, this schedule does not contain any charges for the electricity commodity, be it under the Regulated Price Plan, a contract with a retailer or the wholesale market price, as applicable. In addition, the charges in the MONTHLY RATES AND CHARGES – Regulatory Component of this schedule do not apply to a customer that is an embedded wholesale market participant. | L197: =ROUND(LEN(B197), -2) / 100 -> 4
B199: It should be noted that this schedule does not list any charges, assessments or credits that are required by law to be invoiced by a distributor and that are not subject to Board approval, such as the Debt Retirement Charge, the Global Adjustment, the Ontario Clean Energy Benefit and the HST. | L199: =ROUND(LEN(B199), -2) / 100 -> 3
B201: MONTHLY RATES AND CHARGES - Delivery Component
A203: STREET LIGHTING | B203: Service Charge (per light) | D203: $ | E203: 1.41 | K203: 7_P_MSC
A204: STREET LIGHTING | B204: Distribution Volumetric Rate | D204: $/kW | E204: 10.7838 | K204: 7_P_VC_1
A205: STREET LIGHTING | B205: Low Voltage Service Rate | D205: $/kW | E205: 0.058 | K205: 7_P_LVrate
A206: STREET LIGHTING | B206: Rate Rider for Funding of Green Energy (2015), effective until December 31, 2015 | D206: $ | E206: 0.02 | K206: 7_P_MSC_Rate_Rider_1
A207: STREET LIGHTING | B207: Retail Transmission Rate - Network Service Rate | D207: $/kW | E207: 2.038982918 | K207: 7_P_RTSR_Network
A208: STREET LIGHTING | B208: Retail Transmission Rate - Line and Transformation Connection Service Rate | D208: $/kW | E208: 1.592792523 | K208: 7_P_RTSR_Connection
A209: STREET LIGHTING
A210: STREET LIGHTING | B210: MONTHLY RATES AND CHARGES - Regulatory Component
A211: STREET LIGHTING
A212: STREET LIGHTING | B212: Wholesale Market Service Rate | D212: $/kWh | E212: 0.0044 | K212: 7_P_WMSR
A213: STREET LIGHTING | B213: Rural or Remote Electricity Rate Protection Charge (RRRP) | D213: $/kWh | E213: 0.0013 | K213: 7_P_RRPC
A214: STREET LIGHTING | B214: Standard Supply Service - Administrative Charge (if applicable) | D214: $ | E214: 0.25 | K214: 7_P_SSS
B216: STANDBY DISTRIBUTION SERVICE SERVICE CLASSIFICATION
B218: This classification refers to an account that requires Enersource Hydro Mississauga to provide distribution service on a standby basis as a back-up supply to an on-site generator. Further servicing details are available in the distributor’s Conditions of Service. | L218: =ROUND(LEN(B218), -2) / 100 -> 3
B220: APPLICATION
B222: The application of these rates and charges shall be in accordance with the Licence of the Distributor and any Code or Order of the Board, and amendments thereto as approved by the Board, which may be applicable to the administration of this schedule. | L222: =ROUND(LEN(B222), -2) / 100 -> 3
B224: No rates and charges for the distribution of electricity and charges to meet the costs of any work or service done or furnished for the purpose of the distribution of electricity shall be made except as permitted by this schedule, unless required by the Distributor’s Licence or a Code or Order of the Board, and amendments thereto as approved by the Board, or as specified herein. | L224: =ROUND(LEN(B224), -2) / 100 -> 4
B226: Unless specifically noted, this schedule does not contain any charges for the electricity commodity, be it under the Regulated Price Plan, a contract with a retailer or the wholesale market price, as applicable. | L226: =ROUND(LEN(B226), -2) / 100 -> 2
B228: It should be noted that this schedule does not list any charges, assessments or credits that are required by law to be invoiced by a distributor and that are not subject to Board approval, such as the Debt Retirement Charge, the Global Adjustment, the Ontario Clean Energy Benefit and the HST. | L228: =ROUND(LEN(B228), -2) / 100 -> 3
B230: MONTHLY RATES AND CHARGES - Delivery Component
A232: STANDBY DISTRIBUTION SERVICE | B232: A Standby Service Charge will be applied for a month where standby power is not provided. The applicable rate is the approved Distribution Volumetric Rate of the applicable service class and is applied to gross metered demand or contracted amount, whichever is greater. A monthly administration charge of $200, for simple metering arrangements, or $500, for complex metering arrangements, will also be applied. | E232: 0 | K232: 8_P_VC_1
A233: STANDBY DISTRIBUTION SERVICE
A234: STANDBY DISTRIBUTION SERVICE | B234: MONTHLY RATES AND CHARGES - Regulatory Component
A235: STANDBY DISTRIBUTION SERVICE
A236: STANDBY DISTRIBUTION SERVICE | B236: Wholesale Market Service Rate | D236: $/kWh | E236: 0.0044 | K236: 8_P_WMSR
A237: STANDBY DISTRIBUTION SERVICE | B237: Rural or Remote Electricity Rate Protection Charge (RRRP) | D237: $/kWh | E237: 0.0013 | K237: 8_P_RRPC
A238: STANDBY DISTRIBUTION SERVICE | B238: Standard Supply Service - Administrative Charge (if applicable) | D238: $ | E238: 0.25 | K238: 8_P_SSS
B240: MICROFIT SERVICE CLASSIFICATION
B242: APPLICATION This classification applies to an electricity generation facility contracted under the Ontario Power Authority’s microFIT program and connected to the distributor’s distribution system. Further servicing details are available in the distributor’s Conditions of Service. | L242: =ROUND(LEN(B242), -2) / 100 -> 6
B244: APPLICATION
B246: The application of these rates and charges shall be in accordance with the Licence of the Distributor and any Code or Order of the Board, and amendments thereto as approved by the Board, which may be applicable to the administration of this schedule. | L246: =ROUND(LEN(B246), -2) / 100 -> 3
B248: No rates and charges for the distribution of electricity and charges to meet the costs of any work or service done or furnished for the purpose of the distribution of electricity shall be made except as permitted by this schedule, unless required by the Distributor’s Licence or a Code or Order of the Board, and amendments thereto as approved by the Board, or as specified herein. | L248: =ROUND(LEN(B248), -2) / 100 -> 4
B250: Unless specifically noted, this schedule does not contain any charges for the electricity commodity, be it under the Regulated Price Plan, a contract with a retailer or the wholesale market price, as applicable. | L250: =ROUND(LEN(B250), -2) / 100 -> 2
B252: It should be noted that this schedule does not list any charges, assessments or credits that are required by law to be invoiced by a distributor and that are not subject to Board approval, such as the Debt Retirement Charge, the Global Adjustment, the Ontario Clean Energy Benefit and the HST. | L252: =ROUND(LEN(B252), -2) / 100 -> 3
B254: MONTHLY RATES AND CHARGES - Delivery Component
A256: MICROFIT | B256: Service Charge | D256: $ | E256: 5.4 | K256: 9_P_MSC
A257: MICROFIT
B258: ALLOWANCES
A259: MICROFIT
B260: Transformer Allowance for Ownership - per kW of billing demand/month | D260: $/kW | E260: -0.4
B261: Primary Metering Allowance for transformer losses – applied to measured demand and energy | D261: % | E261: -1
B263: SPECIFIC SERVICE CHARGES
B265: The application of these rates and charges shall be in accordance with the Licence of the Distributor and any Code or Order of the Board, and amendments thereto as approved by the Board, which may be applicable to the administration of this schedule.
B267: No charges to meet the costs of any work or service done or furnished for the purpose of the distribution of electricity shall be made except as permitted by this schedule, unless required by the Distributor’s Licence or a Code or Order of the Board, and amendments thereto as approved by the Board, or as specified herein.
B269: It should be noted that this schedule does not list any charges, assessments, or credits that are required by law to be invoiced by a distributor and that are not subject to Board approval, such as the Debt Retirement Charge, the Global Adjustment, the Ontario Clean Energy Benefit and the HST.
B271: Customer Administration
B272: Arrears certificate | D272: $ | E272: 15
B273: Request for other billing information | D273: $ | E273: 15
B274: Credit Reference/credit check (plus credit agency costs) | D274: $ | E274: 15
B275: Credit reference/credit check (plus credit agency costs – General Service) | D275: $ | E275: 25
B276: Income Tax Letter | D276: $ | E276: 15
B277: Returned cheque (plus bank charges) | D277: $ | E277: 12.5
B278: Account set up charge/change of occupancy charge (plus credit agency costs if applicable) | D278: $ | E278: 30
B279: Account set up charge/change of occupancy charge (plus credit agency costs if applicable – Residential) | D279: $ | E279: 20
B280: Meter dispute charge plus Measurement Canada fees (if meter found correct) | D280: $ | E280: 10
B281: Special meter reads | D281: $ | E281: 30
B282: Interval meter request change | D282: $ | E282: 40
B285: Non-Payment of Account
B286: Late Payment – per month | D286: % | E286: 1.5
B287: Late Payment – per annum | D287: % | E287: 19.56
B288: Collection of account charge – no disconnection | D288: $ | E288: 9
B289: Disconnect/Reconnect at meter – during regular hours | D289: $ | E289: 20
... 29 more rows

Sheet 14. Bill Impacts (hidden)
Z1: =MATCH(A13, '3. Rate Class Selection'!B19:B40,0) -> 1 | AA1: =VLOOKUP(A13, lists!AO:AP,2,0) -> kWh
A11: Choose a Rate Class from the drop-down menu below and click UPDATE. For Street Lighting and USL classes, please ensure that the number of customers is manually entered into cells B30 and B31. Click the UPDATE button to refresh the sheet.
A13: RESIDENTIAL | F13: =IF(ISERROR(SEARCH("MicroFit",A13,1))=FALSE,"Bill impact presentation for this class does not exist.", "") -> 
A15: Consumption | B15: =730*D15*B17 -> 3650000 | C15: kWh | D15: 10000 | E15: =IF(AA1 = "kWh", "", "kW") -> 
A16: RPP Tier One | B16: 600 | C16: kWh | E16: 1
A17: Load Factor | B17: 0.5
A18: Loss Factor | B18: 1
B21: CURRENT ESTIMATED BILL | E21: PROPOSED ESTIMATED BILL
B22: Volume | C22: Current Rate ($) | D22: Current Charge ($) | E22: Volume | F22: Proposed Rate ($) | G22: Proposed Charge ($) | I22: Change ($) | J22: Change (%) | K22: % of Total RPP Bill | L22: % of Total TOU Bill
A23: Energy First Tier (kWh) | B23: 3650000 | C23: 0.075 | D23: =B23*C23 -> 273750 | E23: =B23 -> 3650000 | F23: =C23 -> 0.075 | G23: =E23*F23 -> 273750 | I23: =G23-D23 -> 0 | J23: =I23/D23 -> 0 | K23: =G23/G48 -> 0.8646078577
A24: Energy Second Tier (kWh) | B24: 0 | C24: 0.088 | D24: =B24*C24 -> 0 | E24: =B24 -> 0 | F24: =C24 -> 0.088 | G24: =E24*F24 -> 0 | I24: =G24-D24 -> 0 | J24: 0 | K24: =G24/G48 -> 0
A26: TOU - Off Peak | B26: =0.64*$B$15*$B$18 -> 2336000 | C26: 0.065 | D26: =C26*B26 -> 151840 | E26: =B26 -> 2336000 | F26: =C26 -> 0.065 | G26: =F26*E26 -> 151840 | I26: =G26-D26 -> 0 | J26: =I26/D26 -> 0 | L26: =G26/G54 -> 0.449726096
A27: TOU - Mid Peak | B27: =0.18*$B$15*$B$18 -> 657000 | C27: 0.1 | D27: =C27*B27 -> 65700 | E27: =B27 -> 657000 | F27: =C27 -> 0.1 | G27: =F27*E27 -> 65700 | H27: =G27*F27 -> 6570 | I27: =G27-D27 -> 0 | J27: =I27/D27 -> 0 | L27: =G27/G54 -> 0.1945930223
A28: TOU - On Peak | B28: =0.18*$B$15*$B$18 -> 657000 | C28: 0.117 | D28: 76869 | F28: =C28 -> 0.117 | G28: =F28*E28 -> 0 | H28: =G28*F28 -> 0 | J28: =I28/D28 -> 0 | L28: =G28/G54 -> 0
A30: Service Charge | B30: 1 | D30: 0 | G30: =F30*E30 -> 0 | H30: 0 | J30: 0 | K30: 0 | L30: 0
A31: Service Charge Rate Rider(s) | B31: 1 | C31: 0 | D31: 0 | F31: 0 | G31: 0 | H31: 0 | J31: 0 | K31: 0 | L31: 0
A32: Distribution Volumetric Rate | B32: 10000 | D32: 0 | E32: =B32 -> 10000 | G32: 0 | H32: 0 | I32: =G32-D32 -> 0 | J32: 0 | K32: 0 | L32: 0
A33: Low Voltage Volumetric Rate | B33: 10000 | D33: 0 | G33: 0 | H33: 0 | J33: 0 | K33: 0 | L33: 0
A34: Distribution Volumetric Rate Rider(s) | B34: 10000 | C34: 0 | D34: 0 | F34: 1.2025 | G34: 0 | H34: 0 | J34: 0 | K34: =G34/G48 -> 0 | L34: =G34/G54 -> 0
A35: Total: Distribution | D35: =ROUND(SUM(D30:D34),2) -> 0 | G35: =ROUND(SUM(G30:G34),2) -> 0 | J35: 0 | K35: =G35/G48 -> 0 | L35: =G35/G54 -> 0
A36: Total: Retail Transmission
A37: Sub-Total: Delivery (Distribution and Retail Transmission) | D37: =SUM(D36,D35) -> 0 | G37: =SUM(G36,G35) -> 0 | J37: 0 | K37: =G37/G48 -> 0 | L37: =G37/G54 -> 0
A38: Wholesale Market Service Rate | B38: 3650000 | C38: 0 | D38: =B38*C38 -> 0 | F38: =C38 -> 0 | G38: =E38*F38 -> 0 | J38: 0 | K38: 0 | L38: 0
A39: Rural Rate Protection Charge | B39: 3650000 | C39: 0 | D39: =B39*C39 -> 0 | E39: 3650000 | F39: 0 | G39: =E39*F39 -> 0 | I39: =G39-D39 -> 0 | J39: 0 | K39: 0 | L39: 0
A40: Standard Supply Service – Administration Charge (if applicable) | B40: 1 | C40: 0 | D40: =B40*C40 -> 0 | E40: 1 | F40: 0 | G40: =E40*F40 -> 0 | I40: =G40-D40 -> 0 | J40: 0 | K40: 0 | L40: 0
A41: Sub-Total: Regulatory | D41: =SUM(D38:D40) -> 0 | G41: =SUM(G38:H40) -> 0 | I41: =G41-D41 -> 0 | J41: 0 | K41: 0 | L41: 0
A42: Debt Retirement Charge (DRC) | B42: 3650000 | C42: 0.007 | D42: =B42*C42 -> 25550 | E42: =B42 -> 3650000 | F42: =C42 -> 0.007 | G42: =E42*F42 -> 25550 | I42: =G42-D42 -> 0 | J42: =I42/D42 -> 0 | K42: =G42/G48 -> 0.08069673339 | L42: =G42/G54 -> 0.07567506422
A44: Total Bill on RPP (before taxes) | D44: 299300 | G44: 311325 | I44: =G44-D44 -> 12025 | J44: =I44/D44 -> 0.04017707985 | K44: =G44/G48 -> 0.9832841691
A45: HST | C45: 0.13 | D45: =C45*D44 -> 38909 | F45: =C45 -> 0.13 | G45: =F45*G44 -> 40472.25 | I45: =G45-D45 -> 1563.25 | J45: =I45/D45 -> 0.04017707985 | K45: =G45/G48 -> 0.127826942
A46: Total Bill (including HST) | D46: =D45+D44 -> 338209 | G46: =G45+G44 -> 351797.25 | I46: =G46-D46 -> 13588.25 | J46: =I46/D46 -> 0.04017707985 | K46: =G46/G48 -> 1.111111111
A47: Ontario Clean Energy Benefit (OCEB) | C47: -0.1 | D47: =-0.1*D46 -> -33820.9 | F47: =C47 -> -0.1 | G47: =-0.1*G46 -> -35179.725 | I47: =G47-D47 -> -1358.825 | J47: =I47/D47 -> 0.04017707985 | K47: =G47/G48 -> -0.1111111111
A48: Total Bill on RPP (including OCEB) | D48: =D46+D47 -> 304388.1 | G48: =G46+G47 -> 316617.525 | I48: =G48-D48 -> 12229.425 | J48: =I48/D48 -> 0.04017707985 | K48: =G48/G48 -> 1
A50: Total Bill on TOU (before taxes) | D50: 319959 | G50: 331984 | I50: =G50-D50 -> 12025 | J50: =I50/D50 -> 0.03758294031 | L50: =G50/G54 -> 0.9832841691
A51: HST | C51: 0.13 | D51: =C51*D50 -> 41594.67 | F51: =C51 -> 0.13 | G51: =F51*G50 -> 43157.92 | I51: =G51-D51 -> 1563.25 | J51: =I51/D51 -> 0.03758294031 | L51: =G51/G54 -> 0.127826942
A52: Total Bill (including HST) | D52: =D51+D50 -> 361553.67 | G52: =G51+G50 -> 375141.92 | I52: =G52-D52 -> 13588.25 | J52: =I52/D52 -> 0.03758294031 | L52: =G52/G54 -> 1.111111111
A53: Ontario Clean Energy Benefit (OCEB) | C53: -0.1 | D53: =-0.1*D52 -> -36155.367 | F53: =C53 -> -0.1 | G53: =-0.1*G52 -> -37514.192 | I53: =G53-D53 -> -1358.825 | J53: =I53/D53 -> 0.03758294031 | L53: =G53/G54 -> -0.1111111111
A54: Total Bill on TOU (including OCEB) | D54: =D52+D53 -> 325398.303 | G54: =G52+G53 -> 337627.728 | I54: =G54-D54 -> 12229.425 | J54: =I54/D54 -> 0.03758294031 | L54: =G54/G54 -> 1
A57: Applicants must provide bill impacts for residential at 800 kWh and GS<50kW at 2000 kWh. In addition, their filing should cover the range that is relevant to their service territory, class by class. A general guideline of consumption levels follows: Residential (kWh) - 100, 250, 500, 800, 1000, 1500, 2000 GS<50kW (kWh) - 1000, 2000, 5000, 10000, 15000 GS>50kW (kW) 100, 500, 1000 Large User - range appropriate for utility Street/Sentinel Lighting Classes and USL - 150 kWh and 1 kW, range appropriate for utility.

Sheet 28. Bill Impacts
S1: 1 | Z1: =MATCH(C14, '3. Rate Class Selection'!B19:B40,0) -> 1 | AA1: =VLOOKUP(C14, lists!AO:AP,2,0) -> kWh
A14: Rate Class | C14: RESIDENTIAL
A16: Loss Factor | E16: 1.036
A18: Consumption | C18: kWh | E18: 800
A20: If Billed on a kW basis:
A21: Demand | C21: kW
E25: Current Board-Approved | I25: Proposed | M25: Impact
E26: Rate | F26: Volume | G26: Charge | I26: Rate | J26: Volume | K26: Charge | M26: $ Change | N26: % Change
E27: ($) | G27: ($) | I27: ($) | K27: ($)
A28: Monthly Service Charge | E28: 13.03 | F28: 1 | G28: =F28*E28 -> 13.03 | I28: 13.23 | J28: 1 | K28: =J28*I28 -> 13.23 | M28: =K28-G28 -> 0.2 | N28: =IF((G28)=0,"",(M28/G28)) -> 0.01534919417
A29: Distribution Volumetric Rate | E29: 0.0131 | F29: 800 | G29: =F29*E29 -> 10.48 | I29: 0.0133 | J29: =F29 -> 800 | K29: =J29*I29 -> 10.64 | M29: 0.16 | N29: 0.01526717557
A30: Fixed Rate Riders | F30: 1 | G30: =F30*E30 -> 0 | I30: 0.02 | J30: 1 | K30: =J30*I30 -> 0.02 | M30: 0.02
A31: Volumetric Rate Riders | E31: 0.0005 | F31: 800 | G31: =F31*E31 -> 0.4 | I31: 0 | J31: =F31 -> 800 | K31: =J31*I31 -> 0 | M31: -0.4 | N31: -1
A32: Sub-Total A (excluding pass through) | G32: =SUM(G28:G31) -> 23.91 | K32: =SUM(K28:K31) -> 23.89 | M32: -0.02 | N32: -0.0008364700962
A33: Line Losses on Cost of Power | E33: =E45*0.64+E46*0.18+E47*0.18 -> 0.09246 | F33: =E18*(E16-1) -> 28.8 | G33: =E33*F33 -> 2.662848 | I33: =I45*0.64+I46*0.18+I47*0.18 -> 0.09246 | J33: =F33 -> 28.8 | K33: =I33*J33 -> 2.662848 | M33: 0 | N33: 0
A34: Total Deferral/Variance Account Rate Riders | E34: -0.0011 | F34: 800 | G34: =F34*E34 -> -0.88 | I34: 0 | J34: =F34 -> 800 | K34: =J34*I34 -> 0 | M34: 0.88 | N34: -1
A35: Low Voltage Service Charge | E35: 0.0002 | F35: 800 | G35: =F35*E35 -> 0.16 | I35: 0.0002 | J35: =F35 -> 800 | K35: =J35*I35 -> 0.16 | M35: 0 | N35: 0
A36: Smart Meter Entity Charge | E36: 0.79 | F36: 1 | G36: =F36*E36 -> 0.79 | I36: 0.79 | J36: =F36 -> 1 | K36: =J36*I36 -> 0.79 | M36: 0 | N36: 0
A37: Sub-Total B - Distribution (includes Sub-Total A) | G37: =SUM(G32:G36) -> 26.642848 | K37: =SUM(K32:K36) -> 27.502848 | M37: =K37-G37 -> 0.86 | N37: =IF((G37)=0,"",(M37/G37)) -> 0.03227883145
A38: RTSR - Network | E38: 0.0076 | F38: 800 | G38: =F38*E38 -> 6.08 | I38: 0.0082 | J38: =F38 -> 800 | K38: =J38*I38 -> 6.56 | M38: 0.48 | N38: 0.07894736842
A39: RTSR - Connection and/or Line and Transformation Connection | E39: 0.0058 | F39: 800 | G39: =F39*E39 -> 4.64 | I39: 0.0062 | J39: =F39 -> 800 | K39: =J39*I39 -> 4.96 | M39: 0.32 | N39: 0.06896551724
A40: Sub-Total C - Delivery (including Sub-Total B) | G40: =SUM(G37:G39) -> 37.362848 | K40: =SUM(K37:K39) -> 39.022848 | M40: 1.66 | N40: 0.04442916129
A41: Wholesale Market Service Charge (WMSC) | E41: 0.0044 | F41: =E18*E16 -> 828.8 | G41: =F41*E41 -> 3.64672 | I41: 0.0044 | J41: =E18*E16 -> 828.8 | K41: =J41*I41 -> 3.64672 | M41: 0 | N41: 0
A42: Rural and Remote Rate Protection (RRRP) | E42: 0.0013 | F42: =E18*E16 -> 828.8 | G42: 1.07744 | I42: 0.0013 | J42: =E18*E16 -> 828.8 | K42: 1.07744 | M42: 0 | N42: 0
A43: Standard Supply Service Charge | E43: 0.25 | F43: 1 | G43: 0.25 | I43: 0.25 | J43: 1 | K43: 0.25 | M43: 0 | N43: 0
A44: Debt Retirement Charge (DRC) | E44: 0.007 | F44: =E18 -> 800 | G44: 5.6 | I44: 0.007 | J44: =E18 -> 800 | K44: 5.6 | M44: 0 | N44: 0
A45: TOU - Off Peak | E45: 0.075 | F45: 512 | G45: 38.4 | I45: 0.075 | J45: =F45 -> 512 | K45: 38.4 | M45: 0 | N45: 0
A46: TOU - Mid Peak | E46: 0.112 | F46: 144 | G46: 16.128 | I46: 0.112 | J46: =F46 -> 144 | K46: 16.128 | M46: 0 | N46: 0
A47: TOU - On Peak | E47: 0.135 | F47: 144 | G47: 19.44 | I47: 0.135 | J47: =F47 -> 144 | K47: 19.44 | M47: 0 | N47: 0
A49: Total Bill on TOU (before Taxes) | G49: =SUM(G40:G44,G45:G47) -> 121.905008 | K49: =SUM(K40:K44,K45:K47) -> 123.565008 | M49: =K49-G49 -> 1.66 | N49: =IF((G49)=0,"",(M49/G49)) -> 0.01361716001
A50: HST | E50: 0.13 | G50: =G49*E50 -> 15.84765104 | I50: 0.13 | K50: =K49*I50 -> 16.06345104 | M50: 0.2158 | N50: 0.01361716001
A51: Total Bill (including HST) | G51: =G49+G50 -> 137.752659 | K51: =K49+K50 -> 139.628459 | M51: 1.8758 | N51: 0.01361716001
A52: Ontario Clean Energy Benefit 1 | G52: =ROUND(-G51*10%,2) -> -13.78 | K52: =ROUND(-K51*10%,2) -> -13.96 | M52: -0.18 | N52: 0.01306240929
A53: Total Bill on TOU (including OCEB) | G53: =G51+G52 -> 123.972659 | K53: =K51+K52 -> 125.668459 | M53: 1.6958 | N53: 0.01367882252
A58: Note: For distributors who have a majority of customers on Tiered pricing, please provide a separate bill impact for such customers.

Sheet lists (hidden)
A1: DISTRIBUTED GENERATION [DGEN] | B1: Embedded Distributor | C1: =COUNTA(B1:B17) -> 4 | I1: A Standby Service Charge will be applied for a month where standby power is not provided. The applicable rate is the approved Distribution Volumetric Rate of the applicable service class and is applied to gross metered demand or contracted amount, whichever is greater. A monthly administration charge of $200, for simple metering arrangements, or $500, for complex metering arrangements, will also be applied. | L1: Loss Factors | N1: Units | O1: Units1 | P1: Units2 | Z1: Account History | AA1: Account set up charge/change of occupancy charge (plus credit agency costs if applicable) | AB1: Total Loss Factor – Embedded Distributor – Hydro One Networks Inc. | AL1: Algoma Power Inc. | AM1: Algoma Power Inc. | AO1: DISTRIBUTED GENERATION [DGEN] | AP1: kW | AT1: Sub-Total: Delivery (Distribution and Retail Transmission)
A2: EMBEDDED DISTRIBUTOR | B2: General Service 3,000 to 4,999 kW | I2: Distribution Volumetric Rate | L2: Total Loss Factor – Primary Metered Customer | N2: $ | O2: $/kWh | P2: $ | Z2: Account set up charge/change of occupancy charge | AA2: Administrative Billing Charge | AB2: Total Loss Factor – Primary Metered Customer | AL2: Atikokan Hydro Inc. | AM2: Atikokan Hydro Inc. | AO2: EMBEDDED DISTRIBUTOR | AP2: kW | AT2: Wholesale Market Service Rate | AW2: =AU2*AV2 -> 0 | AX2: =AU2 -> 0 | AY2: 0 | AZ2: =AX2*AY2 -> 0 | BB2: =AZ2-AW2 -> 0 | BC2: =BB2/AW2 -> 
A3: EMBEDDED DISTRIBUTOR | B3: General Service 1,000 to 4,999 kW | I3: Distribution Volumetric Rate - $/kW of contracted amount | L3: Total Loss Factor – Primary Metered Customer < 5,000 kW | N3: $/kWh | O3: $/kW | P3: % | W3: MSC | Z3: Account set up charge/change of occupancy charge (plus credit agency costs if applicable – Residential) | AA3: Bell Canada Pole Rentals | AB3: Total Loss Factor – Primary Metered Customer < 5,000 kW | AL3: Bluewater Power Distribution Corporation | AM3: Bluewater Power Distribution Corporation | AO3: EMBEDDED DISTRIBUTOR | AP3: kW | AT3: Rural or Remote Electricity Rate Protection Charge (RRRP) | AW3: =AU3*AV3 -> 0 | AX3: 0 | AY3: 0 | AZ3: =AX3*AY3 -> 0 | BB3: =AZ3-AW3 -> 0 | BC3: =BB3/AW3 -> 
A4: FARMS - SINGLE PHASE ENERGY-BILLED [F1] | B4: General Service Equal To Or Greater Than 1,500 kW - Interval Metered | I4: Distribution Wheeling Service Rate | L4: Total Loss Factor – Primary Metered Customer > 5,000 kW | N4: $/kW | O4: $/kVA | W4: SM_Rate_Adder | Z4: Account set up charge/change of occupancy charge (plus credit agency costs if applicable) | AA4: Clearance Pole Attachment charge $/pole/year | AB4: Total Loss Factor – Primary Metered Customer > 5,000 kW | AL4: Brant County Power Inc. | AM4: Brant County Power Inc. | AO4: FARMS - SINGLE PHASE ENERGY-BILLED [F1] | AP4: kWh | AT4: Standard Supply Service – Administration Charge (if applicable) | AW4: =AU4*AV4 -> 0 | AX4: 0 | AY4: 0 | AZ4: =AX4*AY4 -> 0 | BB4: =AZ4-AW4 -> 0 | BC4: =BB4/AW4 -> 
A5: FARMS - THREE PHASE ENERGY-BILLED [F3] | I5: Electricity Rate | L5: Total Loss Factor – Secondary Metered Customer | N5: $/kVA | W5: MSC_Rate_Rider_ | Z5: Arrears certificate | AA5: Collection of account charge – no disconnection | AB5: Total Loss Factor – Secondary Metered Customer | AL5: Brantford Power Inc. | AM5: Brantford Power Inc. | AO5: FARMS - THREE PHASE ENERGY-BILLED [F3] | AP5: kWh | AT5: Sub-Total: Regulatory | AW5: =SUM(AW2:AW4) -> 0 | AZ5: =SUM(AZ2:BA4) -> 0 | BB5: =AZ5-AW5 -> 0 | BC5: =BB5/AW5 -> 
A6: GENERAL SERVICE - COMMERCIAL | I6: Electricity Rate - All Additional kWh | L6: Total Loss Factor – Secondary Metered Customer < 5,000 kW | W6: VC | Z6: Arrears certificate (credit reference) | AA6: Collection of account charge – no disconnection – after regular hours | AB6: Total Loss Factor – Secondary Metered Customer < 5,000 kW | AL6: Burlington Hydro Inc. | AM6: Burlington Hydro Inc. | AO6: GENERAL SERVICE - COMMERCIAL | AP6: kW | AT6: Debt Retirement Charge (DRC) | AW6: =AU6*AV6 -> 0 | AX6: =AU6 -> 0 | AY6: =AV6 -> 0 | AZ6: =AX6*AY6 -> 0 | BB6: =AZ6-AW6 -> 0 | BC6: =BB6/AW6 -> 
A7: GENERAL SERVICE - INSTITUTIONAL | I7: Electricity Rate - First 250 kWh | AL7: Cambridge and North Dumfries Hydro Inc. | AM7: Cambridge and North Dumfries Hydro Inc. | AO7: GENERAL SERVICE - INSTITUTIONAL | AP7: kW
A8: GENERAL SERVICE 1,000 TO 2,999 KW | I8: Electricity Rate -All Additional kWh | L8: Total Loss Factor – Secondary Metered Customer > 5,000 kW | W8: VC_Rate_Rider_ | Z8: Charge to certify cheque | AA8: Collection of account charge – no disconnection - during regular business hours | AB8: Total Loss Factor – Secondary Metered Customer > 5,000 kW | AL8: Canadian Niagara Power Inc. | AM8: Canadian Niagara Power Inc. | AO8: GENERAL SERVICE 1,000 TO 2,999 KW | AP8: kW | AT8: Total Bill on RPP (before taxes) | BB8: =AZ8-AW8 -> 0
A9: GENERAL SERVICE 1,000 TO 4,999 KW | I9: Electricity Rate First 1,000 kWh | L9: Distribution Loss Factor - Secondary Metered Customer < 5,000 kW | W9: VC_GA_Rate_Rider_kW_ | Z9: Collection of Account Charge – No Disconnection | AA9: Collection of account charge – no disconnection – during regular hours | AL9: Centre Wellington Hydro Ltd. | AM9: Centre Wellington Hydro Ltd. | AO9: GENERAL SERVICE 1,000 TO 4,999 KW | AP9: kW | AT9: HST | AW9: =AV9*AW8 -> 0 | AY9: =AV9 -> 0 | AZ9: =AY9*AZ8 -> 0 | BB9: =AZ9-AW9 -> 0 | BC9: =BB9/AW9 -> 
A10: GENERAL SERVICE 1,000 TO 4,999 KW - INTERVAL METERS | I10: Electricity Rate First 25,000 kWh | L10: Distribution Loss Factor - Secondary Metered Customer > 5,000 kW | W10: VC_LV_Rate | Z10: Credit Card Convenience Charge | AA10: Collection/Disconnection/Load Limiter/Reconnection – if in Community | AL10: Chapleau Public Utilities Corporation | AM10: Chapleau Public Utilities Corporation | AO10: GENERAL SERVICE 1,000 TO 4,999 KW - INTERVAL METERS | AP10: kW | AT10: Total Bill (including HST) | AW10: =AW9+AW8 -> 0 | AZ10: =AZ9+AZ8 -> 0 | BB10: =AZ10-AW10 -> 0 | BC10: =BB10/AW10 -> 
A11: GENERAL SERVICE 1,000 TO 4,999 KW (CO-GENERATION) | I11: Electricity Rate First 6,000 kWh | L11: Distribution Loss Factor - Primary Metered Customer < 5,000 kW | W11: RTSR_Network | Z11: Credit check (plus credit agency costs) | AA11: Credit Card Convenience Charge | AL11: Collus PowerStream Corporation | AM11: Collus PowerStream Corporation | AO11: GENERAL SERVICE 1,000 TO 4,999 KW (CO-GENERATION) | AP11: kW | AT11: Ontario Clean Energy Benefit (OCEB) | AW11: =-0.1*AW10 -> 0 | AY11: =AV11 -> 0 | AZ11: =-0.1*AZ10 -> 0 | BB11: =AZ11-AW11 -> 0 | BC11: =BB11/AW11 -> 
A12: GENERAL SERVICE 1,500 TO 4,999 KW | I12: Electricity Rate Next 1,500 kWh | L12: Distribution Loss Factor - Primary Metered Customer > 5,000 kW | W12: RTSR_Connection | Z12: Credit reference Letter | AA12: Disconnect/Reconnect at meter – after regular hours | AL12: Cooperative Hydro Embrun Inc. | AM12: Cooperative Hydro Embrun Inc. | AO12: GENERAL SERVICE 1,500 TO 4,999 KW | AP12: kW | AT12: Total Bill on RPP (including OCEB) | AW12: =AW10+AW11 -> 0 | AZ12: =AZ10+AZ11 -> 0 | BB12: =AZ12-AW12 -> 0 | BC12: =BB12/AW12 -> 
A13: GENERAL SERVICE 2,500 TO 4,999 KW | I13: General Service 1,500 to 4,999 kW customer | AL13: E.L.K. Energy Inc. | AM13: E.L.K. Energy Inc. | AO13: GENERAL SERVICE 2,500 TO 4,999 KW | AP13: kW
A14: GENERAL SERVICE 3,000 TO 4,999 KW | I14: General Service 50 to 1,499 kW customer | L14: Total Loss Factor - Embedded Distributor | W14: RTSR_Network_Interval | Z14: Credit reference/credit check (plus credit agency costs – General Service) | AA14: Disconnect/Reconnect at meter – during regular hours | AL14: Enersource Hydro Mississauga Inc. | AM14: Enersource Hydro Mississauga Inc. | AO14: GENERAL SERVICE 3,000 TO 4,999 KW | AP14: kW | AT14: Total Bill on TOU (before taxes) | BB14: =AZ14-AW14 -> 0
A15: GENERAL SERVICE 3,000 TO 4,999 KW - INTERMEDIATE USE | I15: General Service Large Use customer | L15: Total Loss Factor – Embedded Distributor – Hydro One Networks Inc. | W15: RTSR_Connection_Interval | Z15: Credit Reference/credit check (plus credit agency costs) | AA15: Disconnect/Reconnect at pole – after regular hours | AL15: Entegrus Powerlines Inc. | AM15: Entegrus Powerlines Inc. | AO15: GENERAL SERVICE 3,000 TO 4,999 KW - INTERMEDIATE USE | AP15: kW | AT15: HST | AW15: =AV15*AW14 -> 0 | AY15: =AV15 -> 0 | AZ15: =AY15*AZ14 -> 0 | BB15: =AZ15-AW15 -> 0 | BC15: =BB15/AW15 -> 
A16: GENERAL SERVICE 3,000 TO 4,999 KW - INTERVAL METERED | I16: Green Energy Act Initiatives Funding Adder - effective until the date of the next cost of service-based rate order | W16: RTSR_Network_Interval_GR1000kW | Z16: Dispute Test – Commercial self contained -- MC | AA16: Disconnect/Reconnect at pole – during regular hours | AL16: Entegrus Powerlines Inc. - Dutton Service Area | AM16: Entegrus Powerlines Inc. - Dutton Service Area | AO16: GENERAL SERVICE 3,000 TO 4,999 KW - INTERVAL METERED | AP16: kW | AT16: Total Bill (including HST) | AW16: =AW15+AW14 -> 0 | AZ16: =AZ15+AZ14 -> 0 | BB16: =AZ16-AW16 -> 0 | BC16: =BB16/AW16 -> 
A17: GENERAL SERVICE 3,000 TO 4,999 KW - TIME OF USE | I17: Green Energy Act Plan Funding Adder | W17: RTSR_Connection_Interval_GR1000kW | Z17: Dispute Test – Commercial TT -- MC | AA17: Disconnect/Reconnect Charge – At Meter – After Hours | AL17: Entegrus Powerlines Inc. - former Chatham-Kent Hydro Service Area | AM17: Entegrus Powerlines Inc. - former Chatham-Kent Hydro Service Area | AO17: GENERAL SERVICE 3,000 TO 4,999 KW - TIME OF USE | AP17: kW | AT17: Ontario Clean Energy Benefit (OCEB) | AW17: =-0.1*AW16 -> 0 | AY17: =AV17 -> 0 | AZ17: =-0.1*AZ16 -> 0 | BB17: =AZ17-AW17 -> 0 | BC17: =BB17/AW17 -> 
A18: GENERAL SERVICE 50 TO 1,000 KW | I18: Green Energy Act Plan Funding Adder - effective April 1, 2013 until March 31, 2014 | W18: RTSR_Line_Connection | Z18: Dispute Test – Residential | AA18: Disconnect/Reconnect Charge – At Meter – During Regular Hours | AL18: Entegrus Powerlines Inc. - Newbury Service Area | AM18: Entegrus Powerlines Inc. - Newbury Service Area | AO18: GENERAL SERVICE 50 TO 1,000 KW | AP18: kW | AT18: Total Bill on TOU (including OCEB) | AW18: =AW16+AW17 -> 0 | AZ18: =AZ16+AZ17 -> 0 | BB18: =AZ18-AW18 -> 0 | BC18: =BB18/AW18 -> 
A19: GENERAL SERVICE 50 TO 1,000 KW - INTERVAL METERS | I19: Green Energy Act Plan Funding Adder - effective April 1, 2014 until March 31, 2015 | W19: RTSR_Transformer_Connection | Z19: Duplicate Invoices for previous billing | AA19: Disconnect/Reconnect Charge – At Pole – After Hours | AL19: Entegrus Powerlines Inc. - Strathroy, Mount Brydges and Parkhill Service Areas | AM19: Entegrus Powerlines Inc. - Strathroy, Mount Brydges and Parkhill Service Areas | AO19: GENERAL SERVICE 50 TO 1,000 KW - INTERVAL METERS | AP19: kW
A20: GENERAL SERVICE 50 TO 1,000 KW - NON INTERVAL METERS | I20: ICM Rate Rider (2014) - in effect until the effective date of the next cost of service rates | W20: WMSR | Z20: Easement Letter | AA20: Disconnect/Reconnect Charge – At Pole – During Regular Hours | AL20: ENWIN Utilities Ltd. | AM20: ENWIN Utilities Ltd. | AO20: GENERAL SERVICE 50 TO 1,000 KW - NON INTERVAL METERS | AP20: kW
A21: GENERAL SERVICE 50 TO 1,499 KW | I21: Low Voltage Service Charge | W21: RRRP | Z21: Income Tax Letter | AA21: Disconnect/Reconnect Charges for non payment of account - At Meter After Hours | AL21: Erie Thames Powerlines Corporation | AM21: Erie Thames Powerlines Corporation | AO21: GENERAL SERVICE 50 TO 1,499 KW | AP21: kW
A22: GENERAL SERVICE 50 TO 1,499 KW - INTERVAL METERED | I22: Low Voltage Service Rate | W22: SPC | Z22: Interval Meter Interrogation | AA22: Disconnect/Reconnect charges for non payment of account – at meter after regular hours | AL22: Espanola Regional Hydro Distribution Corporation | AM22: Espanola Regional Hydro Distribution Corporation | AO22: GENERAL SERVICE 50 TO 1,499 KW - INTERVAL METERED | AP22: kW
A23: GENERAL SERVICE 50 TO 2,499 KW | I23: Low Voltage Volumetric Rate | W23: DRC | Z23: Interval meter request change | AA23: Disconnect/Reconnect Charges for non payment of account - At Meter During Regular Hours | AL23: Essex Powerlines Corporation | AM23: Essex Powerlines Corporation | AO23: GENERAL SERVICE 50 TO 2,499 KW | AP23: kW
A24: GENERAL SERVICE 50 TO 2,999 KW | I24: LRAM Rate Rider - Effective Until April 30, 2015 | W24: SSS | Z24: Legal letter | AA24: Disconnect/Reconnect charges for non payment of account – at meter during regular hours | AL24: Festival Hydro Inc. | AM24: Festival Hydro Inc. | AO24: GENERAL SERVICE 50 TO 2,999 KW | AP24: kW
A25: GENERAL SERVICE 50 TO 2,999 KW - INTERVAL METERED | I25: Minimum Distribution Charge - per KW of maximum billing demand in the previous 11 months | W25: SFLF | Z25: Legal letter charge | AA25: Disconnect/Reconnect charges for non payment of account – at pole after regular hours | AL25: Fort Frances Power Corporation | AM25: Fort Frances Power Corporation | AO25: GENERAL SERVICE 50 TO 2,999 KW - INTERVAL METERED | AP25: kW
A26: GENERAL SERVICE 50 TO 2,999 KW - TIME OF USE | B26: January | I26: Monthly Distribution Wheeling Service Rate - Dedicated LV Line | W26: DLF_Secondary_LT_5000kW | Z26: Meter dispute charge plus Measurement Canada fees (if meter found correct) | AA26: Disconnect/Reconnect charges for non payment of account – at pole during regular hours | AL26: Greater Sudbury Hydro Inc. | AM26: Greater Sudbury Hydro Inc. | AO26: GENERAL SERVICE 50 TO 2,999 KW - TIME OF USE | AP26: kW
A27: GENERAL SERVICE 50 TO 4,999 KW | B27: February | I27: Monthly Distribution Wheeling Service Rate - Hydro One Networks | W27: DLF_Secondary_GT_5000kW | Z27: Notification charge | AA27: Disconnect/Reconnection for >300 volts - after regular hours | AL27: Grimsby Power Inc. | AM27: Grimsby Power Inc. | AO27: GENERAL SERVICE 50 TO 4,999 KW | AP27: kW
A28: GENERAL SERVICE 50 TO 4,999 KW - INTERVAL METERED | B28: March | I28: Monthly Distribution Wheeling Service Rate - Shared LV Line | W28: DLF_Primary_LT_5000kW | Z28: Pulling Post Dated Cheques | AA28: Disconnect/Reconnection for >300 volts - during regular hours | AL28: Guelph Hydro Electric Systems Inc. | AM28: Guelph Hydro Electric Systems Inc. | AO28: GENERAL SERVICE 50 TO 4,999 KW - INTERVAL METERED | AP28: kW
A29: GENERAL SERVICE 50 TO 4,999 KW - TIME OF USE | B29: April | I29: Monthly Distribution Wheeling Service Rate - Waterloo North Hydro | W29: DLF_Primary_GT_5000kW | Z29: Request for other billing information | AA29: Disposal of Concrete Poles | AL29: Haldimand County Hydro Inc. | AM29: Haldimand County Hydro Inc. | AO29: GENERAL SERVICE 50 TO 4,999 KW - TIME OF USE | AP29: kW
A30: GENERAL SERVICE 50 TO 4,999 KW (COGENERATION) | B30: May | I30: Rate Rider for Application of Tax Change - effective until April 30, 2015 | W30: TLF_Secondary_LT_5000kW | Z30: Returned cheque (plus bank charges) | AA30: Dispute Test – Commercial TT -- MC | AL30: Halton Hills Hydro Inc. | AM30: Halton Hills Hydro Inc. | AO30: GENERAL SERVICE 50 TO 4,999 KW (COGENERATION) | AP30: kW
A31: GENERAL SERVICE 50 TO 4,999 KW (FORMERLY TIME OF USE) | B31: June | I31: Rate Rider for Application of Tax Change - effective until December 31, 2014 | W31: TLF_Secondary_GT_5000kW | Z31: Returned cheque charge (plus bank charges) | AA31: Install/Remove load control device – after regular hours | AL31: Hearst Power Distribution Company Limited | AM31: Hearst Power Distribution Company Limited | AO31: GENERAL SERVICE 50 TO 4,999 KW (FORMERLY TIME OF USE) | AP31: kW
A32: GENERAL SERVICE 50 TO 499 KW | B32: July | I32: Rate Rider for Application of Tax Change (2014) - effective until April 30, 2015 | W32: TLF_Primary_LT_5000kW | Z32: Special Billing Service (aggregation) | AA32: Install/Remove load control device – during regular hours | AL32: Horizon Utilities Corporation | AM32: Horizon Utilities Corporation | AO32: GENERAL SERVICE 50 TO 499 KW | AP32: kW
A33: GENERAL SERVICE 50 TO 699 KW | B33: August | I33: Rate Rider for Application of Tax Change (per connection) - effective until April 30, 2015 | W33: TLF_Primary_GT_5000kW | Z33: Special Billing Service (sub-metering charge per meter) | AA33: Interval Meter Interrogation | AL33: Hydro 2000 Inc. | AM33: Hydro 2000 Inc. | AO33: GENERAL SERVICE 50 TO 699 KW | AP33: kW
A34: GENERAL SERVICE 50 TO 999 KW | B34: September | I34: Rate Rider for CGAAP Accounting Changes (2013) - effective until April 30, 2017 | W34: TLF_EmbeddedDistributor | Z34: Special meter reads | AA34: Interval Meter Load Management Tool Charge $/month | AL34: Hydro Hawkesbury Inc. | AM34: Hydro Hawkesbury Inc. | AO34: GENERAL SERVICE 50 TO 999 KW | AP34: kW
A35: GENERAL SERVICE 50 TO 999 KW - INTERVAL METERED | B35: October | I35: Rate Rider for Deferral/Variance Account (2012) - effective unitl April 30, 2016 | Z35: Statement of Account | AA35: Interval meter request change | AL35: Hydro One Brampton Networks Inc. | AM35: Hydro One Brampton Networks Inc. | AO35: GENERAL SERVICE 50 TO 999 KW - INTERVAL METERED | AP35: kW
A36: GENERAL SERVICE 500 TO 4,999 KW | B36: November | I36: Rate Rider for Deferral/Variance Account Disposition – effective until April 30, 2015 | Z36: Unprocessed Payment Charge (plus bank charges) | AA36: Late Payment – per annum | AL36: Hydro One Networks Inc. | AM36: Hydro One Networks Inc. | AO36: GENERAL SERVICE 500 TO 4,999 KW | AP36: kW
A37: GENERAL SERVICE 700 TO 4,999 KW | B37: December | I37: Rate Rider for Deferral/Variance Account Disposition (2012) - effective until April 30, 2016 | AA37: Late Payment – per month | AL37: Hydro Ottawa Limited | AM37: Hydro Ottawa Limited | AO37: GENERAL SERVICE 700 TO 4,999 KW | AP37: kW
A38: GENERAL SERVICE DEMAND BILLED (50 KW AND ABOVE) [GSD] | I38: Rate Rider for Deferral/Variance Account Disposition (2013) - effective until April 30, 2014 | AA38: Layout fees | AL38: Innisfil Hydro Distribution Systems Limited | AM38: Innisfil Hydro Distribution Systems Limited | AO38: GENERAL SERVICE DEMAND BILLED (50 KW AND ABOVE) [GSD] | AP38: kW
A39: GENERAL SERVICE ENERGY BILLED (LESS THAN 50 KW) [GSE-METERED] | I39: Rate Rider for Deferral/Variance Account Disposition (2014) - effective until April 28, 2016 | AA39: Meter dispute charge plus Measurement Canada fees (if meter found correct) | AL39: Kenora Hydro Electric Corporation Ltd. | AM39: Kenora Hydro Electric Corporation Ltd. | AO39: GENERAL SERVICE ENERGY BILLED (LESS THAN 50 KW) [GSE-METERED] | AP39: kWh
A40: GENERAL SERVICE ENERGY BILLED (LESS THAN TO 50 KW) [GSE-UNMETERED] | I40: Rate Rider for Deferral/Variance Account Disposition (2014) - effective until April 30, 2015 | AA40: Meter Interrogation Charge | AL40: Kingston Hydro Corporation | AM40: Kingston Hydro Corporation | AO40: GENERAL SERVICE ENERGY BILLED (LESS THAN TO 50 KW) [GSE-UNMETERED] | AP40: kWh
A41: GENERAL SERVICE EQUAL TO OR GREATER THAN 1,500 KW | I41: Rate Rider for Deferral/Variance Account Disposition (2014) - effective until December 31, 2014 | AA41: Missed Service Appointment | AL41: Kitchener-Wilmot Hydro Inc. | AM41: Kitchener-Wilmot Hydro Inc. | AO41: GENERAL SERVICE EQUAL TO OR GREATER THAN 1,500 KW | AP41: kW
A42: GENERAL SERVICE EQUAL TO OR GREATER THAN 1,500 KW - INTERVAL METERED | I42: Rate Rider for Deferral/Variance Account Disposition (2014) - effective until December 31, 2015 | AA42: Norfolk Pole Rentals – Billed | AL42: Lakefront Utilities Inc. | AM42: Lakefront Utilities Inc. | AO42: GENERAL SERVICE EQUAL TO OR GREATER THAN 1,500 KW - INTERVAL METERED | AP42: kW
A43: GENERAL SERVICE GREATER THAN 1,000 KW | I43: Rate Rider for Deferral/Variance Account Dispositon (2012) - effective until April 30, 2016 | AA43: Optional Interval/TOU Meter charge $/month | AL43: Lakeland Power Distribution Ltd. | AM43: Lakeland Power Distribution Ltd. | AO43: GENERAL SERVICE GREATER THAN 1,000 KW | AP43: kW
A44: GENERAL SERVICE GREATER THAN 50 kW - WMP | I44: Rate Rider for Disposition of Accounting Changes Under CGAAP Account 1576 - effective until April 30, 2016 | AA44: Overtime Locate | AL44: London Hydro Inc. | AM44: London Hydro Inc. | AO44: GENERAL SERVICE GREATER THAN 50 kW - WMP | AP44: kW
A45: GENERAL SERVICE INTERMEDIATE 1,000 TO 4,999 KW | I45: Rate Rider for Disposition of Deferral/Variance Accounts (2010) - effective until December 31, 2014 | AA45: Owner Requested Disconnection/Reconnection – after regular hours | AL45: Midland Power Utility Corporation | AM45: Midland Power Utility Corporation | AO45: GENERAL SERVICE INTERMEDIATE 1,000 TO 4,999 KW | AP45: kW
A46: GENERAL SERVICE INTERMEDIATE RATE CLASS 1,000 TO 4,999 KW (FORMERLY GENERAL SERVICE > 50 KW CUSTOMERS) | I46: Rate Rider for Disposition of Deferral/Variance Accounts (2011) - effective until April 30, 2015 | AA46: Owner Requested Disconnection/Reconnection – during regular hours | AL46: Milton Hydro Distribution Inc. | AM46: Milton Hydro Distribution Inc. | AO46: GENERAL SERVICE INTERMEDIATE RATE CLASS 1,000 TO 4,999 KW (FORMERLY GENERAL SERVICE > 50 KW CUSTOMERS) | AP46: kW
A47: GENERAL SERVICE INTERMEDIATE RATE CLASS 1,000 TO 4,999 KW (FORMERLY LARGE USE CUSTOMERS) | I47: Rate Rider for Disposition of Deferral/Variance Accounts (2011) - effective until April 30, 2016 | AA47: Returned cheque (plus bank charges) | AL47: Newmarket - Tay Power Distribution Ltd. | AM47: Newmarket - Tay Power Distribution Ltd. | AO47: GENERAL SERVICE INTERMEDIATE RATE CLASS 1,000 TO 4,999 KW (FORMERLY LARGE USE CUSTOMERS) | AP47: kW
A48: GENERAL SERVICE LESS THAN 50 KW | I48: Rate Rider for Disposition of Deferral/Variance Accounts (2012) - effective until April 30, 2014 | AA48: Rural system expansion / line connection fee | AL48: Niagara Peninsula Energy Inc. | AM48: Niagara Peninsula Energy Inc. | AO48: GENERAL SERVICE LESS THAN 50 KW | AP48: kWh
A49: GENERAL SERVICE LESS THAN 50 KW - SINGLE PHASE ENERGY-BILLED [G1] | I49: Rate Rider for Disposition of Deferral/Variance Accounts (2012) - effective until April 30, 2015 | AA49: Same Day Open Trench | AL49: Niagara-on-the-Lake Hydro Inc. | AM49: Niagara-on-the-Lake Hydro Inc. | AO49: GENERAL SERVICE LESS THAN 50 KW - SINGLE PHASE ENERGY-BILLED [G1] | AP49: kWh
A50: GENERAL SERVICE LESS THAN 50 KW - THREE PHASE ENERGY-BILLED [G3] | I50: Rate Rider for Disposition of Deferral/Variance Accounts (2012) - effective until April 30, 2016 | AA50: Scheduled Day Open Trench | AL50: Norfolk Power Distribution Inc. | AM50: Norfolk Power Distribution Inc. | AO50: GENERAL SERVICE LESS THAN 50 KW - THREE PHASE ENERGY-BILLED [G3] | AP50: kWh
A51: GENERAL SERVICE LESS THAN 50 KW - TRANSMISSION CLASS ENERGY-BILLED [T] | I51: Rate Rider for Disposition of Deferral/Variance Accounts (2012) - effective until August 31, 2014 | AA51: Service call – after regular hours | AL51: North Bay Hydro Distribution Limited | AM51: North Bay Hydro Distribution Limited | AO51: GENERAL SERVICE LESS THAN 50 KW - TRANSMISSION CLASS ENERGY-BILLED [T] | AP51: kWh
A52: GENERAL SERVICE LESS THAN 50 KW - URBAN ENERGY-BILLED [UG] | I52: Rate Rider for Disposition of Deferral/Variance Accounts (2012) - effective until December 31, 2015 | AA52: Service call – customer owned equipment | AL52: Northern Ontario Wires Inc. | AM52: Northern Ontario Wires Inc. | AO52: GENERAL SERVICE LESS THAN 50 KW - URBAN ENERGY-BILLED [UG] | AP52: kWh
A53: GENERAL SERVICE SINGLE PHASE - G1 | I53: Rate Rider for Disposition of Deferral/Variance Accounts (2012) - effective until December 31, 2016 Applicable only in the former service area of Clinton Power | AA53: Service Call – Customer-owned Equipment – After Regular Hours | AL53: Oakville Hydro Electricity Distribution Inc. | AM53: Oakville Hydro Electricity Distribution Inc. | AO53: GENERAL SERVICE SINGLE PHASE - G1 | AP53: kW
A54: GENERAL SERVICE THREE PHASE - G3 | I54: Rate Rider for Disposition of Deferral/Variance Accounts (2012) – effective until December 31, 2016 Applicable only in the former service area of Clinton Power | AA54: Service Call – Customer-owned Equipment – During Regular Hours | AL54: Orangeville Hydro Limited | AM54: Orangeville Hydro Limited | AO54: GENERAL SERVICE THREE PHASE - G3 | AP54: kW
A55: INTERMEDIATE USERS | I55: Rate Rider for Disposition of Deferral/Variance Accounts (2012) - effective until January 31, 2014 | AA55: Service Charge for onsite interrogation of interval meter due to customer phone line failure - required weekly until line repaired $ 6 | AL55: Orillia Power Distribution Corporation | AM55: Orillia Power Distribution Corporation | AO55: INTERMEDIATE USERS | AP55: kW
A56: INTERMEDIATE WITH SELF GENERATION | I56: Rate Rider for Disposition of Deferral/Variance Accounts (2012) - effective until June 30, 2014 | AA56: Service Layout - Commercial | AL56: Oshawa PUC Networks Inc. | AM56: Oshawa PUC Networks Inc. | AO56: INTERMEDIATE WITH SELF GENERATION | AP56: kW
A57: LARGE USE | I57: Rate Rider for Disposition of Deferral/Variance Accounts (2013) - Applicable only to Wholesale Market Participants - effective until April 30, 2015 | AA57: Service Layout - ResidentiaI | AL57: Ottawa River Power Corporation | AM57: Ottawa River Power Corporation | AO57: LARGE USE | AP57: kW
A58: LARGE USE - 3TS | I58: Rate Rider for Disposition of Deferral/Variance Accounts (2013) - effective until April 30, 2014 | AA58: Special Billing Service (sub-metering charge per meter) | AL58: Parry Sound Power Corporation | AM58: Parry Sound Power Corporation | AO58: LARGE USE - 3TS | AP58: kW
A59: LARGE USE - FORD ANNEX | I59: Rate Rider for Disposition of Deferral/Variance Accounts (2013) - effective until April 30, 2015 | AA59: Special meter reads | AL59: Peterborough Distribution Incorporated | AM59: Peterborough Distribution Incorporated | AO59: LARGE USE - FORD ANNEX | AP59: kW
A60: LARGE USE - REGULAR | I60: Rate Rider for Disposition of Deferral/Variance Accounts (2013) - effective until April 30, 2015 - not applicable to Wholesale Market Participants | AA60: Specific Charge for Access to the Power Poles - $/pole/year | AL60: PowerStream Inc. | AM60: PowerStream Inc. | AO60: LARGE USE - REGULAR | AP60: kW
A61: LARGE USE > 5000 KW | I61: Rate Rider for Disposition of Deferral/Variance Accounts (2013) - effective until April 30, 2017 | AA61: Specific Charge for Bell Canada Access to the Power Poles – per pole/year | AL61: PUC Distribution Inc. | AM61: PUC Distribution Inc. | AO61: LARGE USE > 5000 KW | AP61: kW
A62: microFIT | I62: Rate Rider for Disposition of Deferral/Variance Accounts (2013) - effective until August 31, 2014 | AA62: Switching for company maintenance – Charge based on Time and Materials | AL62: Renfrew Hydro Inc. | AM62: Renfrew Hydro Inc. | AO62: microFIT | AP62: $
A63: RESIDENTIAL | I63: Rate Rider for Disposition of Deferral/Variance Accounts (2013) - effective until December 31, 2014 | AA63: Temporary Service – Install & remove – overhead – no transformer | AL63: Rideau St. Lawrence Distribution Inc. | AM63: Rideau St. Lawrence Distribution Inc. | AO63: RESIDENTIAL | AP63: kWh
A64: RESIDENTIAL - HENSALL | I64: Rate Rider for Disposition of Deferral/Variance Accounts (2013) - effective until May 31, 2014 | AA64: Temporary Service – Install & remove – overhead – with transformer | AL64: Sioux Lookout Hydro Inc. | AM64: Sioux Lookout Hydro Inc. | AO64: RESIDENTIAL - HENSALL | AP64: kWh
A65: RESIDENTIAL - HIGH DENSITY [R1] | I65: Rate Rider for Disposition of Deferral/Variance Accounts (2014) - effective until December 31, 2015 | AA65: Temporary Service – Install & remove – underground – no transformer | AL65: St. Thomas Energy Inc. | AM65: St. Thomas Energy Inc. | AO65: RESIDENTIAL - HIGH DENSITY [R1] | AP65: kWh
A66: RESIDENTIAL - LOW DENSITY [R2] | I66: Rate Rider for Disposition of Deferred PILs Variance Account 1562 - effective until March 31, 2016 | AA66: Temporary service install & remove – overhead – no transformer | AL66: Thunder Bay Hydro Electricity Distribution Inc. | AM66: Thunder Bay Hydro Electricity Distribution Inc. | AO66: RESIDENTIAL - LOW DENSITY [R2] | AP66: kWh
A67: RESIDENTIAL - MEDIUM DENSITY [R1] | I67: Rate Rider for Disposition of Deferred PILs Variance Account 1562 (2012) - effective until April 30, 2015 | AA67: Temporary Service Install & Remove – Overhead – With Transformer | AL67: Tillsonburg Hydro Inc. | AM67: Tillsonburg Hydro Inc. | AO67: RESIDENTIAL - MEDIUM DENSITY [R1] | AP67: kWh
A68: RESIDENTIAL - NORMAL DENSITY [R2] | I68: Rate Rider for Disposition of Deferred PILs Variance Account 1562 (2012) - effective until April 30, 2016 | AA68: Temporary Service Install & Remove – Underground – No Transformer | AL68: Toronto Hydro-Electric System Limited | AM68: Toronto Hydro-Electric System Limited | AO68: RESIDENTIAL - NORMAL DENSITY [R2] | AP68: kWh
A69: RESIDENTIAL - TIME OF USE | I69: Rate Rider for Disposition of Deferred PILs Variance Account 1562 (2nd Installment - 2012) - effective until April 30, 2016 | AA69: Temporary service installation and removal – overhead – no transformer | AL69: Veridian Connections Inc. | AM69: Veridian Connections Inc. | AO69: RESIDENTIAL - TIME OF USE | AP69: kWh
A70: RESIDENTIAL - URBAN [UR] | I70: Rate Rider for Disposition of Deferred PILs Variance Account 1562 (per connection) (2012) - effective until April 30, 2015 | AA70: Temporary service installation and removal – overhead – with transformer | AL70: Wasaga Distribution Inc. | AM70: Wasaga Distribution Inc. | AO70: RESIDENTIAL - URBAN [UR] | AP70: kWh
A71: RESIDENTIAL REGULAR | I71: Rate Rider for Disposition of Deferred PILs Variance Account 1562 (per connection) (2012) - effective until April 30, 2016 | AA71: Temporary service installation and removal – underground – no transformer | AL71: Waterloo North Hydro Inc. | AM71: Waterloo North Hydro Inc. | AO71: RESIDENTIAL REGULAR | AP71: kWh
A72: RESIDENTIAL SUBURBAN | I72: Rate Rider for Disposition of Global Adjustment Sub-Account (2011) - effective until April 30, 2015 Applicable only for Non-RPP Customers | AL72: Welland Hydro-Electric System Corp. | AM72: Welland Hydro-Electric System Corp. | AO72: RESIDENTIAL SUBURBAN | AP72: kWh
A73: RESIDENTIAL SUBURBAN SEASONAL | I73: Rate Rider for Disposition of Global Adjustment Sub-Account (2011) - effective until April 30, 2016 Applicable only for Non-RPP Customers | AL73: Wellington North Power Inc. | AM73: Wellington North Power Inc. | AO73: RESIDENTIAL SUBURBAN SEASONAL | AP73: kWh
A74: RESIDENTIAL SUBURBAN YEAR ROUND | I74: Rate Rider for Disposition of Global Adjustment Sub-Account (2012) - effective until April 30, 2014 Applicable only for Non-RPP Customers | AL74: West Coast Huron Energy Inc. | AM74: West Coast Huron Energy Inc. | AO74: RESIDENTIAL SUBURBAN YEAR ROUND | AP74: kWh
A75: RESIDENTIAL URBAN | I75: Rate Rider for Disposition of Global Adjustment Sub-Account (2012) - effective until April 30, 2015 Applicable only for Non-RPP Customers | AL75: Westario Power Inc. | AM75: Westario Power Inc. | AO75: RESIDENTIAL URBAN | AP75: kWh
A76: RESIDENTIAL URBAN YEAR-ROUND | I76: Rate Rider for Disposition of Global Adjustment Sub-Account (2012) - effective until April 30, 2015 Applicatble only for Non-RPP Customers | AL76: Whitby Hydro Electric Corporation | AM76: Whitby Hydro Electric Corporation | AO76: RESIDENTIAL URBAN YEAR-ROUND | AP76: kWh
A77: SEASONAL RESIDENTIAL | I77: Rate Rider for Disposition of Global Adjustment Sub-Account (2012) - effective until April 30, 2016 Applicable only for Non-RPP Customers | AL77: Woodstock Hydro Services Inc. | AM77: Woodstock Hydro Services Inc. | AO77: SEASONAL RESIDENTIAL | AP77: kWh
A78: SEASONAL RESIDENTIAL - HIGH DENSITY [R3] | I78: Rate Rider for Disposition of Global Adjustment Sub-Account (2012) - effective until January 31, 2014. Applicable only for Non-RPP Customers | AO78: SEASONAL RESIDENTIAL - HIGH DENSITY [R3] | AP78: kWh
A79: SEASONAL RESIDENTIAL - NORMAL DENSITY [R4] | I79: Rate Rider for Disposition of Global Adjustment Sub-Account (2012) - effective until June 30, 2014 Applicable only for Non-RPP Customers | AO79: SEASONAL RESIDENTIAL - NORMAL DENSITY [R4] | AP79: kWh
A80: SENTINEL LIGHTING | I80: Rate Rider for Disposition of Global Adjustment Sub-Account (2012) Applicable only for Non-RPP Customers - effective until August 31, 2014 | AO80: SENTINEL LIGHTING | AP80: kW
A81: SMALL COMMERCIAL AND USL - PER CONNECTION | I81: Rate Rider for Disposition of Global Adjustment Sub-Account (2012) Applicable only to Non-RPP Customers - effective until August 31, 2014 | AO81: SMALL COMMERCIAL AND USL - PER CONNECTION | AP81: kWh
A82: SMALL COMMERCIAL AND USL - PER METER | I82: Rate Rider for Disposition of Global Adjustment Sub-Account (2013) - effective until April 30, 2014 Applicable only for Non-RPP Customers | AO82: SMALL COMMERCIAL AND USL - PER METER | AP82: kWh
A83: STANDARD A GENERAL SERVICE AIR ACCESS | I83: Rate Rider for Disposition of Global Adjustment Sub-Account (2013) - effective until April 30, 2015 Applicable only for Non-RPP Customers | AO83: STANDARD A GENERAL SERVICE AIR ACCESS | AP83: kWh
A84: STANDARD A GENERAL SERVICE ROAD/RAIL | I84: Rate Rider for Disposition of Global Adjustment Sub-Account (2013) - effective until April 30, 2015 Applicable only for Non-RPP Customers and excluding Wholesale Market Participants | AO84: STANDARD A GENERAL SERVICE ROAD/RAIL | AP84: kWh
A85: STANDARD A GRID CONNECTED | I85: Rate Rider for Disposition of Global Adjustment Sub-Account (2013) - effective until April 30, 2017 Applicable only for Non-RPP Customers | AO85: STANDARD A GRID CONNECTED | AP85: kWh
A86: STANDARD A RESIDENTIAL AIR ACCESS | I86: Rate Rider For Disposition of Global Adjustment Sub-Account (2013) - effective until August 31, 2014 Applicable only for Non-RPP Customers | AO86: STANDARD A RESIDENTIAL AIR ACCESS | AP86: kWh
A87: STANDARD A RESIDENTIAL ROAD/RAIL | I87: Rate Rider for Disposition of Global Adjustment Sub-Account (2013) - effective until December 31, 2014 Applicable only for Non-RPP Customers | AO87: STANDARD A RESIDENTIAL ROAD/RAIL | AP87: kWh
A88: STANDBY - GENERAL SERVICE 1,000 - 5,000 KW | I88: Rate Rider for Disposition of Global Adjustment Sub-Account (2013) - effective until May 31, 2014 Applicable only for Non-RPP Customers | AO88: STANDBY - GENERAL SERVICE 1,000 - 5,000 KW | AP88: kW
A89: STANDBY - GENERAL SERVICE 50 - 1,000 KW | I89: Rate Rider for Disposition of Global Adjustment Sub-Account (2014) - effective until December 31, 2014. Applicable only for Non-RPP - Class B Customers | AO89: STANDBY - GENERAL SERVICE 50 - 1,000 KW | AP89: kW
A90: STANDBY - LARGE USE | I90: Rate Rider for Disposition of Global Adjustment Sub-Account (2014) - effective until December 31, 2014. Applicable only for Non-RPP Customers | AO90: STANDBY - LARGE USE | AP90: kW
A91: STANDBY DISTRIBUTION SERVICE | I91: Rate Rider for Disposition of Global Adjustment Sub-Account (2014) - effective until December 31, 2014. Applicable only for Non-RPP Customers - Class A Customers | AO91: STANDBY DISTRIBUTION SERVICE | AP91: kW
A92: STANDBY POWER | I92: Rate Rider for Disposition of Global Adjustment Sub-Account (2014) - effective until December 31, 2014. Applicable only for Non-RPP Customers - Interval Metered | AO92: STANDBY POWER | AP92: kW
A93: STANDBY POWER - APPROVED ON AN INTERIM BASIS | I93: Rate Rider for Disposition of Global Adjustment Sub-Account (2014) - effective until December 31, 2014. Applicable only for Non-RPP Customers - Non Interval Metered | AO93: STANDBY POWER - APPROVED ON AN INTERIM BASIS | AP93: kW
A94: STANDBY POWER GENERAL SERVICE 1,500 TO 4,999 KW | I94: Rate Rider for Disposition of Global Adjustment Sub-Account (2014) - effective until December 31, 2015. Applicable only for Non-RPP Customers. | AO94: STANDBY POWER GENERAL SERVICE 1,500 TO 4,999 KW | AP94: kW
A95: STANDBY POWER GENERAL SERVICE 50 TO 1,499 KW | I95: Rate Rider for Disposition of Post Retirement Actuarial Gain - effective until March 31, 2025 | AO95: STANDBY POWER GENERAL SERVICE 50 TO 1,499 KW | AP95: kW
A96: STANDBY POWER GENERAL SERVICE LARGE USE | I96: Rate Rider for Disposition of Residual Hisotrical Smart Meter Costs - effective until April 30, 2015 | AO96: STANDBY POWER GENERAL SERVICE LARGE USE | AP96: kW
A97: STREET LIGHTING | I97: Rate Rider for Disposition of Residual Hisotrical Smart Meter Costs - effective until April 30, 2017 | AO97: STREET LIGHTING | AP97: kW
A98: SUB TRANSMISSION [ST] | I98: Rate Rider for Disposition of Residual Historical Smart Meter Costs - effective until April 30, 2014 | AO98: SUB TRANSMISSION [ST] | AP98: kW
A99: UNMETERED SCATTERED LOAD | I99: Rate Rider for Disposition of Residual Historical Smart Meter Costs - effective until April 30, 2016 | AO99: UNMETERED SCATTERED LOAD | AP99: kWh
A100: URBAN GENERAL SERVICE DEMAND BILLED (50 KW AND ABOVE) [UGD] | I100: Rate Rider for Disposition of Residual Historical Smart Meter Costs - effective until August 31, 2014 | AO100: URBAN GENERAL SERVICE DEMAND BILLED (50 KW AND ABOVE) [UGD] | AP100: kW
A101: URBAN GENERAL SERVICE ENERGY BILLED (LESS THAN 50 KW) [UGE] | I101: Rate Rider for Disposition of Residual Historical Smart Meter Costs - effective until August 31, 2015 | AO101: URBAN GENERAL SERVICE ENERGY BILLED (LESS THAN 50 KW) [UGE] | AP101: kWh
A102: WESTPORT SEWAGE TREATMENT PLANT | I102: Rate Rider for Disposition of Residual Historical Smart Meter Costs - effective until December 31, 2014 | AO102: WESTPORT SEWAGE TREATMENT PLANT | AP102: kW
A103: YEAR-ROUND RESIDENTIAL - R2 | I103: Rate Rider for Disposition of Residual Historical Smart Meter Costs – effective until December 31, 2014 | AO103: YEAR-ROUND RESIDENTIAL - R2 | AP103: kWh
I104: Rate Rider for Disposition of Residual Historical Smart Meter Costs - effective until December 31, 2015
I105: Rate Rider for Disposition of Residual Historical Smart Meter Costs - effective until December 31, 2016
I106: Rate Rider for Disposition of Residual Historical Smart Meter Costs - effective until October 31, 2014
I107: Rate Rider for Disposition of Residual Historical Smart Meter Costs - effective until September 30, 2014
I108: Rate Rider for Disposition of Residual Historical Smart Meter Costs - Non-Interval Metered - effective until April 30, 2014
I109: Rate Rider for Disposition of Residual Historical Smart Meter Costs 2 - in effect until the effective date of the next cost of service-based rate order
I110: Rate Rider for Disposition of Residual Historical Smart Meter Costs 3 - in effect until the effective date of the next cost of service-based rate order
I111: Rate Rider for Disposition of Residual Incremental Historical Smart Meter Costs - effective until August 31, 2015
I112: Rate Rider for Disposition of Stranded Meter costs - effective until April 30, 2015
I113: Rate Rider for Disposition of Stranded Meter Costs - effective until April 30, 2016
I114: Rate Rider for Disposition of Stranded Meter Costs - effective until April 30, 2017
I115: Rate Rider for Global Adjustment Sub Account Disposition - effective until April 30, 2016 Applicable only for Non RPP Customers
I116: Rate Rider for Global Adjustment Sub-Account Disposition (2014) - effective until April 28, 2016 Applicable only for Non-RPP Customers
I117: Rate Rider for Global Adjustment Sub-Account Disposition (2014) - effective until April 30, 2015 Applicable only for Non-RPP Customers
I118: Rate Rider for Global Adjustment Sub-Account Disposition (2014) - effective until December 30, 2015 Applicable only for Non-RPP Customers
I119: Rate Rider for Global Adjustment Sub-Account Disposition (2014) - effective until December 31, 2014 Applicable only for Non-RPP Customers
I120: Rate Rider for Global Adjustment Sub-Account Disposition (2014) - effective until December 31, 2015 Applicable only for Non-RPP Customers
I121: Rate Rider for Global Adjustment Sub-Account Disposition Applicable only for Non-RPP Customers - effective until April 30, 2015
I122: Rate Rider for Incremental Capital - Distribution Volumetric - effective until April 30, 2016
I123: Rate Rider for Incremental Capital - Service Charge - effective until April 30, 2016
I124: Rate Rider for Incremental Capital (2012) - effective until April 30, 2015
I125: Rate Rider for Lost Revenue Adjustment Mechanism Variance Account (LRAMVA) Recovery (2012 CDM Activities) - effective until April 30, 2015
I126: Rate Rider for Recover of Residual Historical Smart meter Costs - effective until June 30, 2014
I127: Rate Rider for Recovery of CGAAP/CWIP Differential - in effect until December 31, 2016
I128: Rate Rider for Recovery of Foregone Revenue - effective until April 30, 2015
I129: Rate Rider for Recovery of Forgone Revenue - effective until April 30, 2015
I130: Rate Rider for Recovery of Forgone Revenue - effective until December 31, 2014
I131: Rate Rider for Recovery of Green Energy Act related costs - effective until December 31, 2014
I132: Rate Rider for Recovery of Incremental Capital (2013) - in effect until the effective date of the next cost of service-based rate order
I133: Rate Rider for Recovery of Incremental Capital (2013) - in effect until the effective date of the next cost of service-based rate order
I134: Rate Rider for Recovery of Incremental Capital (2013) (per connection) - in effect until the effective date of the next cost of service-based rate order
I135: Rate Rider for Recovery of Incremental Capital (2013) (per connection)- in effect until the effective date of the next cost of service-based rate order
I136: Rate Rider for Recovery of Incremental Capital Costs
I137: Rate Rider for Recovery of Incremental Capital Costs - effective until April 30, 2015
I138: Rate Rider for Recovery of Incremental Capital Module Costs (2014) - in effect until the effective date of the next cost of service-based rate order
I139: Rate Rider for Recovery of Incremental Capital Module Costs (2014) - in effect until the effective date of the next cost of service-based rate order
I140: Rate Rider for Recovery of Lost Revenue Adjustment Mechanism ( LRAM)/Shared Savings Mechanism (SSM) (2012) - effective until August 31, 2014
I141: Rate Rider for Recovery of Lost Revenue Adjustment Mechanism (2013) - effective until December 31, 2014
I142: Rate Rider for Recovery of Lost Revenue Adjustment Mechanism (LRAM) - effective until April 30, 2016
I143: Rate Rider for Recovery of Lost Revenue Adjustment Mechanism (LRAM) (pre-2011 CDM Activities) - effective until April 30, 2015
I144: Rate Rider for Recovery of Lost Revenue Adjustment Mechanism (LRAM) (pre-2011 CDM Activities) (2013) - effective until April 30, 2015
I145: Rate Rider for Recovery of Lost Revenue Adjustment Mechanism (LRAM)/Shared Savings
I146: Rate Rider for Recovery of Lost Revenue Adjustment Mechanism (LRAM)/Shared Savings Mechanism (SSM) - effective until December 31, 2018 and applicable in the service area excluding the former service areas of Clinton Power and West Perth Power
I147: Rate Rider for Recovery of Lost Revenue Adjustment Mechanism (LRAM)/Shared Savings Mechanism (SSM) - effective until December 31, 2014 and applicable in the service area excluding the former service areas of Clinton Power and West Perth Power
I148: Rate Rider for Recovery of Lost Revenue Adjustment Mechanism (LRAM)/Shared Savings Mechanism (SSM) - effective until December 31, 2014 and applicable only in the former service area of Clinton Power
I149: Rate Rider for Recovery of Lost Revenue Adjustment Mechanism (LRAM)/Shared Savings Mechanism (SSM) - effective until December 31, 2014 and applicable only in the former service area of West Perth Power
I150: Rate Rider for Recovery of Lost Revenue Adjustment Mechanism (LRAM)/Shared Savings Mechanism (SSM) - effective until December 31, 2014 and applicable in the service area excluding the former service area of Clinton Power
I151: Rate Rider for Recovery of Lost Revenue Adjustment Mechanism (LRAM)/Shared Savings Mechanism (SSM) - effective until March 31, 2016
I152: Rate Rider for Recovery of Lost Revenue Adjustment Mechanism (LRAM)/Shared Savings Mechanism (SSM) (2012) - effective until August 31, 2014
I153: Rate Rider for Recovery of Lost Revenue Adjustment Mechanism (LRAM)/Shared Savings Mechanism (SSM) Recovery - effective until April 30, 2015
I154: Rate Rider for Recovery of Lost Revenue Adjustment Mechanism Variance Account (LRAMVA) (2014) - effective until April 30, 2015
I155: Rate Rider for Recovery of Residual Historical Smart Meter Costs - effective July 1, 2012 - April 30, 2016
I156: Rate Rider for Recovery of Smart Meter Incremental Revenue Requirement - effective until the date of the next cost of service-based rate order
I157: Rate Rider for Recovery of Smart Meter Incremental Revenue Requirement - effective until the effective date of the next cost of service-based rate order, or October 31, 2017, whichever occurs earlier
I158: Rate Rider for Recovery of Smart Meter Incremental Revenue Requirement - in effect until the effective date of the next cost of service-based rate order
I159: Rate Rider for Recovery of Smart Meter Incremental Revenue Requirement - Non-Interval Metered - in effect until the effective date of the next cost of service-based rate order
I160: Rate Rider for Recovery of Smart Meter Incremental Revenue Requirements - in effect until the effective date of the next cost of service application
I161: Rate Rider for Recovery of Smart Meter Stranded Assets - effective until April 30, 2016
I162: Rate Rider for Recovery of Storm Damage Costs - effective until August 31, 2017
I163: Rate Rider for Recovery of Stranded Assets - effective until April 30, 2016
I164: Rate Rider for Recovery of Stranded Meter Assets - effective July 1, 2012 - April 30, 2016
I165: Rate Rider for Recovery of Stranded Meter Assets – effective until April 30, 2015
I166: Rate Rider for Recovery of Stranded Meter Assets - effective until April 30, 2016
I167: Rate Rider for Recovery of Stranded Meter Assets - effective until April 30, 2017
I168: Rate Rider for Recovery of Stranded Meter Assets - effective until August 31, 2015
I169: Rate Rider for Recovery of Stranded Meter Assets - effective until August 31, 2017
I170: Rate Rider for Recovery of Stranded Meter Assets - effective until December 31, 2014
I171: Rate Rider for Recovery of Stranded Meter Assets - effective until December 31, 2015
I172: Rate Rider for Recovery of Stranded Meter Assets - effective until June 30, 2016
I173: Rate Rider for Recovery of Stranded Meter Assets - effective until March 31, 2016
I174: Rate Rider for Recovery of Stranded Meter Assets - effective until May 31, 2014
I175: Rate Rider for Reversal of Deferral/Variance Account Disposition (2011) - effective until April 30, 2015
I176: Rate Rider for Smart Meter Disposition - effective until April 30, 2016
I177: Rate Rider for Smart Meter Incremental Revenue Requirement - in effect until the effective date of the next cost of service-based rate order
I178: Rate Rider for Smart Metering Entity Charge - effective until October 31, 2018
I179: Rate Rider for Stranded Meter Cost Recovery - effective until April 30, 2017
I180: Rate Rider for Tax Change
I181: Rate Rider for Tax Change - effective until April 30, 2015
I182: Rate Rider for Tax Change (2014) - effective until April 30, 2015
I183: Retail Transmission Rate - Line and Transformation Connection Service Rate
I184: Retail Transmission Rate - Line and Transformation Connection Service Rate - (less than 1,000 kW)
I185: Retail Transmission Rate - Line and Transformation Connection Service Rate - Interval Metered
I186: Retail Transmission Rate - Line and Transformation Connection Service Rate - Interval Metered (1,000 to 4,999 kW)
I187: Retail Transmission Rate - Line and Transformation Connection Service Rate - Interval Metered (less than 1,000 kW)
I188: Retail Transmission Rate - Line and Transformation Connection Service Rate - Interval Metered < 1,000 kW
I189: Retail Transmission Rate - Line and Transformation Connection Service Rate FOR ALL SERVICE AREAS EXCEPT HENSALL
I190: Retail Transmission Rate - Line and Transformation Connection Service Rate - Interval Metered > 1,000 kW
I191: Retail Transmission Rate - Line Connection Service Rate
I192: Retail Transmission Rate - Network Service Rate
I193: Retail Transmission Rate - Network Service Rate - (less than 1,000 kW)
I194: Retail Transmission Rate - Network Service Rate - Interval Metered
I195: Retail Transmission Rate - Network Service Rate - Interval Metered (1,000 to 4,999 kW)
I196: Retail Transmission Rate - Network Service Rate - Interval Metered (less than 1,000 kW)
I197: Retail Transmission Rate - Network Service Rate - Interval Metered > 1,000 kW
I198: Retail Transmission Rate - Transformation Connection Service Rate
I199: Rider for Global Adjustment Sub-Account Disposition (2012) - effective until April 30, 2016 Applicable only for Non-RPP Customers
I200: Rural or Remote Electricity Rate Protection Charge (RRRP)
... 14 more rows
